Workbook

Sheet INGRESO DE DATOS
A11: (Para nuevos negocios emitidos a partir del 1 de enero de 2022 y renovaciones de pólizas emitidas a partir del 1 de abril de 2018)
C14: Nombre del Asegurado Titular: | D14: NOMBRE COMPLETO
C16: Número de adultos en la póliza: | D16: 2 | F16: Número de niños en la póliza: | H16: 3
C18: Edad del Asegurado Titular: | D18: 65 | F18: Edad del/la cónyuge: | H18: 71
B26: 2 | D26: 2

Sheet Global Ultimate
A15: GLOBAL ULTIMATE HEALTH PLAN | D15: Nombre del Asegurado Titular: | F15: =+'INGRESO DE DATOS'!$D$14 -> NOMBRE COMPLETO
D17: Número de adultos en la póliza: | F17: =+'INGRESO DE DATOS'!$D$16 -> 2 | H17: Edad del Asegurado Titular: | I17: =+'INGRESO DE DATOS'!$D$18 -> 65
D19: Número de niños en la póliza: | F19: =+'INGRESO DE DATOS'!$H$16 -> 3 | H19: Edad del/la conyuge: | I19: =+'INGRESO DE DATOS'!$H$18 -> 71
E21: Número de niños menores de 16 años: | F21: =+'INGRESO DE DATOS'!$B$26 -> 2 | H21: Fecha de la cotización: | I21: =NOW() -> 2021-12-20T11:32:08.260
H22: FALSE
E23: Deducibles | G23: PLAN 1 | H23: PLAN 2
E24: En el país de residencia | G24: 0 | H24: 1000
E25: Fuera del país de residencia | G25: 0 | H25: 1000
E27: Tarifas anuales
E28: Prima para Asegurado Titular | G28: =VLOOKUP($I$17,Tablas!$A$905:$G$971,3,TRUE) -> 84744 | H28: =VLOOKUP($I$17,Tablas!$A$905:$G$971,4,TRUE) -> 54675
E29: Prima para conyuge | G29: =IF($F$17=1,0,(VLOOKUP($I$19,Tablas!$A$905:$G$971,3,TRUE))) -> 139875 | H29: =IF($F$17=1,0,(VLOOKUP($I$19,Tablas!$A$905:$G$971,4,TRUE))) -> 90242
E30: Prima para hijo (s) | G30: =IF($F$17=1, (IF($F$19=0, 0, (IF($F$21>$F$19, (VLOOKUP($F$19,Tablas!$A$972:$G$974,3,TRUE)), (IF($F$19>4,(IF($F$21=0, (VLOOKUP(3,Tablas!$A$972:$G$974,3,TRUE)), (IF($F$21=1, (VLOOKUP(3,Tablas!$A$972:$G$974,3,TRUE)), (IF($F$21=2, (VLOOKUP(3,Tablas!$A$972:$G$974,3,TRUE)), (VLOOKUP(3,Tablas!$A$972:$G$974,3,TRUE)))))))), (IF($F$19=4,(IF(4-$F$21=0,(VLOOKUP(2,Tablas!$A$972:$G$974,3,TRUE)), (IF(4-$F$21=1,(VLOOKUP(2,Tablas!$A$972:$G$974,3,TRUE)), (IF(4-$F$21=2, (VLOOKUP(2,Tablas!$A$972:$G$974,3,TRUE)), (VLOOKUP(3,Tablas!$A$972:$G$974,3,TRUE)))))))), (IF($F$19=3,(IF(3-$F$21=0,(VLOOKUP(1,Tablas!$A$972:$G$974,3,TRUE)), (IF(3-$F$21=1,(VLOOKUP(1,Tablas!$A$972:$G$974,3,TRUE)), (IF(3-$F$21=2, (VLOOKUP(2,Tablas!$A$972:$G$974,3,TRUE)), (VLOOKUP(3,Tablas!$A$972:$G$974,3,TRUE)))))))), (IF($F$19=2,(IF(2-$F$21=0, 0, (IF(2-$F$21=1,(VLOOKUP(1,Tablas!$A$972:$G$974,3,TRUE)), (IF(2-$F$21=2, (VLOOKUP(2,Tablas!$A$972:$G$974,3,TRUE)), 0)))))), (IF($F$19=1,(IF(1-$F$21=0, 0, (IF(1-$F$21=1,(VLOOKUP(1,Tablas!$A$972:$G$974,3,TRUE)),0)))),0)))))))))))))), (IF($F$19=0, 0, (IF($F$21>$F$19, (VLOOKUP($F$19,Tablas!$A$972:$G$974,3,TRUE)), (IF($F$19=4,(IF(4-$F$21=0, 0, (IF(4-$F$21=1, (VLOOKUP(1,Tablas!$A$972:$G$974,3,TRUE)), (IF(4-$F$21=2, (VLOOKUP(2,Tablas!$A$972:$G$974,3,TRUE)), (IF(4-$F$21=3, (VLOOKUP(3,Tablas!$A$972:$G$974,3,TRUE)), (IF(4-$F$21=4, (VLOOKUP(3,Tablas!$A$972:$G$974,3,TRUE)), 0)))))))))), (IF($F$19=5,(IF(5-$F$21=0, (VLOOKUP(1,Tablas!$A$972:$G$974,3,TRUE)), (IF(5-$F$21=1, (VLOOKUP(1,Tablas!$A$972:$G$974,3,TRUE)), (IF(5-$F$21=2, (VLOOKUP(2,Tablas!$A$972:$G$974,3,TRUE)), (IF(5-$F$21=3, (VLOOKUP(3,Tablas!$A$972:$G$974,3,TRUE)), (IF(5-$F$21=4, (VLOOKUP(3,Tablas!$A$972:$G$974,3,TRUE)), (VLOOKUP(3,Tablas!$A$972:$G$974,3,TRUE)))))))))))), (IF($F$19=6,(IF(6-$F$21=0, (VLOOKUP(2,Tablas!$A$972:$G$974,3,TRUE)), (IF(6-$F$21=1, (VLOOKUP(2,Tablas!$A$972:$G$974,3,TRUE)), (IF(6-$F$21=2, (VLOOKUP(2,Tablas!$A$972:$G$974,3,TRUE)), (IF(6-$F$21=3, (VLOOKUP(3,Tablas!$A$972:$G$974,3,TRUE)), (IF(6-$F$21=4, (VLOOKUP(3,Tablas!$A$972:$G$974,3,TRUE)), (VLOOKUP(3,Tablas!$A$972:$G$974,3,TRUE)))))))))))), (IF($F$19>6,(IF(7-$F$21=0, (VLOOKUP(3,Tablas!$A$972:$G$974,3,TRUE)), (IF(7-$F$21=1, (VLOOKUP(3,Tablas!$A$972:$G$974,3,TRUE)), (IF(7-$F$21=2, (VLOOKUP(3,Tablas!$A$972:$G$974,3,TRUE)), (IF(7-$F$21=3, (VLOOKUP(3,Tablas!$A$972:$G$974,3,TRUE)), (IF(7-$F$21=4, (VLOOKUP(3,Tablas!$A$972:$G$974,3,TRUE)), (VLOOKUP(3,Tablas!$A$972:$G$974,3,TRUE)))))))))))), (IF($F$19=3,(IF(3-$F$21=0,0, (IF(3-$F$21=1,(VLOOKUP(1,Tablas!$A$972:$G$974,3,TRUE)), (IF(3-$F$21=2, (VLOOKUP(2,Tablas!$A$972:$G$974,3,TRUE)), (VLOOKUP(3,Tablas!$A$972:$G$974,3,TRUE)))))))), (IF($F$19=2,(IF(2-$F$21=0, 0, (IF(2-$F$21=1,(VLOOKUP(1,Tablas!$A$972:$G$974,3,TRUE)), (IF(2-$F$21=2, (VLOOKUP(2,Tablas!$A$972:$G$974,3,TRUE)), 0)))))), (IF($F$19=1,(IF(1-$F$21=0, 0, (IF(1-$F$21=1,(VLOOKUP(1,Tablas!$A$972:$G$974,3,TRUE)),0)))),0))))))))))))))))))) -> 9604 | H30: =IF($F$17=1, (IF($F$19=0, 0, (IF($F$21>$F$19, (VLOOKUP($F$19,Tablas!$A$972:$G$974,4,TRUE)), (IF($F$19>4,(IF($F$21=0, (VLOOKUP(3,Tablas!$A$972:$G$974,4,TRUE)), (IF($F$21=1, (VLOOKUP(3,Tablas!$A$972:$G$974,4,TRUE)), (IF($F$21=2, (VLOOKUP(3,Tablas!$A$972:$G$974,4,TRUE)), (VLOOKUP(3,Tablas!$A$972:$G$974,4,TRUE)))))))), (IF($F$19=4,(IF(4-$F$21=0,(VLOOKUP(2,Tablas!$A$972:$G$974,4,TRUE)), (IF(4-$F$21=1,(VLOOKUP(2,Tablas!$A$972:$G$974,4,TRUE)), (IF(4-$F$21=2, (VLOOKUP(2,Tablas!$A$972:$G$974,4,TRUE)), (VLOOKUP(3,Tablas!$A$972:$G$974,4,TRUE)))))))), (IF($F$19=3,(IF(3-$F$21=0,(VLOOKUP(1,Tablas!$A$972:$G$974,4,TRUE)), (IF(3-$F$21=1,(VLOOKUP(1,Tablas!$A$972:$G$974,4,TRUE)), (IF(3-$F$21=2, (VLOOKUP(2,Tablas!$A$972:$G$974,4,TRUE)), (VLOOKUP(3,Tablas!$A$972:$G$974,4,TRUE)))))))), (IF($F$19=2,(IF(2-$F$21=0, 0, (IF(2-$F$21=1,(VLOOKUP(1,Tablas!$A$972:$G$974,4,TRUE)), (IF(2-$F$21=2, (VLOOKUP(2,Tablas!$A$972:$G$974,4,TRUE)), 0)))))), (IF($F$19=1,(IF(1-$F$21=0, 0, (IF(1-$F$21=1,(VLOOKUP(1,Tablas!$A$972:$G$974,4,TRUE)),0)))),0)))))))))))))), (IF($F$19=0, 0, (IF($F$21>$F$19, (VLOOKUP($F$19,Tablas!$A$972:$G$974,4,TRUE)), (IF($F$19=4,(IF(4-$F$21=0, 0, (IF(4-$F$21=1, (VLOOKUP(1,Tablas!$A$972:$G$974,4,TRUE)), (IF(4-$F$21=2, (VLOOKUP(2,Tablas!$A$972:$G$974,4,TRUE)), (IF(4-$F$21=3, (VLOOKUP(3,Tablas!$A$972:$G$974,4,TRUE)), (IF(4-$F$21=4, (VLOOKUP(3,Tablas!$A$972:$G$974,4,TRUE)), 0)))))))))), (IF($F$19=5,(IF(5-$F$21=0, (VLOOKUP(1,Tablas!$A$972:$G$974,4,TRUE)), (IF(5-$F$21=1, (VLOOKUP(1,Tablas!$A$972:$G$974,4,TRUE)), (IF(5-$F$21=2, (VLOOKUP(2,Tablas!$A$972:$G$974,4,TRUE)), (IF(5-$F$21=3, (VLOOKUP(3,Tablas!$A$972:$G$974,4,TRUE)), (IF(5-$F$21=4, (VLOOKUP(3,Tablas!$A$972:$G$974,4,TRUE)), (VLOOKUP(3,Tablas!$A$972:$G$974,4,TRUE)))))))))))), (IF($F$19=6,(IF(6-$F$21=0, (VLOOKUP(2,Tablas!$A$972:$G$974,4,TRUE)), (IF(6-$F$21=1, (VLOOKUP(2,Tablas!$A$972:$G$974,4,TRUE)), (IF(6-$F$21=2, (VLOOKUP(2,Tablas!$A$972:$G$974,4,TRUE)), (IF(6-$F$21=3, (VLOOKUP(3,Tablas!$A$972:$G$974,4,TRUE)), (IF(6-$F$21=4, (VLOOKUP(3,Tablas!$A$972:$G$974,4,TRUE)), (VLOOKUP(3,Tablas!$A$972:$G$974,4,TRUE)))))))))))), (IF($F$19>6,(IF(7-$F$21=0, (VLOOKUP(3,Tablas!$A$972:$G$974,4,TRUE)), (IF(7-$F$21=1, (VLOOKUP(3,Tablas!$A$972:$G$974,4,TRUE)), (IF(7-$F$21=2, (VLOOKUP(3,Tablas!$A$972:$G$974,4,TRUE)), (IF(7-$F$21=3, (VLOOKUP(3,Tablas!$A$972:$G$974,4,TRUE)), (IF(7-$F$21=4, (VLOOKUP(3,Tablas!$A$972:$G$974,4,TRUE)), (VLOOKUP(3,Tablas!$A$972:$G$974,4,TRUE)))))))))))), (IF($F$19=3,(IF(3-$F$21=0,0, (IF(3-$F$21=1,(VLOOKUP(1,Tablas!$A$972:$G$974,4,TRUE)), (IF(3-$F$21=2, (VLOOKUP(2,Tablas!$A$972:$G$974,4,TRUE)), (VLOOKUP(3,Tablas!$A$972:$G$974,4,TRUE)))))))), (IF($F$19=2,(IF(2-$F$21=0, 0, (IF(2-$F$21=1,(VLOOKUP(1,Tablas!$A$972:$G$974,4,TRUE)), (IF(2-$F$21=2, (VLOOKUP(2,Tablas!$A$972:$G$974,4,TRUE)), 0)))))), (IF($F$19=1,(IF(1-$F$21=0, 0, (IF(1-$F$21=1,(VLOOKUP(1,Tablas!$A$972:$G$974,4,TRUE)),0)))),0))))))))))))))))))) -> 6196
E31: Total de Prima neta | G31: =SUM(G28:G30) -> 234223 | H31: =SUM(H28:H30) -> 151113
E32: Tarifa administrativa anual | G32: 75 | H32: 75
E33: IVA (12%) | G33: =(G32+G31)*12% -> 28115.76 | H33: =(H32+H31)*12% -> 18142.56
E34: TOTAL ANUAL | G34: =SUM(G31:G33) -> 262413.76 | H34: =SUM(H31:H33) -> 169330.56
E35: Ahorros en tarifas de prima para niños | G35: =IF($F$17=1,IF($F$19=0,0,IF($F$21=0,0,IF($F$21=1,(VLOOKUP(1,Tablas!$A$972:$G$974,3,TRUE)),(VLOOKUP(2,Tablas!$A$972:$G$974,3,TRUE))))), IF($F$19=0,0,IF($F$21=0,0,IF($F$21=1,(VLOOKUP(1,Tablas!$A$972:$G$974,3,TRUE)),IF($F$21=2,(VLOOKUP(2,Tablas!$A$972:$G$974,3,TRUE)), (VLOOKUP(3,Tablas!$A$972:$G$974,3,TRUE))))))) -> 16323 | H35: =IF($F$17=1,IF($F$19=0,0,IF($F$21=0,0,IF($F$21=1,(VLOOKUP(1,Tablas!$A$972:$G$974,4,TRUE)),(VLOOKUP(2,Tablas!$A$972:$G$974,4,TRUE))))), IF($F$19=0,0,IF($F$21=0,0,IF($F$21=1,(VLOOKUP(1,Tablas!$A$972:$G$974,4,TRUE)),IF($F$21=2,(VLOOKUP(2,Tablas!$A$972:$G$974,4,TRUE)), (VLOOKUP(3,Tablas!$A$972:$G$974,4,TRUE))))))) -> 10533
E37: Tarifas semi anuales
E38: Prima para Asegurado Titular | G38: =VLOOKUP($I$17,Tablas!$A$1428:$G$1494,3,TRUE) -> 44914.32 | H38: =VLOOKUP($I$17,Tablas!$A$1428:$G$1494,4,TRUE) -> 28977.75
E39: Prima para conyuge | G39: =IF($F$17=1,0,(VLOOKUP($I$19,Tablas!$A$1428:$G$1494,3,TRUE))) -> 74133.75 | H39: =IF($F$17=1,0,(VLOOKUP($I$19,Tablas!$A$1428:$G$1494,4,TRUE))) -> 47828.26
E40: Prima para hijo (s) | G40: =IF($F$17=1, (IF($F$19=0, 0, (IF($F$21>$F$19, (VLOOKUP($F$19,Tablas!$A$1495:$G$1497,3,TRUE)), (IF($F$19>4,(IF($F$21=0, (VLOOKUP(3,Tablas!$A$1495:$G$1497,3,TRUE)), (IF($F$21=1, (VLOOKUP(3,Tablas!$A$1495:$G$1497,3,TRUE)), (IF($F$21=2, (VLOOKUP(3,Tablas!$A$1495:$G$1497,3,TRUE)), (VLOOKUP(3,Tablas!$A$1495:$G$1497,3,TRUE)))))))), (IF($F$19=4,(IF(4-$F$21=0,(VLOOKUP(2,Tablas!$A$1495:$G$1497,3,TRUE)), (IF(4-$F$21=1,(VLOOKUP(2,Tablas!$A$1495:$G$1497,3,TRUE)), (IF(4-$F$21=2, (VLOOKUP(2,Tablas!$A$1495:$G$1497,3,TRUE)), (VLOOKUP(3,Tablas!$A$1495:$G$1497,3,TRUE)))))))), (IF($F$19=3,(IF(3-$F$21=0,(VLOOKUP(1,Tablas!$A$1495:$G$1497,3,TRUE)), (IF(3-$F$21=1,(VLOOKUP(1,Tablas!$A$1495:$G$1497,3,TRUE)), (IF(3-$F$21=2, (VLOOKUP(2,Tablas!$A$1495:$G$1497,3,TRUE)), (VLOOKUP(3,Tablas!$A$1495:$G$1497,3,TRUE)))))))), (IF($F$19=2,(IF(2-$F$21=0, 0, (IF(2-$F$21=1,(VLOOKUP(1,Tablas!$A$1495:$G$1497,3,TRUE)), (IF(2-$F$21=2, (VLOOKUP(2,Tablas!$A$1495:$G$1497,3,TRUE)), 0)))))), (IF($F$19=1,(IF(1-$F$21=0, 0, (IF(1-$F$21=1,(VLOOKUP(1,Tablas!$A$1495:$G$1497,3,TRUE)),0)))),0)))))))))))))), (IF($F$19=0, 0, (IF($F$21>$F$19, (VLOOKUP($F$19,Tablas!$A$1495:$G$1497,3,TRUE)), (IF($F$19=4,(IF(4-$F$21=0, 0, (IF(4-$F$21=1, (VLOOKUP(1,Tablas!$A$1495:$G$1497,3,TRUE)), (IF(4-$F$21=2, (VLOOKUP(2,Tablas!$A$1495:$G$1497,3,TRUE)), (IF(4-$F$21=3, (VLOOKUP(3,Tablas!$A$1495:$G$1497,3,TRUE)), (IF(4-$F$21=4, (VLOOKUP(3,Tablas!$A$1495:$G$1497,3,TRUE)), 0)))))))))), (IF($F$19=5,(IF(5-$F$21=0, (VLOOKUP(1,Tablas!$A$1495:$G$1497,3,TRUE)), (IF(5-$F$21=1, (VLOOKUP(1,Tablas!$A$1495:$G$1497,3,TRUE)), (IF(5-$F$21=2, (VLOOKUP(2,Tablas!$A$1495:$G$1497,3,TRUE)), (IF(5-$F$21=3, (VLOOKUP(3,Tablas!$A$1495:$G$1497,3,TRUE)), (IF(5-$F$21=4, (VLOOKUP(3,Tablas!$A$1495:$G$1497,3,TRUE)), (VLOOKUP(3,Tablas!$A$1495:$G$1497,3,TRUE)))))))))))), (IF($F$19=6,(IF(6-$F$21=0, (VLOOKUP(2,Tablas!$A$1495:$G$1497,3,TRUE)), (IF(6-$F$21=1, (VLOOKUP(2,Tablas!$A$1495:$G$1497,3,TRUE)), (IF(6-$F$21=2, (VLOOKUP(2,Tablas!$A$1495:$G$1497,3,TRUE)), (IF(6-$F$21=3, (VLOOKUP(3,Tablas!$A$1495:$G$1497,3,TRUE)), (IF(6-$F$21=4, (VLOOKUP(3,Tablas!$A$1495:$G$1497,3,TRUE)), (VLOOKUP(3,Tablas!$A$1495:$G$1497,3,TRUE)))))))))))), (IF($F$19>6,(IF(7-$F$21=0, (VLOOKUP(3,Tablas!$A$1495:$G$1497,3,TRUE)), (IF(7-$F$21=1, (VLOOKUP(3,Tablas!$A$1495:$G$1497,3,TRUE)), (IF(7-$F$21=2, (VLOOKUP(3,Tablas!$A$1495:$G$1497,3,TRUE)), (IF(7-$F$21=3, (VLOOKUP(3,Tablas!$A$1495:$G$1497,3,TRUE)), (IF(7-$F$21=4, (VLOOKUP(3,Tablas!$A$1495:$G$1497,3,TRUE)), (VLOOKUP(3,Tablas!$A$1495:$G$1497,3,TRUE)))))))))))), (IF($F$19=3,(IF(3-$F$21=0,0, (IF(3-$F$21=1,(VLOOKUP(1,Tablas!$A$1495:$G$1497,3,TRUE)), (IF(3-$F$21=2, (VLOOKUP(2,Tablas!$A$1495:$G$1497,3,TRUE)), (VLOOKUP(3,Tablas!$A$1495:$G$1497,3,TRUE)))))))), (IF($F$19=2,(IF(2-$F$21=0, 0, (IF(2-$F$21=1,(VLOOKUP(1,Tablas!$A$1495:$G$1497,3,TRUE)), (IF(2-$F$21=2, (VLOOKUP(2,Tablas!$A$1495:$G$1497,3,TRUE)), 0)))))), (IF($F$19=1,(IF(1-$F$21=0, 0, (IF(1-$F$21=1,(VLOOKUP(1,Tablas!$A$1495:$G$1497,3,TRUE)),0)))),0))))))))))))))))))) -> 5090.12 | H40: =IF($F$17=1, (IF($F$19=0, 0, (IF($F$21>$F$19, (VLOOKUP($F$19,Tablas!$A$1495:$G$1497,4,TRUE)), (IF($F$19>4,(IF($F$21=0, (VLOOKUP(3,Tablas!$A$1495:$G$1497,4,TRUE)), (IF($F$21=1, (VLOOKUP(3,Tablas!$A$1495:$G$1497,4,TRUE)), (IF($F$21=2, (VLOOKUP(3,Tablas!$A$1495:$G$1497,4,TRUE)), (VLOOKUP(3,Tablas!$A$1495:$G$1497,4,TRUE)))))))), (IF($F$19=4,(IF(4-$F$21=0,(VLOOKUP(2,Tablas!$A$1495:$G$1497,4,TRUE)), (IF(4-$F$21=1,(VLOOKUP(2,Tablas!$A$1495:$G$1497,4,TRUE)), (IF(4-$F$21=2, (VLOOKUP(2,Tablas!$A$1495:$G$1497,4,TRUE)), (VLOOKUP(3,Tablas!$A$1495:$G$1497,4,TRUE)))))))), (IF($F$19=3,(IF(3-$F$21=0,(VLOOKUP(1,Tablas!$A$1495:$G$1497,4,TRUE)), (IF(3-$F$21=1,(VLOOKUP(1,Tablas!$A$1495:$G$1497,4,TRUE)), (IF(3-$F$21=2, (VLOOKUP(2,Tablas!$A$1495:$G$1497,4,TRUE)), (VLOOKUP(3,Tablas!$A$1495:$G$1497,4,TRUE)))))))), (IF($F$19=2,(IF(2-$F$21=0, 0, (IF(2-$F$21=1,(VLOOKUP(1,Tablas!$A$1495:$G$1497,4,TRUE)), (IF(2-$F$21=2, (VLOOKUP(2,Tablas!$A$1495:$G$1497,4,TRUE)), 0)))))), (IF($F$19=1,(IF(1-$F$21=0, 0, (IF(1-$F$21=1,(VLOOKUP(1,Tablas!$A$1495:$G$1497,4,TRUE)),0)))),0)))))))))))))), (IF($F$19=0, 0, (IF($F$21>$F$19, (VLOOKUP($F$19,Tablas!$A$1495:$G$1497,4,TRUE)), (IF($F$19=4,(IF(4-$F$21=0, 0, (IF(4-$F$21=1, (VLOOKUP(1,Tablas!$A$1495:$G$1497,4,TRUE)), (IF(4-$F$21=2, (VLOOKUP(2,Tablas!$A$1495:$G$1497,4,TRUE)), (IF(4-$F$21=3, (VLOOKUP(3,Tablas!$A$1495:$G$1497,4,TRUE)), (IF(4-$F$21=4, (VLOOKUP(3,Tablas!$A$1495:$G$1497,4,TRUE)), 0)))))))))), (IF($F$19=5,(IF(5-$F$21=0, (VLOOKUP(1,Tablas!$A$1495:$G$1497,4,TRUE)), (IF(5-$F$21=1, (VLOOKUP(1,Tablas!$A$1495:$G$1497,4,TRUE)), (IF(5-$F$21=2, (VLOOKUP(2,Tablas!$A$1495:$G$1497,4,TRUE)), (IF(5-$F$21=3, (VLOOKUP(3,Tablas!$A$1495:$G$1497,4,TRUE)), (IF(5-$F$21=4, (VLOOKUP(3,Tablas!$A$1495:$G$1497,4,TRUE)), (VLOOKUP(3,Tablas!$A$1495:$G$1497,4,TRUE)))))))))))), (IF($F$19=6,(IF(6-$F$21=0, (VLOOKUP(2,Tablas!$A$1495:$G$1497,4,TRUE)), (IF(6-$F$21=1, (VLOOKUP(2,Tablas!$A$1495:$G$1497,4,TRUE)), (IF(6-$F$21=2, (VLOOKUP(2,Tablas!$A$1495:$G$1497,4,TRUE)), (IF(6-$F$21=3, (VLOOKUP(3,Tablas!$A$1495:$G$1497,4,TRUE)), (IF(6-$F$21=4, (VLOOKUP(3,Tablas!$A$1495:$G$1497,4,TRUE)), (VLOOKUP(3,Tablas!$A$1495:$G$1497,4,TRUE)))))))))))), (IF($F$19>6,(IF(7-$F$21=0, (VLOOKUP(3,Tablas!$A$1495:$G$1497,4,TRUE)), (IF(7-$F$21=1, (VLOOKUP(3,Tablas!$A$1495:$G$1497,4,TRUE)), (IF(7-$F$21=2, (VLOOKUP(3,Tablas!$A$1495:$G$1497,4,TRUE)), (IF(7-$F$21=3, (VLOOKUP(3,Tablas!$A$1495:$G$1497,4,TRUE)), (IF(7-$F$21=4, (VLOOKUP(3,Tablas!$A$1495:$G$1497,4,TRUE)), (VLOOKUP(3,Tablas!$A$1495:$G$1497,4,TRUE)))))))))))), (IF($F$19=3,(IF(3-$F$21=0,0, (IF(3-$F$21=1,(VLOOKUP(1,Tablas!$A$1495:$G$1497,4,TRUE)), (IF(3-$F$21=2, (VLOOKUP(2,Tablas!$A$1495:$G$1497,4,TRUE)), (VLOOKUP(3,Tablas!$A$1495:$G$1497,4,TRUE)))))))), (IF($F$19=2,(IF(2-$F$21=0, 0, (IF(2-$F$21=1,(VLOOKUP(1,Tablas!$A$1495:$G$1497,4,TRUE)), (IF(2-$F$21=2, (VLOOKUP(2,Tablas!$A$1495:$G$1497,4,TRUE)), 0)))))), (IF($F$19=1,(IF(1-$F$21=0, 0, (IF(1-$F$21=1,(VLOOKUP(1,Tablas!$A$1495:$G$1497,4,TRUE)),0)))),0))))))))))))))))))) -> 3283.88
E41: Total de Prima neta | G41: =SUM(G38:G40) -> 124138.19 | H41: =SUM(H38:H40) -> 80089.89
E42: Tarifa administrativa anual | G42: 75 | H42: 75
E43: IVA (12%) | G43: =(G41+G42)*12% -> 14905.5828 | H43: =(H41+H42)*12% -> 9619.7868
E44: TOTAL de primera cuota | G44: =SUM(G41:G43) -> 139118.7728 | H44: =SUM(H41:H43) -> 89784.6768
E45: Costo de segunda cuota | G45: =G41+G43 - (G42)*0.12 -> 139034.7728 | H45: =H41+H43 - (H42)*0.12 -> 89700.6768
E46: TOTAL ANUAL | G46: =G44+G45 -> 278153.5456 | H46: =H44+H45 -> 179485.3536
E47: Ahorros en tarifas de prima para niños | G47: =IF($F$17=1,IF($F$19=0,0,IF($F$21=0,0,IF($F$21=1,(VLOOKUP(1,Tablas!$A$1495:$G$1497,3,TRUE)),(VLOOKUP(2,Tablas!$A$1495:$G$1497,3,TRUE))))), IF($F$19=0,0,IF($F$21=0,0,IF($F$21=1,(VLOOKUP(1,Tablas!$A$1495:$G$1497,3,TRUE)),IF($F$21=2,(VLOOKUP(2,Tablas!$A$1495:$G$1497,3,TRUE)), (VLOOKUP(3,Tablas!$A$1495:$G$1497,3,TRUE))))))) -> 8651.19 | H47: =IF($F$17=1,IF($F$19=0,0,IF($F$21=0,0,IF($F$21=1,(VLOOKUP(1,Tablas!$A$1495:$G$1497,4,TRUE)),(VLOOKUP(2,Tablas!$A$1495:$G$1497,4,TRUE))))), IF($F$19=0,0,IF($F$21=0,0,IF($F$21=1,(VLOOKUP(1,Tablas!$A$1495:$G$1497,4,TRUE)),IF($F$21=2,(VLOOKUP(2,Tablas!$A$1495:$G$1497,4,TRUE)), (VLOOKUP(3,Tablas!$A$1495:$G$1497,4,TRUE))))))) -> 5582.49
E49: Tarifas trimestrales
E50: Prima para Asegurado Titular | G50: =VLOOKUP($I$17,Tablas!$A$1054:$G$1120,3,TRUE) -> 23304.6 | H50: =VLOOKUP($I$17,Tablas!$A$1054:$G$1120,4,TRUE) -> 15035.625
E51: Prima para conyuge | G51: =IF($F$17=1,0,(VLOOKUP($I$19,Tablas!$A$1054:$G$1120,3,TRUE))) -> 38465.625 | H51: =IF($F$17=1,0,(VLOOKUP($I$19,Tablas!$A$1054:$G$1120,4,TRUE))) -> 24816.55
E52: Prima para hijo (s) | G52: =IF($F$17=1, (IF($F$19=0, 0, (IF($F$21>$F$19, (VLOOKUP($F$19,Tablas!$A$1121:$G$1123,3,TRUE)), (IF($F$19>4,(IF($F$21=0, (VLOOKUP(3,Tablas!$A$1121:$G$1123,3,TRUE)), (IF($F$21=1, (VLOOKUP(3,Tablas!$A$1121:$G$1123,3,TRUE)), (IF($F$21=2, (VLOOKUP(3,Tablas!$A$1121:$G$1123,3,TRUE)), (VLOOKUP(3,Tablas!$A$1121:$G$1123,3,TRUE)))))))), (IF($F$19=4,(IF(4-$F$21=0,(VLOOKUP(2,Tablas!$A$1121:$G$1123,3,TRUE)), (IF(4-$F$21=1,(VLOOKUP(2,Tablas!$A$1121:$G$1123,3,TRUE)), (IF(4-$F$21=2, (VLOOKUP(2,Tablas!$A$1121:$G$1123,3,TRUE)), (VLOOKUP(3,Tablas!$A$1121:$G$1123,3,TRUE)))))))), (IF($F$19=3,(IF(3-$F$21=0,(VLOOKUP(1,Tablas!$A$1121:$G$1123,3,TRUE)), (IF(3-$F$21=1,(VLOOKUP(1,Tablas!$A$1121:$G$1123,3,TRUE)), (IF(3-$F$21=2, (VLOOKUP(2,Tablas!$A$1121:$G$1123,3,TRUE)), (VLOOKUP(3,Tablas!$A$1121:$G$1123,3,TRUE)))))))), (IF($F$19=2,(IF(2-$F$21=0, 0, (IF(2-$F$21=1,(VLOOKUP(1,Tablas!$A$1121:$G$1123,3,TRUE)), (IF(2-$F$21=2, (VLOOKUP(2,Tablas!$A$1121:$G$1123,3,TRUE)), 0)))))), (IF($F$19=1,(IF(1-$F$21=0, 0, (IF(1-$F$21=1,(VLOOKUP(1,Tablas!$A$1121:$G$1123,3,TRUE)),0)))),0)))))))))))))), (IF($F$19=0, 0, (IF($F$21>$F$19, (VLOOKUP($F$19,Tablas!$A$1121:$G$1123,3,TRUE)), (IF($F$19=4,(IF(4-$F$21=0, 0, (IF(4-$F$21=1, (VLOOKUP(1,Tablas!$A$1121:$G$1123,3,TRUE)), (IF(4-$F$21=2, (VLOOKUP(2,Tablas!$A$1121:$G$1123,3,TRUE)), (IF(4-$F$21=3, (VLOOKUP(3,Tablas!$A$1121:$G$1123,3,TRUE)), (IF(4-$F$21=4, (VLOOKUP(3,Tablas!$A$1121:$G$1123,3,TRUE)), 0)))))))))), (IF($F$19=5,(IF(5-$F$21=0, (VLOOKUP(1,Tablas!$A$1121:$G$1123,3,TRUE)), (IF(5-$F$21=1, (VLOOKUP(1,Tablas!$A$1121:$G$1123,3,TRUE)), (IF(5-$F$21=2, (VLOOKUP(2,Tablas!$A$1121:$G$1123,3,TRUE)), (IF(5-$F$21=3, (VLOOKUP(3,Tablas!$A$1121:$G$1123,3,TRUE)), (IF(5-$F$21=4, (VLOOKUP(3,Tablas!$A$1121:$G$1123,3,TRUE)), (VLOOKUP(3,Tablas!$A$1121:$G$1123,3,TRUE)))))))))))), (IF($F$19=6,(IF(6-$F$21=0, (VLOOKUP(2,Tablas!$A$1121:$G$1123,3,TRUE)), (IF(6-$F$21=1, (VLOOKUP(2,Tablas!$A$1121:$G$1123,3,TRUE)), (IF(6-$F$21=2, (VLOOKUP(2,Tablas!$A$1121:$G$1123,3,TRUE)), (IF(6-$F$21=3, (VLOOKUP(3,Tablas!$A$1121:$G$1123,3,TRUE)), (IF(6-$F$21=4, (VLOOKUP(3,Tablas!$A$1121:$G$1123,3,TRUE)), (VLOOKUP(3,Tablas!$A$1121:$G$1123,3,TRUE)))))))))))), (IF($F$19>6,(IF(7-$F$21=0, (VLOOKUP(3,Tablas!$A$1121:$G$1123,3,TRUE)), (IF(7-$F$21=1, (VLOOKUP(3,Tablas!$A$1121:$G$1123,3,TRUE)), (IF(7-$F$21=2, (VLOOKUP(3,Tablas!$A$1121:$G$1123,3,TRUE)), (IF(7-$F$21=3, (VLOOKUP(3,Tablas!$A$1121:$G$1123,3,TRUE)), (IF(7-$F$21=4, (VLOOKUP(3,Tablas!$A$1121:$G$1123,3,TRUE)), (VLOOKUP(3,Tablas!$A$1121:$G$1123,3,TRUE)))))))))))), (IF($F$19=3,(IF(3-$F$21=0,0, (IF(3-$F$21=1,(VLOOKUP(1,Tablas!$A$1121:$G$1123,3,TRUE)), (IF(3-$F$21=2, (VLOOKUP(2,Tablas!$A$1121:$G$1123,3,TRUE)), (VLOOKUP(3,Tablas!$A$1121:$G$1123,3,TRUE)))))))), (IF($F$19=2,(IF(2-$F$21=0, 0, (IF(2-$F$21=1,(VLOOKUP(1,Tablas!$A$1121:$G$1123,3,TRUE)), (IF(2-$F$21=2, (VLOOKUP(2,Tablas!$A$1121:$G$1123,3,TRUE)), 0)))))), (IF($F$19=1,(IF(1-$F$21=0, 0, (IF(1-$F$21=1,(VLOOKUP(1,Tablas!$A$1121:$G$1123,3,TRUE)),0)))),0))))))))))))))))))) -> 2641.1 | H52: =IF($F$17=1, (IF($F$19=0, 0, (IF($F$21>$F$19, (VLOOKUP($F$19,Tablas!$A$1121:$G$1123,4,TRUE)), (IF($F$19>4,(IF($F$21=0, (VLOOKUP(3,Tablas!$A$1121:$G$1123,4,TRUE)), (IF($F$21=1, (VLOOKUP(3,Tablas!$A$1121:$G$1123,4,TRUE)), (IF($F$21=2, (VLOOKUP(3,Tablas!$A$1121:$G$1123,4,TRUE)), (VLOOKUP(3,Tablas!$A$1121:$G$1123,4,TRUE)))))))), (IF($F$19=4,(IF(4-$F$21=0,(VLOOKUP(2,Tablas!$A$1121:$G$1123,4,TRUE)), (IF(4-$F$21=1,(VLOOKUP(2,Tablas!$A$1121:$G$1123,4,TRUE)), (IF(4-$F$21=2, (VLOOKUP(2,Tablas!$A$1121:$G$1123,4,TRUE)), (VLOOKUP(3,Tablas!$A$1121:$G$1123,4,TRUE)))))))), (IF($F$19=3,(IF(3-$F$21=0,(VLOOKUP(1,Tablas!$A$1121:$G$1123,4,TRUE)), (IF(3-$F$21=1,(VLOOKUP(1,Tablas!$A$1121:$G$1123,4,TRUE)), (IF(3-$F$21=2, (VLOOKUP(2,Tablas!$A$1121:$G$1123,4,TRUE)), (VLOOKUP(3,Tablas!$A$1121:$G$1123,4,TRUE)))))))), (IF($F$19=2,(IF(2-$F$21=0, 0, (IF(2-$F$21=1,(VLOOKUP(1,Tablas!$A$1121:$G$1123,4,TRUE)), (IF(2-$F$21=2, (VLOOKUP(2,Tablas!$A$1121:$G$1123,4,TRUE)), 0)))))), (IF($F$19=1,(IF(1-$F$21=0, 0, (IF(1-$F$21=1,(VLOOKUP(1,Tablas!$A$1121:$G$1123,4,TRUE)),0)))),0)))))))))))))), (IF($F$19=0, 0, (IF($F$21>$F$19, (VLOOKUP($F$19,Tablas!$A$1121:$G$1123,4,TRUE)), (IF($F$19=4,(IF(4-$F$21=0, 0, (IF(4-$F$21=1, (VLOOKUP(1,Tablas!$A$1121:$G$1123,4,TRUE)), (IF(4-$F$21=2, (VLOOKUP(2,Tablas!$A$1121:$G$1123,4,TRUE)), (IF(4-$F$21=3, (VLOOKUP(3,Tablas!$A$1121:$G$1123,4,TRUE)), (IF(4-$F$21=4, (VLOOKUP(3,Tablas!$A$1121:$G$1123,4,TRUE)), 0)))))))))), (IF($F$19=5,(IF(5-$F$21=0, (VLOOKUP(1,Tablas!$A$1121:$G$1123,4,TRUE)), (IF(5-$F$21=1, (VLOOKUP(1,Tablas!$A$1121:$G$1123,4,TRUE)), (IF(5-$F$21=2, (VLOOKUP(2,Tablas!$A$1121:$G$1123,4,TRUE)), (IF(5-$F$21=3, (VLOOKUP(3,Tablas!$A$1121:$G$1123,4,TRUE)), (IF(5-$F$21=4, (VLOOKUP(3,Tablas!$A$1121:$G$1123,4,TRUE)), (VLOOKUP(3,Tablas!$A$1121:$G$1123,4,TRUE)))))))))))), (IF($F$19=6,(IF(6-$F$21=0, (VLOOKUP(2,Tablas!$A$1121:$G$1123,4,TRUE)), (IF(6-$F$21=1, (VLOOKUP(2,Tablas!$A$1121:$G$1123,4,TRUE)), (IF(6-$F$21=2, (VLOOKUP(2,Tablas!$A$1121:$G$1123,4,TRUE)), (IF(6-$F$21=3, (VLOOKUP(3,Tablas!$A$1121:$G$1123,4,TRUE)), (IF(6-$F$21=4, (VLOOKUP(3,Tablas!$A$1121:$G$1123,4,TRUE)), (VLOOKUP(3,Tablas!$A$1121:$G$1123,4,TRUE)))))))))))), (IF($F$19>6,(IF(7-$F$21=0, (VLOOKUP(3,Tablas!$A$1121:$G$1123,4,TRUE)), (IF(7-$F$21=1, (VLOOKUP(3,Tablas!$A$1121:$G$1123,4,TRUE)), (IF(7-$F$21=2, (VLOOKUP(3,Tablas!$A$1121:$G$1123,4,TRUE)), (IF(7-$F$21=3, (VLOOKUP(3,Tablas!$A$1121:$G$1123,4,TRUE)), (IF(7-$F$21=4, (VLOOKUP(3,Tablas!$A$1121:$G$1123,4,TRUE)), (VLOOKUP(3,Tablas!$A$1121:$G$1123,4,TRUE)))))))))))), (IF($F$19=3,(IF(3-$F$21=0,0, (IF(3-$F$21=1,(VLOOKUP(1,Tablas!$A$1121:$G$1123,4,TRUE)), (IF(3-$F$21=2, (VLOOKUP(2,Tablas!$A$1121:$G$1123,4,TRUE)), (VLOOKUP(3,Tablas!$A$1121:$G$1123,4,TRUE)))))))), (IF($F$19=2,(IF(2-$F$21=0, 0, (IF(2-$F$21=1,(VLOOKUP(1,Tablas!$A$1121:$G$1123,4,TRUE)), (IF(2-$F$21=2, (VLOOKUP(2,Tablas!$A$1121:$G$1123,4,TRUE)), 0)))))), (IF($F$19=1,(IF(1-$F$21=0, 0, (IF(1-$F$21=1,(VLOOKUP(1,Tablas!$A$1121:$G$1123,4,TRUE)),0)))),0))))))))))))))))))) -> 1703.9
E53: Total de Prima neta | G53: =SUM(G50:G52) -> 64411.325 | H53: =SUM(H50:H52) -> 41556.075
E54: Tarifa administrativa anual | G54: 75 | H54: 75
E55: IVA (12%) | G55: =(G53+G54)*12% -> 7738.359 | H55: =(H53+H54)*12% -> 4995.729
E56: TOTAL de primera cuota | G56: =SUM(G53:G55) -> 72224.684 | H56: =SUM(H53:H55) -> 46626.804
E57: Costo de tarifa trimestral 2 a 4 | G57: =G53+G55 -G54*12% -> 72140.684 | H57: =H53+H55 -H54*12% -> 46542.804
E58: TOTAL ANUAL | G58: =G56+(G57*3) -> 288646.736 | H58: =H56+(H57*3) -> 186255.216
E59: Ahorros en tarifas de prima para niños | G59: =IF($F$17=1,IF($F$19=0,0,IF($F$21=0,0,IF($F$21=1,(VLOOKUP(1,Tablas!$A$1121:$G$1123,3,TRUE)),(VLOOKUP(2,Tablas!$A$1121:$G$1123,3,TRUE))))), IF($F$19=0,0,IF($F$21=0,0,IF($F$21=1,(VLOOKUP(1,Tablas!$A$1121:$G$1123,3,TRUE)),IF($F$21=2,(VLOOKUP(2,Tablas!$A$1121:$G$1123,3,TRUE)), (VLOOKUP(3,Tablas!$A$1121:$G$1123,3,TRUE))))))) -> 4488.825 | H59: =IF($F$17=1,IF($F$19=0,0,IF($F$21=0,0,IF($F$21=1,(VLOOKUP(1,Tablas!$A$1121:$G$1123,4,TRUE)),(VLOOKUP(2,Tablas!$A$1121:$G$1123,4,TRUE))))), IF($F$19=0,0,IF($F$21=0,0,IF($F$21=1,(VLOOKUP(1,Tablas!$A$1121:$G$1123,4,TRUE)),IF($F$21=2,(VLOOKUP(2,Tablas!$A$1121:$G$1123,4,TRUE)), (VLOOKUP(3,Tablas!$A$1121:$G$1123,4,TRUE))))))) -> 2896.575
E62: Tarifas en US $ - Efectivas a partir del 1ro de enero de 2022
E63: Este presupuesto solamente tiene carácter informativo y en ningún momento expresa compromiso legal para suministrarle cobertura de seguro. La emisión de una póliza de seguro Bupa está sujeta a todas las evaluaciones de riesgo por parte de Bupa y a la recepción de todos los pagos de prima requeridos.

Sheet Global Elite
A15: GLOBAL ELITE HEALTH PLAN | D15: Nombre del Asegurado Titular: | F15: =+'INGRESO DE DATOS'!$D$14 -> NOMBRE COMPLETO
D17: Número de adultos en la póliza: | F17: =+'INGRESO DE DATOS'!$D$16 -> 2 | H17: Edad del Asegurado Titular: | I17: =+'INGRESO DE DATOS'!$D$18 -> 65
D19: Número de niños en la póliza: | F19: =+'INGRESO DE DATOS'!$H$16 -> 3 | H19: Edad del/la conyuge: | I19: =+'INGRESO DE DATOS'!$H$18 -> 71
E21: Número de niños menores de 10 años: | F21: =+'INGRESO DE DATOS'!$D$26 -> 2 | H21: Fecha de la cotización: | I21: =NOW() -> 2021-12-20T11:32:08.260
H22: FALSE
E23: DEDUCTIBLES | G23: PLAN 1 | H23: PLAN 2 | I23: PLAN 3 | J23: PLAN 4 | K23: PLAN 5
E24: En el país de residencia | G24: 250 | H24: 2000 | I24: 3500 | J24: 5000 | K24: 10000
E25: Fuera del país de residencia | G25: 5000 | H25: 2000 | I25: 3500 | J25: 5000 | K25: 10000
E27: Tarifas anuales
E28: Prima para Asegurado Titular | G28: =VLOOKUP($I$17,Tablas!$A$6:$G$72,3,TRUE) -> 28204.7 | H28: =VLOOKUP($I$17,Tablas!$A$6:$G$72,4,TRUE) -> 24721.4 | I28: =VLOOKUP($I$17,Tablas!$A$6:$G$72,5,TRUE) -> 19636.7 | J28: =VLOOKUP($I$17,Tablas!$A$6:$G$72,6,TRUE) -> 17027.2 | K28: =VLOOKUP($I$17,Tablas!$A$6:$G$72,7,TRUE) -> 12866.45
E29: Prima para conyuge | G29: =IF($F$17=1,0,(VLOOKUP($I$19,Tablas!$A$6:$G$72,3,TRUE))) -> 46945.5 | H29: =IF($F$17=1,0,(VLOOKUP($I$19,Tablas!$A$6:$G$72,4,TRUE))) -> 41148.5 | I29: =IF($F$17=1,0,(VLOOKUP($I$19,Tablas!$A$6:$G$72,5,TRUE))) -> 32798.95 | J29: =IF($F$17=1,0,(VLOOKUP($I$19,Tablas!$A$6:$G$72,6,TRUE))) -> 28439.3 | K29: =IF($F$17=1,0,(VLOOKUP($I$19,Tablas!$A$6:$G$72,7,TRUE))) -> 21489.7
E30: Prima para hijo (s) | G30: =IF($F$17=1, (IF($F$19=0, 0, (IF($F$21>$F$19, (VLOOKUP($F$19,Tablas!$A$73:$G$75,3,TRUE)), (IF($F$19>4,(IF($F$21=0, (VLOOKUP(3,Tablas!$A$73:$G$75,3,TRUE)), (IF($F$21=1, (VLOOKUP(3,Tablas!$A$73:$G$75,3,TRUE)), (IF($F$21=2, (VLOOKUP(3,Tablas!$A$73:$G$75,3,TRUE)), (VLOOKUP(3,Tablas!$A$73:$G$75,3,TRUE)))))))), (IF($F$19=4,(IF(4-$F$21=0,(VLOOKUP(2,Tablas!$A$73:$G$75,3,TRUE)), (IF(4-$F$21=1,(VLOOKUP(2,Tablas!$A$73:$G$75,3,TRUE)), (IF(4-$F$21=2, (VLOOKUP(2,Tablas!$A$73:$G$75,3,TRUE)), (VLOOKUP(3,Tablas!$A$73:$G$75,3,TRUE)))))))), (IF($F$19=3,(IF(3-$F$21=0,(VLOOKUP(1,Tablas!$A$73:$G$75,3,TRUE)), (IF(3-$F$21=1,(VLOOKUP(1,Tablas!$A$73:$G$75,3,TRUE)), (IF(3-$F$21=2, (VLOOKUP(2,Tablas!$A$73:$G$75,3,TRUE)), (VLOOKUP(3,Tablas!$A$73:$G$75,3,TRUE)))))))), (IF($F$19=2,(IF(2-$F$21=0, 0, (IF(2-$F$21=1,(VLOOKUP(1,Tablas!$A$73:$G$75,3,TRUE)), (IF(2-$F$21=2, (VLOOKUP(2,Tablas!$A$73:$G$75,3,TRUE)), 0)))))), (IF($F$19=1,(IF(1-$F$21=0, 0, (IF(1-$F$21=1,(VLOOKUP(1,Tablas!$A$73:$G$75,3,TRUE)),0)))),0)))))))))))))), (IF($F$19=0, 0, (IF($F$21>$F$19, (VLOOKUP($F$19,Tablas!$A$73:$G$75,3,TRUE)), (IF($F$19=4,(IF(4-$F$21=0, 0, (IF(4-$F$21=1, (VLOOKUP(1,Tablas!$A$73:$G$75,3,TRUE)), (IF(4-$F$21=2, (VLOOKUP(2,Tablas!$A$73:$G$75,3,TRUE)), (IF(4-$F$21=3, (VLOOKUP(3,Tablas!$A$73:$G$75,3,TRUE)), (IF(4-$F$21=4, (VLOOKUP(3,Tablas!$A$73:$G$75,3,TRUE)), 0)))))))))), (IF($F$19=5,(IF(5-$F$21=0, (VLOOKUP(1,Tablas!$A$73:$G$75,3,TRUE)), (IF(5-$F$21=1, (VLOOKUP(1,Tablas!$A$73:$G$75,3,TRUE)), (IF(5-$F$21=2, (VLOOKUP(2,Tablas!$A$73:$G$75,3,TRUE)), (IF(5-$F$21=3, (VLOOKUP(3,Tablas!$A$73:$G$75,3,TRUE)), (IF(5-$F$21=4, (VLOOKUP(3,Tablas!$A$73:$G$75,3,TRUE)), (VLOOKUP(3,Tablas!$A$73:$G$75,3,TRUE)))))))))))), (IF($F$19=6,(IF(6-$F$21=0, (VLOOKUP(2,Tablas!$A$73:$G$75,3,TRUE)), (IF(6-$F$21=1, (VLOOKUP(2,Tablas!$A$73:$G$75,3,TRUE)), (IF(6-$F$21=2, (VLOOKUP(2,Tablas!$A$73:$G$75,3,TRUE)), (IF(6-$F$21=3, (VLOOKUP(3,Tablas!$A$73:$G$75,3,TRUE)), (IF(6-$F$21=4, (VLOOKUP(3,Tablas!$A$73:$G$75,3,TRUE)), (VLOOKUP(3,Tablas!$A$73:$G$75,3,TRUE)))))))))))), (IF($F$19>6,(IF(7-$F$21=0, (VLOOKUP(3,Tablas!$A$73:$G$75,3,TRUE)), (IF(7-$F$21=1, (VLOOKUP(3,Tablas!$A$73:$G$75,3,TRUE)), (IF(7-$F$21=2, (VLOOKUP(3,Tablas!$A$73:$G$75,3,TRUE)), (IF(7-$F$21=3, (VLOOKUP(3,Tablas!$A$73:$G$75,3,TRUE)), (IF(7-$F$21=4, (VLOOKUP(3,Tablas!$A$73:$G$75,3,TRUE)), (VLOOKUP(3,Tablas!$A$73:$G$75,3,TRUE)))))))))))), (IF($F$19=3,(IF(3-$F$21=0,0, (IF(3-$F$21=1,(VLOOKUP(1,Tablas!$A$73:$G$75,3,TRUE)), (IF(3-$F$21=2, (VLOOKUP(2,Tablas!$A$73:$G$75,3,TRUE)), (VLOOKUP(3,Tablas!$A$73:$G$75,3,TRUE)))))))), (IF($F$19=2,(IF(2-$F$21=0, 0, (IF(2-$F$21=1,(VLOOKUP(1,Tablas!$A$73:$G$75,3,TRUE)), (IF(2-$F$21=2, (VLOOKUP(2,Tablas!$A$73:$G$75,3,TRUE)), 0)))))), (IF($F$19=1,(IF(1-$F$21=0, 0, (IF(1-$F$21=1,(VLOOKUP(1,Tablas!$A$73:$G$75,3,TRUE)),0)))),0))))))))))))))))))) -> 3209.6 | H30: =IF($F$17=1, (IF($F$19=0, 0, (IF($F$21>$F$19, (VLOOKUP($F$19,Tablas!$A$73:$G$75,4,TRUE)), (IF($F$19>4,(IF($F$21=0, (VLOOKUP(3,Tablas!$A$73:$G$75,4,TRUE)), (IF($F$21=1, (VLOOKUP(3,Tablas!$A$73:$G$75,4,TRUE)), (IF($F$21=2, (VLOOKUP(3,Tablas!$A$73:$G$75,4,TRUE)), (VLOOKUP(3,Tablas!$A$73:$G$75,4,TRUE)))))))), (IF($F$19=4,(IF(4-$F$21=0,(VLOOKUP(2,Tablas!$A$73:$G$75,4,TRUE)), (IF(4-$F$21=1,(VLOOKUP(2,Tablas!$A$73:$G$75,4,TRUE)), (IF(4-$F$21=2, (VLOOKUP(2,Tablas!$A$73:$G$75,4,TRUE)), (VLOOKUP(3,Tablas!$A$73:$G$75,4,TRUE)))))))), (IF($F$19=3,(IF(3-$F$21=0,(VLOOKUP(1,Tablas!$A$73:$G$75,4,TRUE)), (IF(3-$F$21=1,(VLOOKUP(1,Tablas!$A$73:$G$75,4,TRUE)), (IF(3-$F$21=2, (VLOOKUP(2,Tablas!$A$73:$G$75,4,TRUE)), (VLOOKUP(3,Tablas!$A$73:$G$75,4,TRUE)))))))), (IF($F$19=2,(IF(2-$F$21=0, 0, (IF(2-$F$21=1,(VLOOKUP(1,Tablas!$A$73:$G$75,4,TRUE)), (IF(2-$F$21=2, (VLOOKUP(2,Tablas!$A$73:$G$75,4,TRUE)), 0)))))), (IF($F$19=1,(IF(1-$F$21=0, 0, (IF(1-$F$21=1,(VLOOKUP(1,Tablas!$A$73:$G$75,4,TRUE)),0)))),0)))))))))))))), (IF($F$19=0, 0, (IF($F$21>$F$19, (VLOOKUP($F$19,Tablas!$A$73:$G$75,4,TRUE)), (IF($F$19=4,(IF(4-$F$21=0, 0, (IF(4-$F$21=1, (VLOOKUP(1,Tablas!$A$73:$G$75,4,TRUE)), (IF(4-$F$21=2, (VLOOKUP(2,Tablas!$A$73:$G$75,4,TRUE)), (IF(4-$F$21=3, (VLOOKUP(3,Tablas!$A$73:$G$75,4,TRUE)), (IF(4-$F$21=4, (VLOOKUP(3,Tablas!$A$73:$G$75,4,TRUE)), 0)))))))))), (IF($F$19=5,(IF(5-$F$21=0, (VLOOKUP(1,Tablas!$A$73:$G$75,4,TRUE)), (IF(5-$F$21=1, (VLOOKUP(1,Tablas!$A$73:$G$75,4,TRUE)), (IF(5-$F$21=2, (VLOOKUP(2,Tablas!$A$73:$G$75,4,TRUE)), (IF(5-$F$21=3, (VLOOKUP(3,Tablas!$A$73:$G$75,4,TRUE)), (IF(5-$F$21=4, (VLOOKUP(3,Tablas!$A$73:$G$75,4,TRUE)), (VLOOKUP(3,Tablas!$A$73:$G$75,4,TRUE)))))))))))), (IF($F$19=6,(IF(6-$F$21=0, (VLOOKUP(2,Tablas!$A$73:$G$75,4,TRUE)), (IF(6-$F$21=1, (VLOOKUP(2,Tablas!$A$73:$G$75,4,TRUE)), (IF(6-$F$21=2, (VLOOKUP(2,Tablas!$A$73:$G$75,4,TRUE)), (IF(6-$F$21=3, (VLOOKUP(3,Tablas!$A$73:$G$75,4,TRUE)), (IF(6-$F$21=4, (VLOOKUP(3,Tablas!$A$73:$G$75,4,TRUE)), (VLOOKUP(3,Tablas!$A$73:$G$75,4,TRUE)))))))))))), (IF($F$19>6,(IF(7-$F$21=0, (VLOOKUP(3,Tablas!$A$73:$G$75,4,TRUE)), (IF(7-$F$21=1, (VLOOKUP(3,Tablas!$A$73:$G$75,4,TRUE)), (IF(7-$F$21=2, (VLOOKUP(3,Tablas!$A$73:$G$75,4,TRUE)), (IF(7-$F$21=3, (VLOOKUP(3,Tablas!$A$73:$G$75,4,TRUE)), (IF(7-$F$21=4, (VLOOKUP(3,Tablas!$A$73:$G$75,4,TRUE)), (VLOOKUP(3,Tablas!$A$73:$G$75,4,TRUE)))))))))))), (IF($F$19=3,(IF(3-$F$21=0,0, (IF(3-$F$21=1,(VLOOKUP(1,Tablas!$A$73:$G$75,4,TRUE)), (IF(3-$F$21=2, (VLOOKUP(2,Tablas!$A$73:$G$75,4,TRUE)), (VLOOKUP(3,Tablas!$A$73:$G$75,4,TRUE)))))))), (IF($F$19=2,(IF(2-$F$21=0, 0, (IF(2-$F$21=1,(VLOOKUP(1,Tablas!$A$73:$G$75,4,TRUE)), (IF(2-$F$21=2, (VLOOKUP(2,Tablas!$A$73:$G$75,4,TRUE)), 0)))))), (IF($F$19=1,(IF(1-$F$21=0, 0, (IF(1-$F$21=1,(VLOOKUP(1,Tablas!$A$73:$G$75,4,TRUE)),0)))),0))))))))))))))))))) -> 2811.8 | I30: =IF($F$17=1, (IF($F$19=0, 0, (IF($F$21>$F$19, (VLOOKUP($F$19,Tablas!$A$73:$G$75,5,TRUE)), (IF($F$19>4,(IF($F$21=0, (VLOOKUP(3,Tablas!$A$73:$G$75,5,TRUE)), (IF($F$21=1, (VLOOKUP(3,Tablas!$A$73:$G$75,5,TRUE)), (IF($F$21=2, (VLOOKUP(3,Tablas!$A$73:$G$75,5,TRUE)), (VLOOKUP(3,Tablas!$A$73:$G$75,5,TRUE)))))))), (IF($F$19=4,(IF(4-$F$21=0,(VLOOKUP(2,Tablas!$A$73:$G$75,5,TRUE)), (IF(4-$F$21=1,(VLOOKUP(2,Tablas!$A$73:$G$75,5,TRUE)), (IF(4-$F$21=2, (VLOOKUP(2,Tablas!$A$73:$G$75,5,TRUE)), (VLOOKUP(3,Tablas!$A$73:$G$75,5,TRUE)))))))), (IF($F$19=3,(IF(3-$F$21=0,(VLOOKUP(1,Tablas!$A$73:$G$75,5,TRUE)), (IF(3-$F$21=1,(VLOOKUP(1,Tablas!$A$73:$G$75,5,TRUE)), (IF(3-$F$21=2, (VLOOKUP(2,Tablas!$A$73:$G$75,5,TRUE)), (VLOOKUP(3,Tablas!$A$73:$G$75,5,TRUE)))))))), (IF($F$19=2,(IF(2-$F$21=0, 0, (IF(2-$F$21=1,(VLOOKUP(1,Tablas!$A$73:$G$75,5,TRUE)), (IF(2-$F$21=2, (VLOOKUP(2,Tablas!$A$73:$G$75,5,TRUE)), 0)))))), (IF($F$19=1,(IF(1-$F$21=0, 0, (IF(1-$F$21=1,(VLOOKUP(1,Tablas!$A$73:$G$75,5,TRUE)),0)))),0)))))))))))))), (IF($F$19=0, 0, (IF($F$21>$F$19, (VLOOKUP($F$19,Tablas!$A$73:$G$75,5,TRUE)), (IF($F$19=4,(IF(4-$F$21=0, 0, (IF(4-$F$21=1, (VLOOKUP(1,Tablas!$A$73:$G$75,5,TRUE)), (IF(4-$F$21=2, (VLOOKUP(2,Tablas!$A$73:$G$75,5,TRUE)), (IF(4-$F$21=3, (VLOOKUP(3,Tablas!$A$73:$G$75,5,TRUE)), (IF(4-$F$21=4, (VLOOKUP(3,Tablas!$A$73:$G$75,5,TRUE)), 0)))))))))), (IF($F$19=5,(IF(5-$F$21=0, (VLOOKUP(1,Tablas!$A$73:$G$75,5,TRUE)), (IF(5-$F$21=1, (VLOOKUP(1,Tablas!$A$73:$G$75,5,TRUE)), (IF(5-$F$21=2, (VLOOKUP(2,Tablas!$A$73:$G$75,5,TRUE)), (IF(5-$F$21=3, (VLOOKUP(3,Tablas!$A$73:$G$75,5,TRUE)), (IF(5-$F$21=4, (VLOOKUP(3,Tablas!$A$73:$G$75,5,TRUE)), (VLOOKUP(3,Tablas!$A$73:$G$75,5,TRUE)))))))))))), (IF($F$19=6,(IF(6-$F$21=0, (VLOOKUP(2,Tablas!$A$73:$G$75,5,TRUE)), (IF(6-$F$21=1, (VLOOKUP(2,Tablas!$A$73:$G$75,5,TRUE)), (IF(6-$F$21=2, (VLOOKUP(2,Tablas!$A$73:$G$75,5,TRUE)), (IF(6-$F$21=3, (VLOOKUP(3,Tablas!$A$73:$G$75,5,TRUE)), (IF(6-$F$21=4, (VLOOKUP(3,Tablas!$A$73:$G$75,5,TRUE)), (VLOOKUP(3,Tablas!$A$73:$G$75,5,TRUE)))))))))))), (IF($F$19>6,(IF(7-$F$21=0, (VLOOKUP(3,Tablas!$A$73:$G$75,5,TRUE)), (IF(7-$F$21=1, (VLOOKUP(3,Tablas!$A$73:$G$75,5,TRUE)), (IF(7-$F$21=2, (VLOOKUP(3,Tablas!$A$73:$G$75,5,TRUE)), (IF(7-$F$21=3, (VLOOKUP(3,Tablas!$A$73:$G$75,5,TRUE)), (IF(7-$F$21=4, (VLOOKUP(3,Tablas!$A$73:$G$75,5,TRUE)), (VLOOKUP(3,Tablas!$A$73:$G$75,5,TRUE)))))))))))), (IF($F$19=3,(IF(3-$F$21=0,0, (IF(3-$F$21=1,(VLOOKUP(1,Tablas!$A$73:$G$75,5,TRUE)), (IF(3-$F$21=2, (VLOOKUP(2,Tablas!$A$73:$G$75,5,TRUE)), (VLOOKUP(3,Tablas!$A$73:$G$75,5,TRUE)))))))), (IF($F$19=2,(IF(2-$F$21=0, 0, (IF(2-$F$21=1,(VLOOKUP(1,Tablas!$A$73:$G$75,5,TRUE)), (IF(2-$F$21=2, (VLOOKUP(2,Tablas!$A$73:$G$75,5,TRUE)), 0)))))), (IF($F$19=1,(IF(1-$F$21=0, 0, (IF(1-$F$21=1,(VLOOKUP(1,Tablas!$A$73:$G$75,5,TRUE)),0)))),0))))))))))))))))))) -> 2322.2 | J30: =IF($F$17=1, (IF($F$19=0, 0, (IF($F$21>$F$19, (VLOOKUP($F$19,Tablas!$A$73:$G$75,6,TRUE)), (IF($F$19>4,(IF($F$21=0, (VLOOKUP(3,Tablas!$A$73:$G$75,6,TRUE)), (IF($F$21=1, (VLOOKUP(3,Tablas!$A$73:$G$75,6,TRUE)), (IF($F$21=2, (VLOOKUP(3,Tablas!$A$73:$G$75,6,TRUE)), (VLOOKUP(3,Tablas!$A$73:$G$75,6,TRUE)))))))), (IF($F$19=4,(IF(4-$F$21=0,(VLOOKUP(2,Tablas!$A$73:$G$75,6,TRUE)), (IF(4-$F$21=1,(VLOOKUP(2,Tablas!$A$73:$G$75,6,TRUE)), (IF(4-$F$21=2, (VLOOKUP(2,Tablas!$A$73:$G$75,6,TRUE)), (VLOOKUP(3,Tablas!$A$73:$G$75,6,TRUE)))))))), (IF($F$19=3,(IF(3-$F$21=0,(VLOOKUP(1,Tablas!$A$73:$G$75,6,TRUE)), (IF(3-$F$21=1,(VLOOKUP(1,Tablas!$A$73:$G$75,6,TRUE)), (IF(3-$F$21=2, (VLOOKUP(2,Tablas!$A$73:$G$75,6,TRUE)), (VLOOKUP(3,Tablas!$A$73:$G$75,6,TRUE)))))))), (IF($F$19=2,(IF(2-$F$21=0, 0, (IF(2-$F$21=1,(VLOOKUP(1,Tablas!$A$73:$G$75,6,TRUE)), (IF(2-$F$21=2, (VLOOKUP(2,Tablas!$A$73:$G$75,6,TRUE)), 0)))))), (IF($F$19=1,(IF(1-$F$21=0, 0, (IF(1-$F$21=1,(VLOOKUP(1,Tablas!$A$73:$G$75,6,TRUE)),0)))),0)))))))))))))), (IF($F$19=0, 0, (IF($F$21>$F$19, (VLOOKUP($F$19,Tablas!$A$73:$G$75,6,TRUE)), (IF($F$19=4,(IF(4-$F$21=0, 0, (IF(4-$F$21=1, (VLOOKUP(1,Tablas!$A$73:$G$75,6,TRUE)), (IF(4-$F$21=2, (VLOOKUP(2,Tablas!$A$73:$G$75,6,TRUE)), (IF(4-$F$21=3, (VLOOKUP(3,Tablas!$A$73:$G$75,6,TRUE)), (IF(4-$F$21=4, (VLOOKUP(3,Tablas!$A$73:$G$75,6,TRUE)), 0)))))))))), (IF($F$19=5,(IF(5-$F$21=0, (VLOOKUP(1,Tablas!$A$73:$G$75,6,TRUE)), (IF(5-$F$21=1, (VLOOKUP(1,Tablas!$A$73:$G$75,6,TRUE)), (IF(5-$F$21=2, (VLOOKUP(2,Tablas!$A$73:$G$75,6,TRUE)), (IF(5-$F$21=3, (VLOOKUP(3,Tablas!$A$73:$G$75,6,TRUE)), (IF(5-$F$21=4, (VLOOKUP(3,Tablas!$A$73:$G$75,6,TRUE)), (VLOOKUP(3,Tablas!$A$73:$G$75,6,TRUE)))))))))))), (IF($F$19=6,(IF(6-$F$21=0, (VLOOKUP(2,Tablas!$A$73:$G$75,6,TRUE)), (IF(6-$F$21=1, (VLOOKUP(2,Tablas!$A$73:$G$75,6,TRUE)), (IF(6-$F$21=2, (VLOOKUP(2,Tablas!$A$73:$G$75,6,TRUE)), (IF(6-$F$21=3, (VLOOKUP(3,Tablas!$A$73:$G$75,6,TRUE)), (IF(6-$F$21=4, (VLOOKUP(3,Tablas!$A$73:$G$75,6,TRUE)), (VLOOKUP(3,Tablas!$A$73:$G$75,6,TRUE)))))))))))), (IF($F$19>6,(IF(7-$F$21=0, (VLOOKUP(3,Tablas!$A$73:$G$75,6,TRUE)), (IF(7-$F$21=1, (VLOOKUP(3,Tablas!$A$73:$G$75,6,TRUE)), (IF(7-$F$21=2, (VLOOKUP(3,Tablas!$A$73:$G$75,6,TRUE)), (IF(7-$F$21=3, (VLOOKUP(3,Tablas!$A$73:$G$75,6,TRUE)), (IF(7-$F$21=4, (VLOOKUP(3,Tablas!$A$73:$G$75,6,TRUE)), (VLOOKUP(3,Tablas!$A$73:$G$75,6,TRUE)))))))))))), (IF($F$19=3,(IF(3-$F$21=0,0, (IF(3-$F$21=1,(VLOOKUP(1,Tablas!$A$73:$G$75,6,TRUE)), (IF(3-$F$21=2, (VLOOKUP(2,Tablas!$A$73:$G$75,6,TRUE)), (VLOOKUP(3,Tablas!$A$73:$G$75,6,TRUE)))))))), (IF($F$19=2,(IF(2-$F$21=0, 0, (IF(2-$F$21=1,(VLOOKUP(1,Tablas!$A$73:$G$75,6,TRUE)), (IF(2-$F$21=2, (VLOOKUP(2,Tablas!$A$73:$G$75,6,TRUE)), 0)))))), (IF($F$19=1,(IF(1-$F$21=0, 0, (IF(1-$F$21=1,(VLOOKUP(1,Tablas!$A$73:$G$75,6,TRUE)),0)))),0))))))))))))))))))) -> 2015.35 | K30: =IF($F$17=1, (IF($F$19=0, 0, (IF($F$21>$F$19, (VLOOKUP($F$19,Tablas!$A$73:$G$75,7,TRUE)), (IF($F$19>4,(IF($F$21=0, (VLOOKUP(3,Tablas!$A$73:$G$75,7,TRUE)), (IF($F$21=1, (VLOOKUP(3,Tablas!$A$73:$G$75,7,TRUE)), (IF($F$21=2, (VLOOKUP(3,Tablas!$A$73:$G$75,7,TRUE)), (VLOOKUP(3,Tablas!$A$73:$G$75,7,TRUE)))))))), (IF($F$19=4,(IF(4-$F$21=0,(VLOOKUP(2,Tablas!$A$73:$G$75,7,TRUE)), (IF(4-$F$21=1,(VLOOKUP(2,Tablas!$A$73:$G$75,7,TRUE)), (IF(4-$F$21=2, (VLOOKUP(2,Tablas!$A$73:$G$75,7,TRUE)), (VLOOKUP(3,Tablas!$A$73:$G$75,7,TRUE)))))))), (IF($F$19=3,(IF(3-$F$21=0,(VLOOKUP(1,Tablas!$A$73:$G$75,7,TRUE)), (IF(3-$F$21=1,(VLOOKUP(1,Tablas!$A$73:$G$75,7,TRUE)), (IF(3-$F$21=2, (VLOOKUP(2,Tablas!$A$73:$G$75,7,TRUE)), (VLOOKUP(3,Tablas!$A$73:$G$75,7,TRUE)))))))), (IF($F$19=2,(IF(2-$F$21=0, 0, (IF(2-$F$21=1,(VLOOKUP(1,Tablas!$A$73:$G$75,7,TRUE)), (IF(2-$F$21=2, (VLOOKUP(2,Tablas!$A$73:$G$75,7,TRUE)), 0)))))), (IF($F$19=1,(IF(1-$F$21=0, 0, (IF(1-$F$21=1,(VLOOKUP(1,Tablas!$A$73:$G$75,7,TRUE)),0)))),0)))))))))))))), (IF($F$19=0, 0, (IF($F$21>$F$19, (VLOOKUP($F$19,Tablas!$A$73:$G$75,7,TRUE)), (IF($F$19=4,(IF(4-$F$21=0, 0, (IF(4-$F$21=1, (VLOOKUP(1,Tablas!$A$73:$G$75,7,TRUE)), (IF(4-$F$21=2, (VLOOKUP(2,Tablas!$A$73:$G$75,7,TRUE)), (IF(4-$F$21=3, (VLOOKUP(3,Tablas!$A$73:$G$75,7,TRUE)), (IF(4-$F$21=4, (VLOOKUP(3,Tablas!$A$73:$G$75,7,TRUE)), 0)))))))))), (IF($F$19=5,(IF(5-$F$21=0, (VLOOKUP(1,Tablas!$A$73:$G$75,7,TRUE)), (IF(5-$F$21=1, (VLOOKUP(1,Tablas!$A$73:$G$75,7,TRUE)), (IF(5-$F$21=2, (VLOOKUP(2,Tablas!$A$73:$G$75,7,TRUE)), (IF(5-$F$21=3, (VLOOKUP(3,Tablas!$A$73:$G$75,7,TRUE)), (IF(5-$F$21=4, (VLOOKUP(3,Tablas!$A$73:$G$75,7,TRUE)), (VLOOKUP(3,Tablas!$A$73:$G$75,7,TRUE)))))))))))), (IF($F$19=6,(IF(6-$F$21=0, (VLOOKUP(2,Tablas!$A$73:$G$75,7,TRUE)), (IF(6-$F$21=1, (VLOOKUP(2,Tablas!$A$73:$G$75,7,TRUE)), (IF(6-$F$21=2, (VLOOKUP(2,Tablas!$A$73:$G$75,7,TRUE)), (IF(6-$F$21=3, (VLOOKUP(3,Tablas!$A$73:$G$75,7,TRUE)), (IF(6-$F$21=4, (VLOOKUP(3,Tablas!$A$73:$G$75,7,TRUE)), (VLOOKUP(3,Tablas!$A$73:$G$75,7,TRUE)))))))))))), (IF($F$19>6,(IF(7-$F$21=0, (VLOOKUP(3,Tablas!$A$73:$G$75,7,TRUE)), (IF(7-$F$21=1, (VLOOKUP(3,Tablas!$A$73:$G$75,7,TRUE)), (IF(7-$F$21=2, (VLOOKUP(3,Tablas!$A$73:$G$75,7,TRUE)), (IF(7-$F$21=3, (VLOOKUP(3,Tablas!$A$73:$G$75,7,TRUE)), (IF(7-$F$21=4, (VLOOKUP(3,Tablas!$A$73:$G$75,7,TRUE)), (VLOOKUP(3,Tablas!$A$73:$G$75,7,TRUE)))))))))))), (IF($F$19=3,(IF(3-$F$21=0,0, (IF(3-$F$21=1,(VLOOKUP(1,Tablas!$A$73:$G$75,7,TRUE)), (IF(3-$F$21=2, (VLOOKUP(2,Tablas!$A$73:$G$75,7,TRUE)), (VLOOKUP(3,Tablas!$A$73:$G$75,7,TRUE)))))))), (IF($F$19=2,(IF(2-$F$21=0, 0, (IF(2-$F$21=1,(VLOOKUP(1,Tablas!$A$73:$G$75,7,TRUE)), (IF(2-$F$21=2, (VLOOKUP(2,Tablas!$A$73:$G$75,7,TRUE)), 0)))))), (IF($F$19=1,(IF(1-$F$21=0, 0, (IF(1-$F$21=1,(VLOOKUP(1,Tablas!$A$73:$G$75,7,TRUE)),0)))),0))))))))))))))))))) -> 1522.35
E31: Total de Prima neta | G31: =SUM(G28:G30) -> 78359.8 | H31: =SUM(H28:H30) -> 68681.7 | I31: 54757.85 | J31: =SUM(J28:J30) -> 47481.85 | K31: 35878.5
E32: Tarifa administrativa anual | G32: 75 | H32: 75 | I32: 75 | J32: 75 | K32: 75
E33: IVA (12%) | G33: =(G31+G32)*12% -> 9412.176 | H33: =(H31+H32)*12% -> 8250.804 | I33: 6579.942 | J33: =(J31+J32)*12% -> 5706.822 | K33: 4314.42
E34: TOTAL ANUAL | G34: =SUM(G31:G33) -> 87846.976 | H34: =SUM(H31:H33) -> 77007.504 | I34: =SUM(I31:I33) -> 61412.792 | J34: =SUM(J31:J33) -> 53263.672 | K34: =SUM(K31:K33) -> 40267.92
E35: Ahorros en tarifas de prima para niños | G35: =IF($F$17=1,IF($F$19=0,0,IF($F$21=0,0,IF($F$21=1,(VLOOKUP(1,Tablas!$A$73:$G$75,3,TRUE)),(VLOOKUP(2,Tablas!$A$73:$G$75,3,TRUE))))), IF($F$19=0,0,IF($F$21=0,0,IF($F$21=1,(VLOOKUP(1,Tablas!$A$73:$G$75,3,TRUE)),IF($F$21=2,(VLOOKUP(2,Tablas!$A$73:$G$75,3,TRUE)), (VLOOKUP(3,Tablas!$A$73:$G$75,3,TRUE))))))) -> 5455.3 | H35: =IF($F$17=1,IF($F$19=0,0,IF($F$21=0,0,IF($F$21=1,(VLOOKUP(1,Tablas!$A$73:$G$75,4,TRUE)),(VLOOKUP(2,Tablas!$A$73:$G$75,4,TRUE))))), IF($F$19=0,0,IF($F$21=0,0,IF($F$21=1,(VLOOKUP(1,Tablas!$A$73:$G$75,4,TRUE)),IF($F$21=2,(VLOOKUP(2,Tablas!$A$73:$G$75,4,TRUE)), (VLOOKUP(3,Tablas!$A$73:$G$75,4,TRUE))))))) -> 4782.1 | I35: =IF($F$17=1,IF($F$19=0,0,IF($F$21=0,0,IF($F$21=1,(VLOOKUP(1,Tablas!$A$73:$G$75,5,TRUE)),(VLOOKUP(2,Tablas!$A$73:$G$75,5,TRUE))))), IF($F$19=0,0,IF($F$21=0,0,IF($F$21=1,(VLOOKUP(1,Tablas!$A$73:$G$75,5,TRUE)),IF($F$21=2,(VLOOKUP(2,Tablas!$A$73:$G$75,5,TRUE)), (VLOOKUP(3,Tablas!$A$73:$G$75,5,TRUE))))))) -> 3947.4 | J35: =IF($F$17=1,IF($F$19=0,0,IF($F$21=0,0,IF($F$21=1,(VLOOKUP(1,Tablas!$A$73:$G$75,6,TRUE)),(VLOOKUP(2,Tablas!$A$73:$G$75,6,TRUE))))), IF($F$19=0,0,IF($F$21=0,0,IF($F$21=1,(VLOOKUP(1,Tablas!$A$73:$G$75,6,TRUE)),IF($F$21=2,(VLOOKUP(2,Tablas!$A$73:$G$75,6,TRUE)), (VLOOKUP(3,Tablas!$A$73:$G$75,6,TRUE))))))) -> 3423.8 | K35: =IF($F$17=1,IF($F$19=0,0,IF($F$21=0,0,IF($F$21=1,(VLOOKUP(1,Tablas!$A$73:$G$75,7,TRUE)),(VLOOKUP(2,Tablas!$A$73:$G$75,7,TRUE))))), IF($F$19=0,0,IF($F$21=0,0,IF($F$21=1,(VLOOKUP(1,Tablas!$A$73:$G$75,7,TRUE)),IF($F$21=2,(VLOOKUP(2,Tablas!$A$73:$G$75,7,TRUE)), (VLOOKUP(3,Tablas!$A$73:$G$75,7,TRUE))))))) -> 2587.4
E37: Tarifas semi anuales
E38: Prima para Asegurado Titular | G38: =VLOOKUP($I$17,Tablas!$A$455:$G$521,3,TRUE) -> 14948.491 | H38: =VLOOKUP($I$17,Tablas!$A$455:$G$521,4,TRUE) -> 13102.342 | I38: =VLOOKUP($I$17,Tablas!$A$455:$G$521,5,TRUE) -> 10407.451 | J38: =VLOOKUP($I$17,Tablas!$A$455:$G$521,6,TRUE) -> 9024.416 | K38: =VLOOKUP($I$17,Tablas!$A$455:$G$521,7,TRUE) -> 6819.2185
E39: Prima para conyuge | G39: =IF($F$17=1,0,(VLOOKUP($I$19,Tablas!$A$455:$G$521,3,TRUE))) -> 24881.115 | H39: =IF($F$17=1,0,(VLOOKUP($I$19,Tablas!$A$455:$G$521,4,TRUE))) -> 21808.705 | I39: =IF($F$17=1,0,(VLOOKUP($I$19,Tablas!$A$455:$G$521,5,TRUE))) -> 17383.4435 | J39: =IF($F$17=1,0,(VLOOKUP($I$19,Tablas!$A$455:$G$521,6,TRUE))) -> 15072.829 | K39: =IF($F$17=1,0,(VLOOKUP($I$19,Tablas!$A$455:$G$521,7,TRUE))) -> 11389.541
E40: Prima para hijo (s) | G40: =IF($F$17=1, (IF($F$19=0, 0, (IF($F$21>$F$19, (VLOOKUP($F$19,Tablas!$A$522:$G$524,3,TRUE)), (IF($F$19>4,(IF($F$21=0, (VLOOKUP(3,Tablas!$A$522:$G$524,3,TRUE)), (IF($F$21=1, (VLOOKUP(3,Tablas!$A$522:$G$524,3,TRUE)), (IF($F$21=2, (VLOOKUP(3,Tablas!$A$522:$G$524,3,TRUE)), (VLOOKUP(3,Tablas!$A$522:$G$524,3,TRUE)))))))), (IF($F$19=4,(IF(4-$F$21=0,(VLOOKUP(2,Tablas!$A$522:$G$524,3,TRUE)), (IF(4-$F$21=1,(VLOOKUP(2,Tablas!$A$522:$G$524,3,TRUE)), (IF(4-$F$21=2, (VLOOKUP(2,Tablas!$A$522:$G$524,3,TRUE)), (VLOOKUP(3,Tablas!$A$522:$G$524,3,TRUE)))))))), (IF($F$19=3,(IF(3-$F$21=0,(VLOOKUP(1,Tablas!$A$522:$G$524,3,TRUE)), (IF(3-$F$21=1,(VLOOKUP(1,Tablas!$A$522:$G$524,3,TRUE)), (IF(3-$F$21=2, (VLOOKUP(2,Tablas!$A$522:$G$524,3,TRUE)), (VLOOKUP(3,Tablas!$A$522:$G$524,3,TRUE)))))))), (IF($F$19=2,(IF(2-$F$21=0, 0, (IF(2-$F$21=1,(VLOOKUP(1,Tablas!$A$522:$G$524,3,TRUE)), (IF(2-$F$21=2, (VLOOKUP(2,Tablas!$A$522:$G$524,3,TRUE)), 0)))))), (IF($F$19=1,(IF(1-$F$21=0, 0, (IF(1-$F$21=1,(VLOOKUP(1,Tablas!$A$522:$G$524,3,TRUE)),0)))),0)))))))))))))), (IF($F$19=0, 0, (IF($F$21>$F$19, (VLOOKUP($F$19,Tablas!$A$522:$G$524,3,TRUE)), (IF($F$19=4,(IF(4-$F$21=0, 0, (IF(4-$F$21=1, (VLOOKUP(1,Tablas!$A$522:$G$524,3,TRUE)), (IF(4-$F$21=2, (VLOOKUP(2,Tablas!$A$522:$G$524,3,TRUE)), (IF(4-$F$21=3, (VLOOKUP(3,Tablas!$A$522:$G$524,3,TRUE)), (IF(4-$F$21=4, (VLOOKUP(3,Tablas!$A$522:$G$524,3,TRUE)), 0)))))))))), (IF($F$19=5,(IF(5-$F$21=0, (VLOOKUP(1,Tablas!$A$522:$G$524,3,TRUE)), (IF(5-$F$21=1, (VLOOKUP(1,Tablas!$A$522:$G$524,3,TRUE)), (IF(5-$F$21=2, (VLOOKUP(2,Tablas!$A$522:$G$524,3,TRUE)), (IF(5-$F$21=3, (VLOOKUP(3,Tablas!$A$522:$G$524,3,TRUE)), (IF(5-$F$21=4, (VLOOKUP(3,Tablas!$A$522:$G$524,3,TRUE)), (VLOOKUP(3,Tablas!$A$522:$G$524,3,TRUE)))))))))))), (IF($F$19=6,(IF(6-$F$21=0, (VLOOKUP(2,Tablas!$A$522:$G$524,3,TRUE)), (IF(6-$F$21=1, (VLOOKUP(2,Tablas!$A$522:$G$524,3,TRUE)), (IF(6-$F$21=2, (VLOOKUP(2,Tablas!$A$522:$G$524,3,TRUE)), (IF(6-$F$21=3, (VLOOKUP(3,Tablas!$A$522:$G$524,3,TRUE)), (IF(6-$F$21=4, (VLOOKUP(3,Tablas!$A$522:$G$524,3,TRUE)), (VLOOKUP(3,Tablas!$A$522:$G$524,3,TRUE)))))))))))), (IF($F$19>6,(IF(7-$F$21=0, (VLOOKUP(3,Tablas!$A$522:$G$524,3,TRUE)), (IF(7-$F$21=1, (VLOOKUP(3,Tablas!$A$522:$G$524,3,TRUE)), (IF(7-$F$21=2, (VLOOKUP(3,Tablas!$A$522:$G$524,3,TRUE)), (IF(7-$F$21=3, (VLOOKUP(3,Tablas!$A$522:$G$524,3,TRUE)), (IF(7-$F$21=4, (VLOOKUP(3,Tablas!$A$522:$G$524,3,TRUE)), (VLOOKUP(3,Tablas!$A$522:$G$524,3,TRUE)))))))))))), (IF($F$19=3,(IF(3-$F$21=0,0, (IF(3-$F$21=1,(VLOOKUP(1,Tablas!$A$522:$G$524,3,TRUE)), (IF(3-$F$21=2, (VLOOKUP(2,Tablas!$A$522:$G$524,3,TRUE)), (VLOOKUP(3,Tablas!$A$522:$G$524,3,TRUE)))))))), (IF($F$19=2,(IF(2-$F$21=0, 0, (IF(2-$F$21=1,(VLOOKUP(1,Tablas!$A$522:$G$524,3,TRUE)), (IF(2-$F$21=2, (VLOOKUP(2,Tablas!$A$522:$G$524,3,TRUE)), 0)))))), (IF($F$19=1,(IF(1-$F$21=0, 0, (IF(1-$F$21=1,(VLOOKUP(1,Tablas!$A$522:$G$524,3,TRUE)),0)))),0))))))))))))))))))) -> 1701.088 | H40: =IF($F$17=1, (IF($F$19=0, 0, (IF($F$21>$F$19, (VLOOKUP($F$19,Tablas!$A$522:$G$524,4,TRUE)), (IF($F$19>4,(IF($F$21=0, (VLOOKUP(3,Tablas!$A$522:$G$524,4,TRUE)), (IF($F$21=1, (VLOOKUP(3,Tablas!$A$522:$G$524,4,TRUE)), (IF($F$21=2, (VLOOKUP(3,Tablas!$A$522:$G$524,4,TRUE)), (VLOOKUP(3,Tablas!$A$522:$G$524,4,TRUE)))))))), (IF($F$19=4,(IF(4-$F$21=0,(VLOOKUP(2,Tablas!$A$522:$G$524,4,TRUE)), (IF(4-$F$21=1,(VLOOKUP(2,Tablas!$A$522:$G$524,4,TRUE)), (IF(4-$F$21=2, (VLOOKUP(2,Tablas!$A$522:$G$524,4,TRUE)), (VLOOKUP(3,Tablas!$A$522:$G$524,4,TRUE)))))))), (IF($F$19=3,(IF(3-$F$21=0,(VLOOKUP(1,Tablas!$A$522:$G$524,4,TRUE)), (IF(3-$F$21=1,(VLOOKUP(1,Tablas!$A$522:$G$524,4,TRUE)), (IF(3-$F$21=2, (VLOOKUP(2,Tablas!$A$522:$G$524,4,TRUE)), (VLOOKUP(3,Tablas!$A$522:$G$524,4,TRUE)))))))), (IF($F$19=2,(IF(2-$F$21=0, 0, (IF(2-$F$21=1,(VLOOKUP(1,Tablas!$A$522:$G$524,4,TRUE)), (IF(2-$F$21=2, (VLOOKUP(2,Tablas!$A$522:$G$524,4,TRUE)), 0)))))), (IF($F$19=1,(IF(1-$F$21=0, 0, (IF(1-$F$21=1,(VLOOKUP(1,Tablas!$A$522:$G$524,4,TRUE)),0)))),0)))))))))))))), (IF($F$19=0, 0, (IF($F$21>$F$19, (VLOOKUP($F$19,Tablas!$A$522:$G$524,4,TRUE)), (IF($F$19=4,(IF(4-$F$21=0, 0, (IF(4-$F$21=1, (VLOOKUP(1,Tablas!$A$522:$G$524,4,TRUE)), (IF(4-$F$21=2, (VLOOKUP(2,Tablas!$A$522:$G$524,4,TRUE)), (IF(4-$F$21=3, (VLOOKUP(3,Tablas!$A$522:$G$524,4,TRUE)), (IF(4-$F$21=4, (VLOOKUP(3,Tablas!$A$522:$G$524,4,TRUE)), 0)))))))))), (IF($F$19=5,(IF(5-$F$21=0, (VLOOKUP(1,Tablas!$A$522:$G$524,4,TRUE)), (IF(5-$F$21=1, (VLOOKUP(1,Tablas!$A$522:$G$524,4,TRUE)), (IF(5-$F$21=2, (VLOOKUP(2,Tablas!$A$522:$G$524,4,TRUE)), (IF(5-$F$21=3, (VLOOKUP(3,Tablas!$A$522:$G$524,4,TRUE)), (IF(5-$F$21=4, (VLOOKUP(3,Tablas!$A$522:$G$524,4,TRUE)), (VLOOKUP(3,Tablas!$A$522:$G$524,4,TRUE)))))))))))), (IF($F$19=6,(IF(6-$F$21=0, (VLOOKUP(2,Tablas!$A$522:$G$524,4,TRUE)), (IF(6-$F$21=1, (VLOOKUP(2,Tablas!$A$522:$G$524,4,TRUE)), (IF(6-$F$21=2, (VLOOKUP(2,Tablas!$A$522:$G$524,4,TRUE)), (IF(6-$F$21=3, (VLOOKUP(3,Tablas!$A$522:$G$524,4,TRUE)), (IF(6-$F$21=4, (VLOOKUP(3,Tablas!$A$522:$G$524,4,TRUE)), (VLOOKUP(3,Tablas!$A$522:$G$524,4,TRUE)))))))))))), (IF($F$19>6,(IF(7-$F$21=0, (VLOOKUP(3,Tablas!$A$522:$G$524,4,TRUE)), (IF(7-$F$21=1, (VLOOKUP(3,Tablas!$A$522:$G$524,4,TRUE)), (IF(7-$F$21=2, (VLOOKUP(3,Tablas!$A$522:$G$524,4,TRUE)), (IF(7-$F$21=3, (VLOOKUP(3,Tablas!$A$522:$G$524,4,TRUE)), (IF(7-$F$21=4, (VLOOKUP(3,Tablas!$A$522:$G$524,4,TRUE)), (VLOOKUP(3,Tablas!$A$522:$G$524,4,TRUE)))))))))))), (IF($F$19=3,(IF(3-$F$21=0,0, (IF(3-$F$21=1,(VLOOKUP(1,Tablas!$A$522:$G$524,4,TRUE)), (IF(3-$F$21=2, (VLOOKUP(2,Tablas!$A$522:$G$524,4,TRUE)), (VLOOKUP(3,Tablas!$A$522:$G$524,4,TRUE)))))))), (IF($F$19=2,(IF(2-$F$21=0, 0, (IF(2-$F$21=1,(VLOOKUP(1,Tablas!$A$522:$G$524,4,TRUE)), (IF(2-$F$21=2, (VLOOKUP(2,Tablas!$A$522:$G$524,4,TRUE)), 0)))))), (IF($F$19=1,(IF(1-$F$21=0, 0, (IF(1-$F$21=1,(VLOOKUP(1,Tablas!$A$522:$G$524,4,TRUE)),0)))),0))))))))))))))))))) -> 1490.254 | I40: =IF($F$17=1, (IF($F$19=0, 0, (IF($F$21>$F$19, (VLOOKUP($F$19,Tablas!$A$522:$G$524,5,TRUE)), (IF($F$19>4,(IF($F$21=0, (VLOOKUP(3,Tablas!$A$522:$G$524,5,TRUE)), (IF($F$21=1, (VLOOKUP(3,Tablas!$A$522:$G$524,5,TRUE)), (IF($F$21=2, (VLOOKUP(3,Tablas!$A$522:$G$524,5,TRUE)), (VLOOKUP(3,Tablas!$A$522:$G$524,5,TRUE)))))))), (IF($F$19=4,(IF(4-$F$21=0,(VLOOKUP(2,Tablas!$A$522:$G$524,5,TRUE)), (IF(4-$F$21=1,(VLOOKUP(2,Tablas!$A$522:$G$524,5,TRUE)), (IF(4-$F$21=2, (VLOOKUP(2,Tablas!$A$522:$G$524,5,TRUE)), (VLOOKUP(3,Tablas!$A$522:$G$524,5,TRUE)))))))), (IF($F$19=3,(IF(3-$F$21=0,(VLOOKUP(1,Tablas!$A$522:$G$524,5,TRUE)), (IF(3-$F$21=1,(VLOOKUP(1,Tablas!$A$522:$G$524,5,TRUE)), (IF(3-$F$21=2, (VLOOKUP(2,Tablas!$A$522:$G$524,5,TRUE)), (VLOOKUP(3,Tablas!$A$522:$G$524,5,TRUE)))))))), (IF($F$19=2,(IF(2-$F$21=0, 0, (IF(2-$F$21=1,(VLOOKUP(1,Tablas!$A$522:$G$524,5,TRUE)), (IF(2-$F$21=2, (VLOOKUP(2,Tablas!$A$522:$G$524,5,TRUE)), 0)))))), (IF($F$19=1,(IF(1-$F$21=0, 0, (IF(1-$F$21=1,(VLOOKUP(1,Tablas!$A$522:$G$524,5,TRUE)),0)))),0)))))))))))))), (IF($F$19=0, 0, (IF($F$21>$F$19, (VLOOKUP($F$19,Tablas!$A$522:$G$524,5,TRUE)), (IF($F$19=4,(IF(4-$F$21=0, 0, (IF(4-$F$21=1, (VLOOKUP(1,Tablas!$A$522:$G$524,5,TRUE)), (IF(4-$F$21=2, (VLOOKUP(2,Tablas!$A$522:$G$524,5,TRUE)), (IF(4-$F$21=3, (VLOOKUP(3,Tablas!$A$522:$G$524,5,TRUE)), (IF(4-$F$21=4, (VLOOKUP(3,Tablas!$A$522:$G$524,5,TRUE)), 0)))))))))), (IF($F$19=5,(IF(5-$F$21=0, (VLOOKUP(1,Tablas!$A$522:$G$524,5,TRUE)), (IF(5-$F$21=1, (VLOOKUP(1,Tablas!$A$522:$G$524,5,TRUE)), (IF(5-$F$21=2, (VLOOKUP(2,Tablas!$A$522:$G$524,5,TRUE)), (IF(5-$F$21=3, (VLOOKUP(3,Tablas!$A$522:$G$524,5,TRUE)), (IF(5-$F$21=4, (VLOOKUP(3,Tablas!$A$522:$G$524,5,TRUE)), (VLOOKUP(3,Tablas!$A$522:$G$524,5,TRUE)))))))))))), (IF($F$19=6,(IF(6-$F$21=0, (VLOOKUP(2,Tablas!$A$522:$G$524,5,TRUE)), (IF(6-$F$21=1, (VLOOKUP(2,Tablas!$A$522:$G$524,5,TRUE)), (IF(6-$F$21=2, (VLOOKUP(2,Tablas!$A$522:$G$524,5,TRUE)), (IF(6-$F$21=3, (VLOOKUP(3,Tablas!$A$522:$G$524,5,TRUE)), (IF(6-$F$21=4, (VLOOKUP(3,Tablas!$A$522:$G$524,5,TRUE)), (VLOOKUP(3,Tablas!$A$522:$G$524,5,TRUE)))))))))))), (IF($F$19>6,(IF(7-$F$21=0, (VLOOKUP(3,Tablas!$A$522:$G$524,5,TRUE)), (IF(7-$F$21=1, (VLOOKUP(3,Tablas!$A$522:$G$524,5,TRUE)), (IF(7-$F$21=2, (VLOOKUP(3,Tablas!$A$522:$G$524,5,TRUE)), (IF(7-$F$21=3, (VLOOKUP(3,Tablas!$A$522:$G$524,5,TRUE)), (IF(7-$F$21=4, (VLOOKUP(3,Tablas!$A$522:$G$524,5,TRUE)), (VLOOKUP(3,Tablas!$A$522:$G$524,5,TRUE)))))))))))), (IF($F$19=3,(IF(3-$F$21=0,0, (IF(3-$F$21=1,(VLOOKUP(1,Tablas!$A$522:$G$524,5,TRUE)), (IF(3-$F$21=2, (VLOOKUP(2,Tablas!$A$522:$G$524,5,TRUE)), (VLOOKUP(3,Tablas!$A$522:$G$524,5,TRUE)))))))), (IF($F$19=2,(IF(2-$F$21=0, 0, (IF(2-$F$21=1,(VLOOKUP(1,Tablas!$A$522:$G$524,5,TRUE)), (IF(2-$F$21=2, (VLOOKUP(2,Tablas!$A$522:$G$524,5,TRUE)), 0)))))), (IF($F$19=1,(IF(1-$F$21=0, 0, (IF(1-$F$21=1,(VLOOKUP(1,Tablas!$A$522:$G$524,5,TRUE)),0)))),0))))))))))))))))))) -> 1230.766 | J40: =IF($F$17=1, (IF($F$19=0, 0, (IF($F$21>$F$19, (VLOOKUP($F$19,Tablas!$A$522:$G$524,6,TRUE)), (IF($F$19>4,(IF($F$21=0, (VLOOKUP(3,Tablas!$A$522:$G$524,6,TRUE)), (IF($F$21=1, (VLOOKUP(3,Tablas!$A$522:$G$524,6,TRUE)), (IF($F$21=2, (VLOOKUP(3,Tablas!$A$522:$G$524,6,TRUE)), (VLOOKUP(3,Tablas!$A$522:$G$524,6,TRUE)))))))), (IF($F$19=4,(IF(4-$F$21=0,(VLOOKUP(2,Tablas!$A$522:$G$524,6,TRUE)), (IF(4-$F$21=1,(VLOOKUP(2,Tablas!$A$522:$G$524,6,TRUE)), (IF(4-$F$21=2, (VLOOKUP(2,Tablas!$A$522:$G$524,6,TRUE)), (VLOOKUP(3,Tablas!$A$522:$G$524,6,TRUE)))))))), (IF($F$19=3,(IF(3-$F$21=0,(VLOOKUP(1,Tablas!$A$522:$G$524,6,TRUE)), (IF(3-$F$21=1,(VLOOKUP(1,Tablas!$A$522:$G$524,6,TRUE)), (IF(3-$F$21=2, (VLOOKUP(2,Tablas!$A$522:$G$524,6,TRUE)), (VLOOKUP(3,Tablas!$A$522:$G$524,6,TRUE)))))))), (IF($F$19=2,(IF(2-$F$21=0, 0, (IF(2-$F$21=1,(VLOOKUP(1,Tablas!$A$522:$G$524,6,TRUE)), (IF(2-$F$21=2, (VLOOKUP(2,Tablas!$A$522:$G$524,6,TRUE)), 0)))))), (IF($F$19=1,(IF(1-$F$21=0, 0, (IF(1-$F$21=1,(VLOOKUP(1,Tablas!$A$522:$G$524,6,TRUE)),0)))),0)))))))))))))), (IF($F$19=0, 0, (IF($F$21>$F$19, (VLOOKUP($F$19,Tablas!$A$522:$G$524,6,TRUE)), (IF($F$19=4,(IF(4-$F$21=0, 0, (IF(4-$F$21=1, (VLOOKUP(1,Tablas!$A$522:$G$524,6,TRUE)), (IF(4-$F$21=2, (VLOOKUP(2,Tablas!$A$522:$G$524,6,TRUE)), (IF(4-$F$21=3, (VLOOKUP(3,Tablas!$A$522:$G$524,6,TRUE)), (IF(4-$F$21=4, (VLOOKUP(3,Tablas!$A$522:$G$524,6,TRUE)), 0)))))))))), (IF($F$19=5,(IF(5-$F$21=0, (VLOOKUP(1,Tablas!$A$522:$G$524,6,TRUE)), (IF(5-$F$21=1, (VLOOKUP(1,Tablas!$A$522:$G$524,6,TRUE)), (IF(5-$F$21=2, (VLOOKUP(2,Tablas!$A$522:$G$524,6,TRUE)), (IF(5-$F$21=3, (VLOOKUP(3,Tablas!$A$522:$G$524,6,TRUE)), (IF(5-$F$21=4, (VLOOKUP(3,Tablas!$A$522:$G$524,6,TRUE)), (VLOOKUP(3,Tablas!$A$522:$G$524,6,TRUE)))))))))))), (IF($F$19=6,(IF(6-$F$21=0, (VLOOKUP(2,Tablas!$A$522:$G$524,6,TRUE)), (IF(6-$F$21=1, (VLOOKUP(2,Tablas!$A$522:$G$524,6,TRUE)), (IF(6-$F$21=2, (VLOOKUP(2,Tablas!$A$522:$G$524,6,TRUE)), (IF(6-$F$21=3, (VLOOKUP(3,Tablas!$A$522:$G$524,6,TRUE)), (IF(6-$F$21=4, (VLOOKUP(3,Tablas!$A$522:$G$524,6,TRUE)), (VLOOKUP(3,Tablas!$A$522:$G$524,6,TRUE)))))))))))), (IF($F$19>6,(IF(7-$F$21=0, (VLOOKUP(3,Tablas!$A$522:$G$524,6,TRUE)), (IF(7-$F$21=1, (VLOOKUP(3,Tablas!$A$522:$G$524,6,TRUE)), (IF(7-$F$21=2, (VLOOKUP(3,Tablas!$A$522:$G$524,6,TRUE)), (IF(7-$F$21=3, (VLOOKUP(3,Tablas!$A$522:$G$524,6,TRUE)), (IF(7-$F$21=4, (VLOOKUP(3,Tablas!$A$522:$G$524,6,TRUE)), (VLOOKUP(3,Tablas!$A$522:$G$524,6,TRUE)))))))))))), (IF($F$19=3,(IF(3-$F$21=0,0, (IF(3-$F$21=1,(VLOOKUP(1,Tablas!$A$522:$G$524,6,TRUE)), (IF(3-$F$21=2, (VLOOKUP(2,Tablas!$A$522:$G$524,6,TRUE)), (VLOOKUP(3,Tablas!$A$522:$G$524,6,TRUE)))))))), (IF($F$19=2,(IF(2-$F$21=0, 0, (IF(2-$F$21=1,(VLOOKUP(1,Tablas!$A$522:$G$524,6,TRUE)), (IF(2-$F$21=2, (VLOOKUP(2,Tablas!$A$522:$G$524,6,TRUE)), 0)))))), (IF($F$19=1,(IF(1-$F$21=0, 0, (IF(1-$F$21=1,(VLOOKUP(1,Tablas!$A$522:$G$524,6,TRUE)),0)))),0))))))))))))))))))) -> 1068.1355 | K40: =IF($F$17=1, (IF($F$19=0, 0, (IF($F$21>$F$19, (VLOOKUP($F$19,Tablas!$A$522:$G$524,7,TRUE)), (IF($F$19>4,(IF($F$21=0, (VLOOKUP(3,Tablas!$A$522:$G$524,7,TRUE)), (IF($F$21=1, (VLOOKUP(3,Tablas!$A$522:$G$524,7,TRUE)), (IF($F$21=2, (VLOOKUP(3,Tablas!$A$522:$G$524,7,TRUE)), (VLOOKUP(3,Tablas!$A$522:$G$524,7,TRUE)))))))), (IF($F$19=4,(IF(4-$F$21=0,(VLOOKUP(2,Tablas!$A$522:$G$524,7,TRUE)), (IF(4-$F$21=1,(VLOOKUP(2,Tablas!$A$522:$G$524,7,TRUE)), (IF(4-$F$21=2, (VLOOKUP(2,Tablas!$A$522:$G$524,7,TRUE)), (VLOOKUP(3,Tablas!$A$522:$G$524,7,TRUE)))))))), (IF($F$19=3,(IF(3-$F$21=0,(VLOOKUP(1,Tablas!$A$522:$G$524,7,TRUE)), (IF(3-$F$21=1,(VLOOKUP(1,Tablas!$A$522:$G$524,7,TRUE)), (IF(3-$F$21=2, (VLOOKUP(2,Tablas!$A$522:$G$524,7,TRUE)), (VLOOKUP(3,Tablas!$A$522:$G$524,7,TRUE)))))))), (IF($F$19=2,(IF(2-$F$21=0, 0, (IF(2-$F$21=1,(VLOOKUP(1,Tablas!$A$522:$G$524,7,TRUE)), (IF(2-$F$21=2, (VLOOKUP(2,Tablas!$A$522:$G$524,7,TRUE)), 0)))))), (IF($F$19=1,(IF(1-$F$21=0, 0, (IF(1-$F$21=1,(VLOOKUP(1,Tablas!$A$522:$G$524,7,TRUE)),0)))),0)))))))))))))), (IF($F$19=0, 0, (IF($F$21>$F$19, (VLOOKUP($F$19,Tablas!$A$522:$G$524,7,TRUE)), (IF($F$19=4,(IF(4-$F$21=0, 0, (IF(4-$F$21=1, (VLOOKUP(1,Tablas!$A$522:$G$524,7,TRUE)), (IF(4-$F$21=2, (VLOOKUP(2,Tablas!$A$522:$G$524,7,TRUE)), (IF(4-$F$21=3, (VLOOKUP(3,Tablas!$A$522:$G$524,7,TRUE)), (IF(4-$F$21=4, (VLOOKUP(3,Tablas!$A$522:$G$524,7,TRUE)), 0)))))))))), (IF($F$19=5,(IF(5-$F$21=0, (VLOOKUP(1,Tablas!$A$522:$G$524,7,TRUE)), (IF(5-$F$21=1, (VLOOKUP(1,Tablas!$A$522:$G$524,7,TRUE)), (IF(5-$F$21=2, (VLOOKUP(2,Tablas!$A$522:$G$524,7,TRUE)), (IF(5-$F$21=3, (VLOOKUP(3,Tablas!$A$522:$G$524,7,TRUE)), (IF(5-$F$21=4, (VLOOKUP(3,Tablas!$A$522:$G$524,7,TRUE)), (VLOOKUP(3,Tablas!$A$522:$G$524,7,TRUE)))))))))))), (IF($F$19=6,(IF(6-$F$21=0, (VLOOKUP(2,Tablas!$A$522:$G$524,7,TRUE)), (IF(6-$F$21=1, (VLOOKUP(2,Tablas!$A$522:$G$524,7,TRUE)), (IF(6-$F$21=2, (VLOOKUP(2,Tablas!$A$522:$G$524,7,TRUE)), (IF(6-$F$21=3, (VLOOKUP(3,Tablas!$A$522:$G$524,7,TRUE)), (IF(6-$F$21=4, (VLOOKUP(3,Tablas!$A$522:$G$524,7,TRUE)), (VLOOKUP(3,Tablas!$A$522:$G$524,7,TRUE)))))))))))), (IF($F$19>6,(IF(7-$F$21=0, (VLOOKUP(3,Tablas!$A$522:$G$524,7,TRUE)), (IF(7-$F$21=1, (VLOOKUP(3,Tablas!$A$522:$G$524,7,TRUE)), (IF(7-$F$21=2, (VLOOKUP(3,Tablas!$A$522:$G$524,7,TRUE)), (IF(7-$F$21=3, (VLOOKUP(3,Tablas!$A$522:$G$524,7,TRUE)), (IF(7-$F$21=4, (VLOOKUP(3,Tablas!$A$522:$G$524,7,TRUE)), (VLOOKUP(3,Tablas!$A$522:$G$524,7,TRUE)))))))))))), (IF($F$19=3,(IF(3-$F$21=0,0, (IF(3-$F$21=1,(VLOOKUP(1,Tablas!$A$522:$G$524,7,TRUE)), (IF(3-$F$21=2, (VLOOKUP(2,Tablas!$A$522:$G$524,7,TRUE)), (VLOOKUP(3,Tablas!$A$522:$G$524,7,TRUE)))))))), (IF($F$19=2,(IF(2-$F$21=0, 0, (IF(2-$F$21=1,(VLOOKUP(1,Tablas!$A$522:$G$524,7,TRUE)), (IF(2-$F$21=2, (VLOOKUP(2,Tablas!$A$522:$G$524,7,TRUE)), 0)))))), (IF($F$19=1,(IF(1-$F$21=0, 0, (IF(1-$F$21=1,(VLOOKUP(1,Tablas!$A$522:$G$524,7,TRUE)),0)))),0))))))))))))))))))) -> 806.8455
E41: Total de Prima neta | G41: =SUM(G38:G40) -> 41530.694 | H41: =SUM(H38:H40) -> 36401.301 | I41: =SUM(I38:I40) -> 29021.6605 | J41: =SUM(J38:J40) -> 25165.3805 | K41: =SUM(K38:K40) -> 19015.605
E42: Tarifa administrativa anual | G42: 75 | H42: 75 | I42: 75 | J42: 75 | K42: 75
E43: IVA (12%) | G43: =(G41+G42)*12% -> 4992.68328 | H43: =(H41+H42)*12% -> 4377.15612 | I43: 3491.59926 | J43: =(J41+J42)*12% -> 3028.84566 | K43: 2290.8726
E44: TOTAL de primera cuota | G44: =SUM(G41:G43) -> 46598.37728 | H44: =SUM(H41:H43) -> 40853.45712 | I44: =SUM(I41:I43) -> 32588.25976 | J44: =SUM(J41:J43) -> 28269.22616 | K44: =SUM(K41:K43) -> 21381.4776
E45: Costo de segunda cuota | G45: =G41+G43 - G42*12% -> 46514.37728 | H45: =H41+H43 - H42*12% -> 40769.45712 | I45: 32504.25976 | J45: =J41+J43 - J42*12% -> 28185.22616 | K45: 21297.4776
E46: TOTAL ANUAL | G46: =G44+G45 -> 93112.75456 | H46: =H44+H45 -> 81622.91424 | I46: 65092.51952 | J46: =J44+J45 -> 56454.45232 | K46: 42678.9552
E47: Ahorros en tarifas de prima para niños | G47: =IF($F$17=1,IF($F$19=0,0,IF($F$21=0,0,IF($F$21=1,(VLOOKUP(1,Tablas!$A$522:$G$524,3,TRUE)),(VLOOKUP(2,Tablas!$A$522:$G$524,3,TRUE))))), IF($F$19=0,0,IF($F$21=0,0,IF($F$21=1,(VLOOKUP(1,Tablas!$A$522:$G$524,3,TRUE)),IF($F$21=2,(VLOOKUP(2,Tablas!$A$522:$G$524,3,TRUE)), (VLOOKUP(3,Tablas!$A$522:$G$524,3,TRUE))))))) -> 2891.309 | H47: =IF($F$17=1,IF($F$19=0,0,IF($F$21=0,0,IF($F$21=1,(VLOOKUP(1,Tablas!$A$522:$G$524,4,TRUE)),(VLOOKUP(2,Tablas!$A$522:$G$524,4,TRUE))))), IF($F$19=0,0,IF($F$21=0,0,IF($F$21=1,(VLOOKUP(1,Tablas!$A$522:$G$524,4,TRUE)),IF($F$21=2,(VLOOKUP(2,Tablas!$A$522:$G$524,4,TRUE)), (VLOOKUP(3,Tablas!$A$522:$G$524,4,TRUE))))))) -> 2534.513 | I47: =IF($F$17=1,IF($F$19=0,0,IF($F$21=0,0,IF($F$21=1,(VLOOKUP(1,Tablas!$A$522:$G$524,5,TRUE)),(VLOOKUP(2,Tablas!$A$522:$G$524,5,TRUE))))), IF($F$19=0,0,IF($F$21=0,0,IF($F$21=1,(VLOOKUP(1,Tablas!$A$522:$G$524,5,TRUE)),IF($F$21=2,(VLOOKUP(2,Tablas!$A$522:$G$524,5,TRUE)), (VLOOKUP(3,Tablas!$A$522:$G$524,5,TRUE))))))) -> 2092.122 | J47: =IF($F$17=1,IF($F$19=0,0,IF($F$21=0,0,IF($F$21=1,(VLOOKUP(1,Tablas!$A$522:$G$524,6,TRUE)),(VLOOKUP(2,Tablas!$A$522:$G$524,6,TRUE))))), IF($F$19=0,0,IF($F$21=0,0,IF($F$21=1,(VLOOKUP(1,Tablas!$A$522:$G$524,6,TRUE)),IF($F$21=2,(VLOOKUP(2,Tablas!$A$522:$G$524,6,TRUE)), (VLOOKUP(3,Tablas!$A$522:$G$524,6,TRUE))))))) -> 1814.614 | K47: =IF($F$17=1,IF($F$19=0,0,IF($F$21=0,0,IF($F$21=1,(VLOOKUP(1,Tablas!$A$522:$G$524,7,TRUE)),(VLOOKUP(2,Tablas!$A$522:$G$524,7,TRUE))))), IF($F$19=0,0,IF($F$21=0,0,IF($F$21=1,(VLOOKUP(1,Tablas!$A$522:$G$524,7,TRUE)),IF($F$21=2,(VLOOKUP(2,Tablas!$A$522:$G$524,7,TRUE)), (VLOOKUP(3,Tablas!$A$522:$G$524,7,TRUE))))))) -> 1371.322
E49: Tarifas trimestrales
E50: Prima para Asegurado Titular | G50: =VLOOKUP($I$17,Tablas!$A$680:$G$746,3,TRUE) -> 7756.2925 | H50: =VLOOKUP($I$17,Tablas!$A$680:$G$746,4,TRUE) -> 6798.385 | I50: =VLOOKUP($I$17,Tablas!$A$680:$G$746,5,TRUE) -> 5400.0925 | J50: =VLOOKUP($I$17,Tablas!$A$680:$G$746,6,TRUE) -> 4682.48 | K50: =VLOOKUP($I$17,Tablas!$A$680:$G$746,7,TRUE) -> 3538.27375
E51: Prima para conyuge | G51: =IF($F$17=1,0,(VLOOKUP($I$19,Tablas!$A$680:$G$746,3,TRUE))) -> 12910.0125 | H51: =IF($F$17=1,0,(VLOOKUP($I$19,Tablas!$A$680:$G$746,4,TRUE))) -> 11315.8375 | I51: =IF($F$17=1,0,(VLOOKUP($I$19,Tablas!$A$680:$G$746,5,TRUE))) -> 9019.71125 | J51: =IF($F$17=1,0,(VLOOKUP($I$19,Tablas!$A$680:$G$746,6,TRUE))) -> 7820.8075 | K51: =IF($F$17=1,0,(VLOOKUP($I$19,Tablas!$A$680:$G$746,7,TRUE))) -> 5909.6675
E52: Prima para hijo (s) | G52: =IF($F$17=1, (IF($F$19=0, 0, (IF($F$21>$F$19, (VLOOKUP($F$19,Tablas!$A$747:$G$749,3,TRUE)), (IF($F$19>4,(IF($F$21=0, (VLOOKUP(3,Tablas!$A$747:$G$749,3,TRUE)), (IF($F$21=1, (VLOOKUP(3,Tablas!$A$747:$G$749,3,TRUE)), (IF($F$21=2, (VLOOKUP(3,Tablas!$A$747:$G$749,3,TRUE)), (VLOOKUP(3,Tablas!$A$747:$G$749,3,TRUE)))))))), (IF($F$19=4,(IF(4-$F$21=0,(VLOOKUP(2,Tablas!$A$747:$G$749,3,TRUE)), (IF(4-$F$21=1,(VLOOKUP(2,Tablas!$A$747:$G$749,3,TRUE)), (IF(4-$F$21=2, (VLOOKUP(2,Tablas!$A$747:$G$749,3,TRUE)), (VLOOKUP(3,Tablas!$A$747:$G$749,3,TRUE)))))))), (IF($F$19=3,(IF(3-$F$21=0,(VLOOKUP(1,Tablas!$A$747:$G$749,3,TRUE)), (IF(3-$F$21=1,(VLOOKUP(1,Tablas!$A$747:$G$749,3,TRUE)), (IF(3-$F$21=2, (VLOOKUP(2,Tablas!$A$747:$G$749,3,TRUE)), (VLOOKUP(3,Tablas!$A$747:$G$749,3,TRUE)))))))), (IF($F$19=2,(IF(2-$F$21=0, 0, (IF(2-$F$21=1,(VLOOKUP(1,Tablas!$A$747:$G$749,3,TRUE)), (IF(2-$F$21=2, (VLOOKUP(2,Tablas!$A$747:$G$749,3,TRUE)), 0)))))), (IF($F$19=1,(IF(1-$F$21=0, 0, (IF(1-$F$21=1,(VLOOKUP(1,Tablas!$A$747:$G$749,3,TRUE)),0)))),0)))))))))))))), (IF($F$19=0, 0, (IF($F$21>$F$19, (VLOOKUP($F$19,Tablas!$A$747:$G$749,3,TRUE)), (IF($F$19=4,(IF(4-$F$21=0, 0, (IF(4-$F$21=1, (VLOOKUP(1,Tablas!$A$747:$G$749,3,TRUE)), (IF(4-$F$21=2, (VLOOKUP(2,Tablas!$A$747:$G$749,3,TRUE)), (IF(4-$F$21=3, (VLOOKUP(3,Tablas!$A$747:$G$749,3,TRUE)), (IF(4-$F$21=4, (VLOOKUP(3,Tablas!$A$747:$G$749,3,TRUE)), 0)))))))))), (IF($F$19=5,(IF(5-$F$21=0, (VLOOKUP(1,Tablas!$A$747:$G$749,3,TRUE)), (IF(5-$F$21=1, (VLOOKUP(1,Tablas!$A$747:$G$749,3,TRUE)), (IF(5-$F$21=2, (VLOOKUP(2,Tablas!$A$747:$G$749,3,TRUE)), (IF(5-$F$21=3, (VLOOKUP(3,Tablas!$A$747:$G$749,3,TRUE)), (IF(5-$F$21=4, (VLOOKUP(3,Tablas!$A$747:$G$749,3,TRUE)), (VLOOKUP(3,Tablas!$A$747:$G$749,3,TRUE)))))))))))), (IF($F$19=6,(IF(6-$F$21=0, (VLOOKUP(2,Tablas!$A$747:$G$749,3,TRUE)), (IF(6-$F$21=1, (VLOOKUP(2,Tablas!$A$747:$G$749,3,TRUE)), (IF(6-$F$21=2, (VLOOKUP(2,Tablas!$A$747:$G$749,3,TRUE)), (IF(6-$F$21=3, (VLOOKUP(3,Tablas!$A$747:$G$749,3,TRUE)), (IF(6-$F$21=4, (VLOOKUP(3,Tablas!$A$747:$G$749,3,TRUE)), (VLOOKUP(3,Tablas!$A$747:$G$749,3,TRUE)))))))))))), (IF($F$19>6,(IF(7-$F$21=0, (VLOOKUP(3,Tablas!$A$747:$G$749,3,TRUE)), (IF(7-$F$21=1, (VLOOKUP(3,Tablas!$A$747:$G$749,3,TRUE)), (IF(7-$F$21=2, (VLOOKUP(3,Tablas!$A$747:$G$749,3,TRUE)), (IF(7-$F$21=3, (VLOOKUP(3,Tablas!$A$747:$G$749,3,TRUE)), (IF(7-$F$21=4, (VLOOKUP(3,Tablas!$A$747:$G$749,3,TRUE)), (VLOOKUP(3,Tablas!$A$747:$G$749,3,TRUE)))))))))))), (IF($F$19=3,(IF(3-$F$21=0,0, (IF(3-$F$21=1,(VLOOKUP(1,Tablas!$A$747:$G$749,3,TRUE)), (IF(3-$F$21=2, (VLOOKUP(2,Tablas!$A$747:$G$749,3,TRUE)), (VLOOKUP(3,Tablas!$A$747:$G$749,3,TRUE)))))))), (IF($F$19=2,(IF(2-$F$21=0, 0, (IF(2-$F$21=1,(VLOOKUP(1,Tablas!$A$747:$G$749,3,TRUE)), (IF(2-$F$21=2, (VLOOKUP(2,Tablas!$A$747:$G$749,3,TRUE)), 0)))))), (IF($F$19=1,(IF(1-$F$21=0, 0, (IF(1-$F$21=1,(VLOOKUP(1,Tablas!$A$747:$G$749,3,TRUE)),0)))),0))))))))))))))))))) -> 882.64 | H52: =IF($F$17=1, (IF($F$19=0, 0, (IF($F$21>$F$19, (VLOOKUP($F$19,Tablas!$A$747:$G$749,4,TRUE)), (IF($F$19>4,(IF($F$21=0, (VLOOKUP(3,Tablas!$A$747:$G$749,4,TRUE)), (IF($F$21=1, (VLOOKUP(3,Tablas!$A$747:$G$749,4,TRUE)), (IF($F$21=2, (VLOOKUP(3,Tablas!$A$747:$G$749,4,TRUE)), (VLOOKUP(3,Tablas!$A$747:$G$749,4,TRUE)))))))), (IF($F$19=4,(IF(4-$F$21=0,(VLOOKUP(2,Tablas!$A$747:$G$749,4,TRUE)), (IF(4-$F$21=1,(VLOOKUP(2,Tablas!$A$747:$G$749,4,TRUE)), (IF(4-$F$21=2, (VLOOKUP(2,Tablas!$A$747:$G$749,4,TRUE)), (VLOOKUP(3,Tablas!$A$747:$G$749,4,TRUE)))))))), (IF($F$19=3,(IF(3-$F$21=0,(VLOOKUP(1,Tablas!$A$747:$G$749,4,TRUE)), (IF(3-$F$21=1,(VLOOKUP(1,Tablas!$A$747:$G$749,4,TRUE)), (IF(3-$F$21=2, (VLOOKUP(2,Tablas!$A$747:$G$749,4,TRUE)), (VLOOKUP(3,Tablas!$A$747:$G$749,4,TRUE)))))))), (IF($F$19=2,(IF(2-$F$21=0, 0, (IF(2-$F$21=1,(VLOOKUP(1,Tablas!$A$747:$G$749,4,TRUE)), (IF(2-$F$21=2, (VLOOKUP(2,Tablas!$A$747:$G$749,4,TRUE)), 0)))))), (IF($F$19=1,(IF(1-$F$21=0, 0, (IF(1-$F$21=1,(VLOOKUP(1,Tablas!$A$747:$G$749,4,TRUE)),0)))),0)))))))))))))), (IF($F$19=0, 0, (IF($F$21>$F$19, (VLOOKUP($F$19,Tablas!$A$747:$G$749,4,TRUE)), (IF($F$19=4,(IF(4-$F$21=0, 0, (IF(4-$F$21=1, (VLOOKUP(1,Tablas!$A$747:$G$749,4,TRUE)), (IF(4-$F$21=2, (VLOOKUP(2,Tablas!$A$747:$G$749,4,TRUE)), (IF(4-$F$21=3, (VLOOKUP(3,Tablas!$A$747:$G$749,4,TRUE)), (IF(4-$F$21=4, (VLOOKUP(3,Tablas!$A$747:$G$749,4,TRUE)), 0)))))))))), (IF($F$19=5,(IF(5-$F$21=0, (VLOOKUP(1,Tablas!$A$747:$G$749,4,TRUE)), (IF(5-$F$21=1, (VLOOKUP(1,Tablas!$A$747:$G$749,4,TRUE)), (IF(5-$F$21=2, (VLOOKUP(2,Tablas!$A$747:$G$749,4,TRUE)), (IF(5-$F$21=3, (VLOOKUP(3,Tablas!$A$747:$G$749,4,TRUE)), (IF(5-$F$21=4, (VLOOKUP(3,Tablas!$A$747:$G$749,4,TRUE)), (VLOOKUP(3,Tablas!$A$747:$G$749,4,TRUE)))))))))))), (IF($F$19=6,(IF(6-$F$21=0, (VLOOKUP(2,Tablas!$A$747:$G$749,4,TRUE)), (IF(6-$F$21=1, (VLOOKUP(2,Tablas!$A$747:$G$749,4,TRUE)), (IF(6-$F$21=2, (VLOOKUP(2,Tablas!$A$747:$G$749,4,TRUE)), (IF(6-$F$21=3, (VLOOKUP(3,Tablas!$A$747:$G$749,4,TRUE)), (IF(6-$F$21=4, (VLOOKUP(3,Tablas!$A$747:$G$749,4,TRUE)), (VLOOKUP(3,Tablas!$A$747:$G$749,4,TRUE)))))))))))), (IF($F$19>6,(IF(7-$F$21=0, (VLOOKUP(3,Tablas!$A$747:$G$749,4,TRUE)), (IF(7-$F$21=1, (VLOOKUP(3,Tablas!$A$747:$G$749,4,TRUE)), (IF(7-$F$21=2, (VLOOKUP(3,Tablas!$A$747:$G$749,4,TRUE)), (IF(7-$F$21=3, (VLOOKUP(3,Tablas!$A$747:$G$749,4,TRUE)), (IF(7-$F$21=4, (VLOOKUP(3,Tablas!$A$747:$G$749,4,TRUE)), (VLOOKUP(3,Tablas!$A$747:$G$749,4,TRUE)))))))))))), (IF($F$19=3,(IF(3-$F$21=0,0, (IF(3-$F$21=1,(VLOOKUP(1,Tablas!$A$747:$G$749,4,TRUE)), (IF(3-$F$21=2, (VLOOKUP(2,Tablas!$A$747:$G$749,4,TRUE)), (VLOOKUP(3,Tablas!$A$747:$G$749,4,TRUE)))))))), (IF($F$19=2,(IF(2-$F$21=0, 0, (IF(2-$F$21=1,(VLOOKUP(1,Tablas!$A$747:$G$749,4,TRUE)), (IF(2-$F$21=2, (VLOOKUP(2,Tablas!$A$747:$G$749,4,TRUE)), 0)))))), (IF($F$19=1,(IF(1-$F$21=0, 0, (IF(1-$F$21=1,(VLOOKUP(1,Tablas!$A$747:$G$749,4,TRUE)),0)))),0))))))))))))))))))) -> 773.245 | I52: =IF($F$17=1, (IF($F$19=0, 0, (IF($F$21>$F$19, (VLOOKUP($F$19,Tablas!$A$747:$G$749,5,TRUE)), (IF($F$19>4,(IF($F$21=0, (VLOOKUP(3,Tablas!$A$747:$G$749,5,TRUE)), (IF($F$21=1, (VLOOKUP(3,Tablas!$A$747:$G$749,5,TRUE)), (IF($F$21=2, (VLOOKUP(3,Tablas!$A$747:$G$749,5,TRUE)), (VLOOKUP(3,Tablas!$A$747:$G$749,5,TRUE)))))))), (IF($F$19=4,(IF(4-$F$21=0,(VLOOKUP(2,Tablas!$A$747:$G$749,5,TRUE)), (IF(4-$F$21=1,(VLOOKUP(2,Tablas!$A$747:$G$749,5,TRUE)), (IF(4-$F$21=2, (VLOOKUP(2,Tablas!$A$747:$G$749,5,TRUE)), (VLOOKUP(3,Tablas!$A$747:$G$749,5,TRUE)))))))), (IF($F$19=3,(IF(3-$F$21=0,(VLOOKUP(1,Tablas!$A$747:$G$749,5,TRUE)), (IF(3-$F$21=1,(VLOOKUP(1,Tablas!$A$747:$G$749,5,TRUE)), (IF(3-$F$21=2, (VLOOKUP(2,Tablas!$A$747:$G$749,5,TRUE)), (VLOOKUP(3,Tablas!$A$747:$G$749,5,TRUE)))))))), (IF($F$19=2,(IF(2-$F$21=0, 0, (IF(2-$F$21=1,(VLOOKUP(1,Tablas!$A$747:$G$749,5,TRUE)), (IF(2-$F$21=2, (VLOOKUP(2,Tablas!$A$747:$G$749,5,TRUE)), 0)))))), (IF($F$19=1,(IF(1-$F$21=0, 0, (IF(1-$F$21=1,(VLOOKUP(1,Tablas!$A$747:$G$749,5,TRUE)),0)))),0)))))))))))))), (IF($F$19=0, 0, (IF($F$21>$F$19, (VLOOKUP($F$19,Tablas!$A$747:$G$749,5,TRUE)), (IF($F$19=4,(IF(4-$F$21=0, 0, (IF(4-$F$21=1, (VLOOKUP(1,Tablas!$A$747:$G$749,5,TRUE)), (IF(4-$F$21=2, (VLOOKUP(2,Tablas!$A$747:$G$749,5,TRUE)), (IF(4-$F$21=3, (VLOOKUP(3,Tablas!$A$747:$G$749,5,TRUE)), (IF(4-$F$21=4, (VLOOKUP(3,Tablas!$A$747:$G$749,5,TRUE)), 0)))))))))), (IF($F$19=5,(IF(5-$F$21=0, (VLOOKUP(1,Tablas!$A$747:$G$749,5,TRUE)), (IF(5-$F$21=1, (VLOOKUP(1,Tablas!$A$747:$G$749,5,TRUE)), (IF(5-$F$21=2, (VLOOKUP(2,Tablas!$A$747:$G$749,5,TRUE)), (IF(5-$F$21=3, (VLOOKUP(3,Tablas!$A$747:$G$749,5,TRUE)), (IF(5-$F$21=4, (VLOOKUP(3,Tablas!$A$747:$G$749,5,TRUE)), (VLOOKUP(3,Tablas!$A$747:$G$749,5,TRUE)))))))))))), (IF($F$19=6,(IF(6-$F$21=0, (VLOOKUP(2,Tablas!$A$747:$G$749,5,TRUE)), (IF(6-$F$21=1, (VLOOKUP(2,Tablas!$A$747:$G$749,5,TRUE)), (IF(6-$F$21=2, (VLOOKUP(2,Tablas!$A$747:$G$749,5,TRUE)), (IF(6-$F$21=3, (VLOOKUP(3,Tablas!$A$747:$G$749,5,TRUE)), (IF(6-$F$21=4, (VLOOKUP(3,Tablas!$A$747:$G$749,5,TRUE)), (VLOOKUP(3,Tablas!$A$747:$G$749,5,TRUE)))))))))))), (IF($F$19>6,(IF(7-$F$21=0, (VLOOKUP(3,Tablas!$A$747:$G$749,5,TRUE)), (IF(7-$F$21=1, (VLOOKUP(3,Tablas!$A$747:$G$749,5,TRUE)), (IF(7-$F$21=2, (VLOOKUP(3,Tablas!$A$747:$G$749,5,TRUE)), (IF(7-$F$21=3, (VLOOKUP(3,Tablas!$A$747:$G$749,5,TRUE)), (IF(7-$F$21=4, (VLOOKUP(3,Tablas!$A$747:$G$749,5,TRUE)), (VLOOKUP(3,Tablas!$A$747:$G$749,5,TRUE)))))))))))), (IF($F$19=3,(IF(3-$F$21=0,0, (IF(3-$F$21=1,(VLOOKUP(1,Tablas!$A$747:$G$749,5,TRUE)), (IF(3-$F$21=2, (VLOOKUP(2,Tablas!$A$747:$G$749,5,TRUE)), (VLOOKUP(3,Tablas!$A$747:$G$749,5,TRUE)))))))), (IF($F$19=2,(IF(2-$F$21=0, 0, (IF(2-$F$21=1,(VLOOKUP(1,Tablas!$A$747:$G$749,5,TRUE)), (IF(2-$F$21=2, (VLOOKUP(2,Tablas!$A$747:$G$749,5,TRUE)), 0)))))), (IF($F$19=1,(IF(1-$F$21=0, 0, (IF(1-$F$21=1,(VLOOKUP(1,Tablas!$A$747:$G$749,5,TRUE)),0)))),0))))))))))))))))))) -> 638.605 | J52: =IF($F$17=1, (IF($F$19=0, 0, (IF($F$21>$F$19, (VLOOKUP($F$19,Tablas!$A$747:$G$749,6,TRUE)), (IF($F$19>4,(IF($F$21=0, (VLOOKUP(3,Tablas!$A$747:$G$749,6,TRUE)), (IF($F$21=1, (VLOOKUP(3,Tablas!$A$747:$G$749,6,TRUE)), (IF($F$21=2, (VLOOKUP(3,Tablas!$A$747:$G$749,6,TRUE)), (VLOOKUP(3,Tablas!$A$747:$G$749,6,TRUE)))))))), (IF($F$19=4,(IF(4-$F$21=0,(VLOOKUP(2,Tablas!$A$747:$G$749,6,TRUE)), (IF(4-$F$21=1,(VLOOKUP(2,Tablas!$A$747:$G$749,6,TRUE)), (IF(4-$F$21=2, (VLOOKUP(2,Tablas!$A$747:$G$749,6,TRUE)), (VLOOKUP(3,Tablas!$A$747:$G$749,6,TRUE)))))))), (IF($F$19=3,(IF(3-$F$21=0,(VLOOKUP(1,Tablas!$A$747:$G$749,6,TRUE)), (IF(3-$F$21=1,(VLOOKUP(1,Tablas!$A$747:$G$749,6,TRUE)), (IF(3-$F$21=2, (VLOOKUP(2,Tablas!$A$747:$G$749,6,TRUE)), (VLOOKUP(3,Tablas!$A$747:$G$749,6,TRUE)))))))), (IF($F$19=2,(IF(2-$F$21=0, 0, (IF(2-$F$21=1,(VLOOKUP(1,Tablas!$A$747:$G$749,6,TRUE)), (IF(2-$F$21=2, (VLOOKUP(2,Tablas!$A$747:$G$749,6,TRUE)), 0)))))), (IF($F$19=1,(IF(1-$F$21=0, 0, (IF(1-$F$21=1,(VLOOKUP(1,Tablas!$A$747:$G$749,6,TRUE)),0)))),0)))))))))))))), (IF($F$19=0, 0, (IF($F$21>$F$19, (VLOOKUP($F$19,Tablas!$A$747:$G$749,6,TRUE)), (IF($F$19=4,(IF(4-$F$21=0, 0, (IF(4-$F$21=1, (VLOOKUP(1,Tablas!$A$747:$G$749,6,TRUE)), (IF(4-$F$21=2, (VLOOKUP(2,Tablas!$A$747:$G$749,6,TRUE)), (IF(4-$F$21=3, (VLOOKUP(3,Tablas!$A$747:$G$749,6,TRUE)), (IF(4-$F$21=4, (VLOOKUP(3,Tablas!$A$747:$G$749,6,TRUE)), 0)))))))))), (IF($F$19=5,(IF(5-$F$21=0, (VLOOKUP(1,Tablas!$A$747:$G$749,6,TRUE)), (IF(5-$F$21=1, (VLOOKUP(1,Tablas!$A$747:$G$749,6,TRUE)), (IF(5-$F$21=2, (VLOOKUP(2,Tablas!$A$747:$G$749,6,TRUE)), (IF(5-$F$21=3, (VLOOKUP(3,Tablas!$A$747:$G$749,6,TRUE)), (IF(5-$F$21=4, (VLOOKUP(3,Tablas!$A$747:$G$749,6,TRUE)), (VLOOKUP(3,Tablas!$A$747:$G$749,6,TRUE)))))))))))), (IF($F$19=6,(IF(6-$F$21=0, (VLOOKUP(2,Tablas!$A$747:$G$749,6,TRUE)), (IF(6-$F$21=1, (VLOOKUP(2,Tablas!$A$747:$G$749,6,TRUE)), (IF(6-$F$21=2, (VLOOKUP(2,Tablas!$A$747:$G$749,6,TRUE)), (IF(6-$F$21=3, (VLOOKUP(3,Tablas!$A$747:$G$749,6,TRUE)), (IF(6-$F$21=4, (VLOOKUP(3,Tablas!$A$747:$G$749,6,TRUE)), (VLOOKUP(3,Tablas!$A$747:$G$749,6,TRUE)))))))))))), (IF($F$19>6,(IF(7-$F$21=0, (VLOOKUP(3,Tablas!$A$747:$G$749,6,TRUE)), (IF(7-$F$21=1, (VLOOKUP(3,Tablas!$A$747:$G$749,6,TRUE)), (IF(7-$F$21=2, (VLOOKUP(3,Tablas!$A$747:$G$749,6,TRUE)), (IF(7-$F$21=3, (VLOOKUP(3,Tablas!$A$747:$G$749,6,TRUE)), (IF(7-$F$21=4, (VLOOKUP(3,Tablas!$A$747:$G$749,6,TRUE)), (VLOOKUP(3,Tablas!$A$747:$G$749,6,TRUE)))))))))))), (IF($F$19=3,(IF(3-$F$21=0,0, (IF(3-$F$21=1,(VLOOKUP(1,Tablas!$A$747:$G$749,6,TRUE)), (IF(3-$F$21=2, (VLOOKUP(2,Tablas!$A$747:$G$749,6,TRUE)), (VLOOKUP(3,Tablas!$A$747:$G$749,6,TRUE)))))))), (IF($F$19=2,(IF(2-$F$21=0, 0, (IF(2-$F$21=1,(VLOOKUP(1,Tablas!$A$747:$G$749,6,TRUE)), (IF(2-$F$21=2, (VLOOKUP(2,Tablas!$A$747:$G$749,6,TRUE)), 0)))))), (IF($F$19=1,(IF(1-$F$21=0, 0, (IF(1-$F$21=1,(VLOOKUP(1,Tablas!$A$747:$G$749,6,TRUE)),0)))),0))))))))))))))))))) -> 554.22125 | K52: =IF($F$17=1, (IF($F$19=0, 0, (IF($F$21>$F$19, (VLOOKUP($F$19,Tablas!$A$747:$G$749,7,TRUE)), (IF($F$19>4,(IF($F$21=0, (VLOOKUP(3,Tablas!$A$747:$G$749,7,TRUE)), (IF($F$21=1, (VLOOKUP(3,Tablas!$A$747:$G$749,7,TRUE)), (IF($F$21=2, (VLOOKUP(3,Tablas!$A$747:$G$749,7,TRUE)), (VLOOKUP(3,Tablas!$A$747:$G$749,7,TRUE)))))))), (IF($F$19=4,(IF(4-$F$21=0,(VLOOKUP(2,Tablas!$A$747:$G$749,7,TRUE)), (IF(4-$F$21=1,(VLOOKUP(2,Tablas!$A$747:$G$749,7,TRUE)), (IF(4-$F$21=2, (VLOOKUP(2,Tablas!$A$747:$G$749,7,TRUE)), (VLOOKUP(3,Tablas!$A$747:$G$749,7,TRUE)))))))), (IF($F$19=3,(IF(3-$F$21=0,(VLOOKUP(1,Tablas!$A$747:$G$749,7,TRUE)), (IF(3-$F$21=1,(VLOOKUP(1,Tablas!$A$747:$G$749,7,TRUE)), (IF(3-$F$21=2, (VLOOKUP(2,Tablas!$A$747:$G$749,7,TRUE)), (VLOOKUP(3,Tablas!$A$747:$G$749,7,TRUE)))))))), (IF($F$19=2,(IF(2-$F$21=0, 0, (IF(2-$F$21=1,(VLOOKUP(1,Tablas!$A$747:$G$749,7,TRUE)), (IF(2-$F$21=2, (VLOOKUP(2,Tablas!$A$747:$G$749,7,TRUE)), 0)))))), (IF($F$19=1,(IF(1-$F$21=0, 0, (IF(1-$F$21=1,(VLOOKUP(1,Tablas!$A$747:$G$749,7,TRUE)),0)))),0)))))))))))))), (IF($F$19=0, 0, (IF($F$21>$F$19, (VLOOKUP($F$19,Tablas!$A$747:$G$749,7,TRUE)), (IF($F$19=4,(IF(4-$F$21=0, 0, (IF(4-$F$21=1, (VLOOKUP(1,Tablas!$A$747:$G$749,7,TRUE)), (IF(4-$F$21=2, (VLOOKUP(2,Tablas!$A$747:$G$749,7,TRUE)), (IF(4-$F$21=3, (VLOOKUP(3,Tablas!$A$747:$G$749,7,TRUE)), (IF(4-$F$21=4, (VLOOKUP(3,Tablas!$A$747:$G$749,7,TRUE)), 0)))))))))), (IF($F$19=5,(IF(5-$F$21=0, (VLOOKUP(1,Tablas!$A$747:$G$749,7,TRUE)), (IF(5-$F$21=1, (VLOOKUP(1,Tablas!$A$747:$G$749,7,TRUE)), (IF(5-$F$21=2, (VLOOKUP(2,Tablas!$A$747:$G$749,7,TRUE)), (IF(5-$F$21=3, (VLOOKUP(3,Tablas!$A$747:$G$749,7,TRUE)), (IF(5-$F$21=4, (VLOOKUP(3,Tablas!$A$747:$G$749,7,TRUE)), (VLOOKUP(3,Tablas!$A$747:$G$749,7,TRUE)))))))))))), (IF($F$19=6,(IF(6-$F$21=0, (VLOOKUP(2,Tablas!$A$747:$G$749,7,TRUE)), (IF(6-$F$21=1, (VLOOKUP(2,Tablas!$A$747:$G$749,7,TRUE)), (IF(6-$F$21=2, (VLOOKUP(2,Tablas!$A$747:$G$749,7,TRUE)), (IF(6-$F$21=3, (VLOOKUP(3,Tablas!$A$747:$G$749,7,TRUE)), (IF(6-$F$21=4, (VLOOKUP(3,Tablas!$A$747:$G$749,7,TRUE)), (VLOOKUP(3,Tablas!$A$747:$G$749,7,TRUE)))))))))))), (IF($F$19>6,(IF(7-$F$21=0, (VLOOKUP(3,Tablas!$A$747:$G$749,7,TRUE)), (IF(7-$F$21=1, (VLOOKUP(3,Tablas!$A$747:$G$749,7,TRUE)), (IF(7-$F$21=2, (VLOOKUP(3,Tablas!$A$747:$G$749,7,TRUE)), (IF(7-$F$21=3, (VLOOKUP(3,Tablas!$A$747:$G$749,7,TRUE)), (IF(7-$F$21=4, (VLOOKUP(3,Tablas!$A$747:$G$749,7,TRUE)), (VLOOKUP(3,Tablas!$A$747:$G$749,7,TRUE)))))))))))), (IF($F$19=3,(IF(3-$F$21=0,0, (IF(3-$F$21=1,(VLOOKUP(1,Tablas!$A$747:$G$749,7,TRUE)), (IF(3-$F$21=2, (VLOOKUP(2,Tablas!$A$747:$G$749,7,TRUE)), (VLOOKUP(3,Tablas!$A$747:$G$749,7,TRUE)))))))), (IF($F$19=2,(IF(2-$F$21=0, 0, (IF(2-$F$21=1,(VLOOKUP(1,Tablas!$A$747:$G$749,7,TRUE)), (IF(2-$F$21=2, (VLOOKUP(2,Tablas!$A$747:$G$749,7,TRUE)), 0)))))), (IF($F$19=1,(IF(1-$F$21=0, 0, (IF(1-$F$21=1,(VLOOKUP(1,Tablas!$A$747:$G$749,7,TRUE)),0)))),0))))))))))))))))))) -> 418.64625
E53: Total de Prima neta | G53: =SUM(G50:G52) -> 21548.945 | H53: =SUM(H50:H52) -> 18887.4675 | I53: =SUM(I50:I52) -> 15058.40875 | J53: =SUM(J50:J52) -> 13057.50875 | K53: =SUM(K50:K52) -> 9866.5875
E54: Tarifa administrativa anual | G54: 75 | H54: 75 | I54: 75 | J54: 75 | K54: 75
E55: IVA (12%) | G55: =(G53+G54)*12% -> 2594.8734 | H55: =(H53+H54)*12% -> 2275.4961 | I55: 1816.00905 | J55: =(J53+J54)*12% -> 1575.90105 | K55: 1192.9905
E56: TOTAL de primera cuota | G56: =SUM(G53:G55) -> 24218.8184 | H56: =SUM(H53:H55) -> 21237.9636 | I56: =SUM(I53:I55) -> 16949.4178 | J56: =SUM(J53:J55) -> 14708.4098 | K56: =SUM(K53:K55) -> 11134.578
E57: Costo de tarifa trimestral 2 a 4 | G57: =G53+G55 - G54*12% -> 24134.8184 | H57: =H53+H55 - H54*12% -> 21153.9636 | I57: 16865.4178 | J57: =J53+J55 - J54*12% -> 14624.4098 | K57: 11050.578
E58: TOTAL ANUAL | G58: =G56+(G57*3) -> 96623.2736 | H58: =H56+(H57*3) -> 84699.8544 | I58: 67545.6712 | J58: =J56+(J57*3) -> 58581.6392 | K58: 44286.312
E59: Ahorros en tarifas de prima para niños | G59: =IF($F$17=1,IF($F$19=0,0,IF($F$21=0,0,IF($F$21=1,(VLOOKUP(1,Tablas!$A$747:$G$749,3,TRUE)),(VLOOKUP(2,Tablas!$A$747:$G$749,3,TRUE))))), IF($F$19=0,0,IF($F$21=0,0,IF($F$21=1,(VLOOKUP(1,Tablas!$A$747:$G$749,3,TRUE)),IF($F$21=2,(VLOOKUP(2,Tablas!$A$747:$G$749,3,TRUE)), (VLOOKUP(3,Tablas!$A$747:$G$749,3,TRUE))))))) -> 1500.2075 | H59: =IF($F$17=1,IF($F$19=0,0,IF($F$21=0,0,IF($F$21=1,(VLOOKUP(1,Tablas!$A$747:$G$749,4,TRUE)),(VLOOKUP(2,Tablas!$A$747:$G$749,4,TRUE))))), IF($F$19=0,0,IF($F$21=0,0,IF($F$21=1,(VLOOKUP(1,Tablas!$A$747:$G$749,4,TRUE)),IF($F$21=2,(VLOOKUP(2,Tablas!$A$747:$G$749,4,TRUE)), (VLOOKUP(3,Tablas!$A$747:$G$749,4,TRUE))))))) -> 1315.0775 | I59: =IF($F$17=1,IF($F$19=0,0,IF($F$21=0,0,IF($F$21=1,(VLOOKUP(1,Tablas!$A$747:$G$749,5,TRUE)),(VLOOKUP(2,Tablas!$A$747:$G$749,5,TRUE))))), IF($F$19=0,0,IF($F$21=0,0,IF($F$21=1,(VLOOKUP(1,Tablas!$A$747:$G$749,5,TRUE)),IF($F$21=2,(VLOOKUP(2,Tablas!$A$747:$G$749,5,TRUE)), (VLOOKUP(3,Tablas!$A$747:$G$749,5,TRUE))))))) -> 1085.535 | J59: =IF($F$17=1,IF($F$19=0,0,IF($F$21=0,0,IF($F$21=1,(VLOOKUP(1,Tablas!$A$747:$G$749,6,TRUE)),(VLOOKUP(2,Tablas!$A$747:$G$749,6,TRUE))))), IF($F$19=0,0,IF($F$21=0,0,IF($F$21=1,(VLOOKUP(1,Tablas!$A$747:$G$749,6,TRUE)),IF($F$21=2,(VLOOKUP(2,Tablas!$A$747:$G$749,6,TRUE)), (VLOOKUP(3,Tablas!$A$747:$G$749,6,TRUE))))))) -> 941.545 | K59: =IF($F$17=1,IF($F$19=0,0,IF($F$21=0,0,IF($F$21=1,(VLOOKUP(1,Tablas!$A$747:$G$749,7,TRUE)),(VLOOKUP(2,Tablas!$A$747:$G$749,7,TRUE))))), IF($F$19=0,0,IF($F$21=0,0,IF($F$21=1,(VLOOKUP(1,Tablas!$A$747:$G$749,7,TRUE)),IF($F$21=2,(VLOOKUP(2,Tablas!$A$747:$G$749,7,TRUE)), (VLOOKUP(3,Tablas!$A$747:$G$749,7,TRUE))))))) -> 711.535
E62: Tarifas en US $ - Efectivas a partir del 1ro de enero de 202 2
E63: Este presupuesto solamente tiene carácter informativo y en ningún momento expresa compromiso legal para suministrarle cobertura de seguro. La emisión de una póliza de seguro Bupa está sujeta a todas las evaluaciones de riesgo por parte de Bupa y a la recepción de todos los pagos de prima requeridos.

Sheet Global Premier
A16: GLOBAL PREMIER HEALTH PLAN | D16: Nombre del Asegurado Titular: | F16: =+'INGRESO DE DATOS'!$D$14 -> NOMBRE COMPLETO
D18: Número de adultos en la póliza: | F18: =+'INGRESO DE DATOS'!$D$16 -> 2 | H18: Edad del Asegurado Titular: | I18: =+'INGRESO DE DATOS'!$D$18 -> 65
D20: Número de niños en la póliza: | F20: =+'INGRESO DE DATOS'!$H$16 -> 3 | H20: Edad del/la conyuge: | I20: =+'INGRESO DE DATOS'!$H$18 -> 71
H22: Fecha de la cotización: | I22: =NOW() -> 2021-12-20T11:32:08.260
H23: FALSE
E24: Deducibles | G24: PLAN 1 | H24: PLAN 2 | I24: PLAN 3 | J24: PLAN 4
E25: En el país de residencia | G25: 250 | H25: 2000 | I25: 5000 | J25: 10000
E26: Fuera del país de residencia | G26: 5000 | H26: 2000 | I26: 5000 | J26: 10000
E28: Tarifas anuales
E29: Prima para Asegurado Titular | G29: =VLOOKUP($I$18,Tablas!$A$155:$G$221,3,TRUE) -> 14105.25 | H29: =VLOOKUP($I$18,Tablas!$A$155:$G$221,4,TRUE) -> 12799.5 | I29: =VLOOKUP($I$18,Tablas!$A$155:$G$221,5,TRUE) -> 8946.75 | J29: =VLOOKUP($I$18,Tablas!$A$155:$G$221,6,TRUE) -> 6474.75
E30: Prima para conyuge | G30: =IF($F$18=1,0,(VLOOKUP($I$20,Tablas!$A$155:$G$221,3,TRUE))) -> 23478 | H30: =IF($F$18=1,0,(VLOOKUP($I$20,Tablas!$A$155:$G$221,4,TRUE))) -> 21306 | I30: =IF($F$18=1,0,(VLOOKUP($I$20,Tablas!$A$155:$G$221,5,TRUE))) -> 14984.25 | J30: =IF($F$18=1,0,(VLOOKUP($I$20,Tablas!$A$155:$G$221,6,TRUE))) -> 10845.75
E31: Prima para hijo (s) | G31: =IF($F$20=0,0,(VLOOKUP($F$20,Tablas!$A$222:$G$224,3,TRUE))) -> 3850.5 | H31: =IF($F$20=0,0,(VLOOKUP($F$20,Tablas!$A$222:$G$224,4,TRUE))) -> 3495.75 | I31: =IF($F$20=0,0,(VLOOKUP($F$20,Tablas!$A$222:$G$224,5,TRUE))) -> 2613 | J31: =IF($F$20=0,0,(VLOOKUP($F$20,Tablas!$A$222:$G$224,6,TRUE))) -> 1891.5
E32: Total de Prima neta | G32: =SUM(G29:G31) -> 41433.75 | H32: =SUM(H29:H31) -> 37601.25 | I32: 26544 | J32: =SUM(J29:J31) -> 19212
E33: Tarifa administrativa anual | G33: 75 | H33: 75 | I33: 75 | J33: 75
E34: IVA (12%) | G34: =(G32+G33)*12% -> 4981.05 | H34: =(H32+H33)*12% -> 4521.15 | I34: 3194.28 | J34: =(J32+J33)*12% -> 2314.44
E35: TOTAL ANUAL | G35: =SUM(G32:G34) -> 46489.8 | H35: =SUM(H32:H34) -> 42197.4 | I35: =SUM(I32:I34) -> 29813.28 | J35: =SUM(J32:J34) -> 21601.44
E37: Tarifas semi anuales
E38: Prima para Asegurado Titular | G38: =VLOOKUP($I$18,Tablas!$A$530:$G$596,3,TRUE) -> 7475.7825 | H38: =VLOOKUP($I$18,Tablas!$A$530:$G$596,4,TRUE) -> 6783.735 | I38: =VLOOKUP($I$18,Tablas!$A$530:$G$596,5,TRUE) -> 4741.7775 | J38: =VLOOKUP($I$18,Tablas!$A$530:$G$596,6,TRUE) -> 3431.6175
E39: Prima para conyuge | G39: =IF($F$18=1,0,(VLOOKUP($I$20,Tablas!$A$530:$G$596,3,TRUE))) -> 12443.34 | H39: =IF($F$18=1,0,(VLOOKUP($I$20,Tablas!$A$530:$G$596,4,TRUE))) -> 11292.18 | I39: =IF($F$18=1,0,(VLOOKUP($I$20,Tablas!$A$530:$G$596,5,TRUE))) -> 7941.6525 | J39: =IF($F$18=1,0,(VLOOKUP($I$20,Tablas!$A$530:$G$596,6,TRUE))) -> 5748.2475
E40: Prima para hijo (s) | G40: =IF($F$20=0,0,(VLOOKUP($F$20,Tablas!$A$597:$G$599,3,TRUE))) -> 2040.765 | H40: =IF($F$20=0,0,(VLOOKUP($F$20,Tablas!$A$597:$G$599,4,TRUE))) -> 1852.7475 | I40: =IF($F$20=0,0,(VLOOKUP($F$20,Tablas!$A$597:$G$599,5,TRUE))) -> 1384.89 | J40: =IF($F$20=0,0,(VLOOKUP($F$20,Tablas!$A$597:$G$599,6,TRUE))) -> 1002.495
E41: Total de Prima neta | G41: =SUM(G38:G40) -> 21959.8875 | H41: =SUM(H38:H40) -> 19928.6625 | I41: =SUM(I38:I40) -> 14068.32 | J41: =SUM(J38:J40) -> 10182.36
E42: Tarifa administrativa anual | G42: 75 | H42: 75 | I42: 75 | J42: 75
E43: IVA (12%) | G43: =(G41+G42)*12% -> 2644.1865 | H43: =(H41+H42)*12% -> 2400.4395 | I43: 1697.1984 | J43: =(J41+J42)*12% -> 1230.8832
E44: TOTAL de primera cuota | G44: =SUM(G41:G43) -> 24679.074 | H44: =SUM(H41:H43) -> 22404.102 | I44: =SUM(I41:I43) -> 15840.5184 | J44: =SUM(J41:J43) -> 11488.2432
E45: Costo de segunda cuota | G45: =G41+G43 - G42*12% -> 24595.074 | H45: =H41+H43 - H42*12% -> 22320.102 | I45: 15756.5184 | J45: =J41+J43 - J42*12% -> 11404.2432
E46: TOTAL ANUAL | G46: =G44+G45 -> 49274.148 | H46: =H44+H45 -> 44724.204 | I46: 31597.0368 | J46: =J44+J45 -> 22892.4864
E48: Tarifas trimestrales
E49: Prima para Asegurado Titular | G49: =VLOOKUP($I$18,Tablas!$A$755:$G$821,3,TRUE) -> 3878.94375 | H49: =VLOOKUP($I$18,Tablas!$A$755:$G$821,4,TRUE) -> 3519.8625 | I49: =VLOOKUP($I$18,Tablas!$A$755:$G$821,5,TRUE) -> 2460.35625 | J49: =VLOOKUP($I$18,Tablas!$A$755:$G$821,6,TRUE) -> 1780.55625
E50: Prima para conyuge | G50: =IF($F$18=1,0,(VLOOKUP($I$20,Tablas!$A$755:$G$821,3,TRUE))) -> 6456.45 | H50: =IF($F$18=1,0,(VLOOKUP($I$20,Tablas!$A$755:$G$821,4,TRUE))) -> 5859.15 | I50: =IF($F$18=1,0,(VLOOKUP($I$20,Tablas!$A$755:$G$821,5,TRUE))) -> 4120.66875 | J50: =IF($F$18=1,0,(VLOOKUP($I$20,Tablas!$A$755:$G$821,6,TRUE))) -> 2982.58125
E51: Prima para hijo (s) | G51: =IF($F$20=0,0,(VLOOKUP($F$20,Tablas!$A$822:$G$824,3,TRUE))) -> 1058.8875 | H51: =IF($F$20=0,0,(VLOOKUP($F$20,Tablas!$A$822:$G$824,4,TRUE))) -> 961.33125 | I51: =IF($F$20=0,0,(VLOOKUP($F$20,Tablas!$A$822:$G$824,5,TRUE))) -> 718.575 | J51: =IF($F$20=0,0,(VLOOKUP($F$20,Tablas!$A$822:$G$824,6,TRUE))) -> 520.1625
E52: Total de Prima neta | G52: =SUM(G49:G51) -> 11394.28125 | H52: =SUM(H49:H51) -> 10340.34375 | I52: =SUM(I49:I51) -> 7299.6 | J52: =SUM(J49:J51) -> 5283.3
E53: Tarifa administrativa anual | G53: 75 | H53: 75 | I53: 75 | J53: 75
E54: IVA (12%) | G54: =(G52+G53)*12% -> 1376.31375 | H54: =(H52+H53)*12% -> 1249.84125 | I54: 884.952 | J54: =(J52+J53)*12% -> 642.996
E55: TOTAL de primera cuota | G55: =SUM(G52:G54) -> 12845.595 | H55: =SUM(H52:H54) -> 11665.185 | I55: =SUM(I52:I54) -> 8259.552 | J55: =SUM(J52:J54) -> 6001.296
E56: Costo de tarifa trimestral 2 a 4 | G56: =G52+G54 - G53*12% -> 12761.595 | H56: =H52+H54 - H53*12% -> 11581.185 | I56: 8175.552 | J56: =J52+J54 - J53*12% -> 5917.296
E57: TOTAL ANUAL | G57: =G55+(G56*3) -> 51130.38 | H57: =H55+(H56*3) -> 46408.74 | I57: 32786.208 | J57: =J55+(J56*3) -> 23753.184
E60: Tarifas en US $ - Efectivas a partir del 1ro de enero de 2022
E61: Este presupuesto solamente tiene carácter informativo y en ningún momento expresa compromiso legal para suministrarle cobertura de seguro. La emisión de una póliza de seguro Bupa está sujeta a todas las evaluaciones de riesgo por parte de Bupa y a la recepción de todos los pagos de prima requeridos.

Sheet Global Select
A18: GLOBAL SELECT HEALTH PLAN | D18: Nombre del Asegurado Titular: | F18: =+'INGRESO DE DATOS'!$D$14 -> NOMBRE COMPLETO
D20: Número de adultos en la póliza: | F20: =+'INGRESO DE DATOS'!$D$16 -> 2 | H20: Edad del Asegurado Titular: | I20: =+'INGRESO DE DATOS'!$D$18 -> 65
E22: Número de niños en la póliza: | F22: =+'INGRESO DE DATOS'!$H$16 -> 3 | H22: Edad del/la conyuge: | I22: =+'INGRESO DE DATOS'!$H$18 -> 71
H24: Fecha de la cotización: | I24: =NOW() -> 2021-12-20T11:32:08.260
H25: FALSE
E26: Deducibles | G26: PLAN 1 | H26: PLAN 2 | I26: PLAN 3 | J26: PLAN 4
E27: En el país de residencia | G27: 250 | H27: 2000 | I27: 5000 | J27: 10000
E28: Fuera del país de residencia | G28: 5000 | H28: 2000 | I28: 5000 | J28: 10000
E30: Tarifas anuales
E31: Prima para Asegurado Titular | G31: =VLOOKUP($I$20,Tablas!$A$305:$G$371,3,TRUE) -> 14443.2 | H31: =VLOOKUP($I$20,Tablas!$A$305:$G$371,4,TRUE) -> 13859.25 | I31: =VLOOKUP($I$20,Tablas!$A$305:$G$371,5,TRUE) -> 9724.85 | J31: =VLOOKUP($I$20,Tablas!$A$305:$G$371,6,TRUE) -> 7048.2
E32: Prima para conyuge | G32: =IF($F$20=1,0,(VLOOKUP($I$22,Tablas!$A$305:$G$371,3,TRUE))) -> 24468.1 | H32: =IF($F$20=1,0,(VLOOKUP($I$22,Tablas!$A$305:$G$371,4,TRUE))) -> 23477.85 | I32: =IF($F$20=1,0,(VLOOKUP($I$22,Tablas!$A$305:$G$371,5,TRUE))) -> 16575 | J32: =IF($F$20=1,0,(VLOOKUP($I$22,Tablas!$A$305:$G$371,6,TRUE))) -> 12013.05
E33: Prima para hijo (s) | G33: =IF($F$22=0,0,(VLOOKUP($F$22,Tablas!$A$372:$G$374,3,TRUE))) -> 7779.2 | H33: =IF($F$22=0,0,(VLOOKUP($F$22,Tablas!$A$372:$G$374,4,TRUE))) -> 7464.7 | I33: =IF($F$22=0,0,(VLOOKUP($F$22,Tablas!$A$372:$G$374,5,TRUE))) -> 5625.3 | J33: =IF($F$22=0,0,(VLOOKUP($F$22,Tablas!$A$372:$G$374,6,TRUE))) -> 4078.3
E34: Total de Prima neta | G34: =SUM(G31:G33) -> 46690.5 | H34: =SUM(H31:H33) -> 44801.8 | I34: =SUM(I31:I33) -> 31925.15 | J34: =SUM(J31:J33) -> 23139.55
E35: Tarifa administrativa anual | G35: 75 | H35: 75 | I35: 75 | J35: 75
E36: IVA (12%) | G36: =(G34+G35)*12% -> 5611.86 | H36: =(H34+H35)*12% -> 5385.216 | I36: 3840.018 | J36: =(J34+J35)*12% -> 2785.746
E37: TOTAL ANUAL | G37: =SUM(G34:G36) -> 52377.36 | H37: =SUM(H34:H36) -> 50262.016 | I37: =SUM(I34:I36) -> 35840.168 | J37: =SUM(J34:J36) -> 26000.296
E39: Tarifas semi anuales
E40: Prima para Asegurado Titular | G40: =VLOOKUP($I$20,Tablas!$A$605:$G$671,3,TRUE) -> 7654.896 | H40: =VLOOKUP($I$20,Tablas!$A$605:$G$671,4,TRUE) -> 7345.4025 | I40: =VLOOKUP($I$20,Tablas!$A$605:$G$671,5,TRUE) -> 5154.1705 | J40: =VLOOKUP($I$20,Tablas!$A$605:$G$671,6,TRUE) -> 3735.546
E41: Prima para conyuge | G41: =IF($F$20=1,0,(VLOOKUP($I$22,Tablas!$A$605:$G$671,3,TRUE))) -> 12968.093 | H41: =IF($F$20=1,0,(VLOOKUP($I$22,Tablas!$A$605:$G$671,4,TRUE))) -> 12443.2605 | I41: =IF($F$20=1,0,(VLOOKUP($I$22,Tablas!$A$605:$G$671,5,TRUE))) -> 8784.75 | J41: =IF($F$20=1,0,(VLOOKUP($I$22,Tablas!$A$605:$G$671,6,TRUE))) -> 6366.9165
E42: Prima para hijo (s) | G42: =IF($F$22=0,0,(VLOOKUP($F$22,Tablas!$A$672:$G$674,3,TRUE))) -> 4122.976 | H42: =IF($F$22=0,0,(VLOOKUP($F$22,Tablas!$A$672:$G$674,4,TRUE))) -> 3956.291 | I42: =IF($F$22=0,0,(VLOOKUP($F$22,Tablas!$A$672:$G$674,5,TRUE))) -> 2981.409 | J42: =IF($F$22=0,0,(VLOOKUP($F$22,Tablas!$A$672:$G$674,6,TRUE))) -> 2161.499
E43: Total de Prima neta | G43: =SUM(G40:G42) -> 24745.965 | H43: =SUM(H40:H42) -> 23744.954 | I43: =SUM(I40:I42) -> 16920.3295 | J43: =SUM(J40:J42) -> 12263.9615
E44: Tarifa administrativa anual | G44: 75 | H44: 75 | I44: 75 | J44: 75
E45: IVA (12%) | G45: =(G43+G44)*12% -> 2978.5158 | H45: =(H43+H44)*12% -> 2858.39448 | I45: 2039.43954 | J45: =(J43+J44)*12% -> 1480.67538
E46: TOTAL de primera cuota | G46: =SUM(G43:G45) -> 27799.4808 | H46: =SUM(H43:H45) -> 26678.34848 | I46: =SUM(I43:I45) -> 19034.76904 | J46: =SUM(J43:J45) -> 13819.63688
E47: Costo de segunda cuota | G47: =G43+G45 - G44*12% -> 27715.4808 | H47: =H43+H45 - H44*12% -> 26594.34848 | I47: 18950.76904 | J47: =J43+J45 - J44*12% -> 13735.63688
E48: TOTAL ANUAL | G48: =G46+G47 -> 55514.9616 | H48: =H46+H47 -> 53272.69696 | I48: 37985.53808 | J48: =J46+J47 -> 27555.27376
E50: Tarifas trimestrales
E51: Prima para Asegurado Titular | G51: =VLOOKUP($I$20,Tablas!$A$830:$G$896,3,TRUE) -> 3971.88 | H51: =VLOOKUP($I$20,Tablas!$A$830:$G$896,4,TRUE) -> 3811.29375 | I51: =VLOOKUP($I$20,Tablas!$A$830:$G$896,5,TRUE) -> 2674.33375 | J51: =VLOOKUP($I$20,Tablas!$A$830:$G$896,6,TRUE) -> 1938.255
E52: Prima para conyuge | G52: =IF($F$20=1,0,(VLOOKUP($I$22,Tablas!$A$830:$G$896,3,TRUE))) -> 6728.7275 | H52: =IF($F$20=1,0,(VLOOKUP($I$22,Tablas!$A$830:$G$896,4,TRUE))) -> 6456.40875 | I52: =IF($F$20=1,0,(VLOOKUP($I$22,Tablas!$A$830:$G$896,5,TRUE))) -> 4558.125 | J52: =IF($F$20=1,0,(VLOOKUP($I$22,Tablas!$A$830:$G$896,6,TRUE))) -> 3303.58875
E53: Prima para hijo (s) | G53: =IF($F$22=0,0,(VLOOKUP($F$22,Tablas!$A$897:$G$899,3,TRUE))) -> 2139.28 | H53: =IF($F$22=0,0,(VLOOKUP($F$22,Tablas!$A$897:$G$899,4,TRUE))) -> 2052.7925 | I53: =IF($F$22=0,0,(VLOOKUP($F$22,Tablas!$A$897:$G$899,5,TRUE))) -> 1546.9575 | J53: =IF($F$22=0,0,(VLOOKUP($F$22,Tablas!$A$897:$G$899,6,TRUE))) -> 1121.5325
E54: Total de Prima neta | G54: =SUM(G51:G53) -> 12839.8875 | H54: =SUM(H51:H53) -> 12320.495 | I54: =SUM(I51:I53) -> 8779.41625 | J54: =SUM(J51:J53) -> 6363.37625
E55: Tarifa administrativa anual | G55: 75 | H55: 75 | I55: 75 | J55: 75
E56: IVA (12%) | G56: =(G54+G55)*12% -> 1549.7865 | H56: =(H54+H55)*12% -> 1487.4594 | I56: 1062.52995 | J56: =(J54+J55)*12% -> 772.60515
E57: TOTAL de primera cuota | G57: =SUM(G54:G56) -> 14464.674 | H57: =SUM(H54:H56) -> 13882.9544 | I57: =SUM(I54:I56) -> 9916.9462 | J57: =SUM(J54:J56) -> 7210.9814
E58: Costo de tarifa trimestral 2 a 4 | G58: =G54+G56 - G55*12% -> 14380.674 | H58: =H54+H56 - H55*12% -> 13798.9544 | I58: 9832.9462 | J58: =J54+J56 - J55*12% -> 7126.9814
E59: TOTAL ANUAL | G59: =G57+(G58*3) -> 57606.696 | H59: =H57+(H58*3) -> 55279.8176 | I59: 39415.7848 | J59: =J57+(J58*3) -> 28591.9256
E62: Tarifas en US $ - Efectivas a partir del 1ro de enero de 2022
E63: Este presupuesto solamente tiene carácter informativo y en ningún momento expresa compromiso legal para suministrarle cobertura de seguro. La emisión de una póliza de seguro Bupa está sujeta a todas las evaluaciones de riesgo por parte de Bupa y a la recepción de todos los pagos de prima requeridos.

Sheet Global Major Medical
A17: GLOBAL MAJOR MEDICAL HEALTH PLAN | D17: Nombre del Asegurado Titular: | F17: =+'INGRESO DE DATOS'!$D$14 -> NOMBRE COMPLETO
D19: Número de adultos en la póliza: | F19: =+'INGRESO DE DATOS'!$D$16 -> 2 | H19: Edad del Asegurado Titular: | I19: =+'INGRESO DE DATOS'!$D$18 -> 65
D21: Número de niños en la póliza: | F21: =+'INGRESO DE DATOS'!$H$16 -> 3 | H21: Edad del/la conyuge: | I21: =+'INGRESO DE DATOS'!$H$18 -> 71
H23: Fecha de la cotización: | I23: =NOW() -> 2021-12-20T11:32:08.250
H24: FALSE
E25: Deducibles | G25: PLAN 1 | H25: PLAN 2
E26: En el país de residencia | G26: 10000 | H26: 20000
E27: Fuera del país de residencia | G27: 10000 | H27: 20000
E29: Tarifas anuales
E30: Prima para Asegurado Titular | G30: =VLOOKUP($I$19,Tablas!$A$1129:$G$1195,3,TRUE) -> 7794.5 | H30: =VLOOKUP($I$19,Tablas!$A$1129:$G$1195,4,TRUE) -> 6129.35
E31: Prima para conyuge | G31: =IF($F$19=1,0,(VLOOKUP($I$21,Tablas!$A$1129:$G$1195,3,TRUE))) -> 12937.85 | H31: =IF($F$19=1,0,(VLOOKUP($I$21,Tablas!$A$1129:$G$1195,4,TRUE))) -> 10436.3
E32: Prima para hijo (s) | G32: =IF($F$21=0,0,(VLOOKUP($F$21,Tablas!$A$1196:$G$1198,3,TRUE))) -> 2115.65 | H32: =IF($F$21=0,0,(VLOOKUP($F$21,Tablas!$A$1196:$G$1198,4,TRUE))) -> 1656.65
E33: Total de Prima neta | G33: =SUM(G30:G32) -> 22848 | H33: =SUM(H30:H32) -> 18222.3
E34: Tarifa administrativa anual | G34: 75 | H34: 75
E35: IVA (12%) | G35: =(G33+G34)*12% -> 2750.76 | H35: =(H33+H34)*12% -> 2195.676
E36: TOTAL ANUAL | G36: =SUM(G33:G35) -> 25673.76 | H36: =SUM(H33:H35) -> 20492.976
E38: Tarifas semi anuales
E39: Prima para Asegurado Titular | G39: =VLOOKUP($I$19,Tablas!$A$1353:$G$1419,3,TRUE) -> 4131.085 | H39: =VLOOKUP($I$19,Tablas!$A$1353:$G$1419,4,TRUE) -> 3248.5555
E40: Prima para conyuge | G40: =IF($F$19=1,0,(VLOOKUP($I$21,Tablas!$A$1353:$G$1419,3,TRUE))) -> 6857.0605 | H40: =IF($F$19=1,0,(VLOOKUP($I$21,Tablas!$A$1353:$G$1419,4,TRUE))) -> 5531.239
E41: Prima para hijo (s) | G41: =IF($F$21=0,0,(VLOOKUP($F$21,Tablas!$A$1420:$G$1422,3,TRUE))) -> 1121.2945 | H41: =IF($F$21=0,0,(VLOOKUP($F$21,Tablas!$A$1420:$G$1422,4,TRUE))) -> 878.0245
E42: Total de Prima neta | G42: =SUM(G39:G41) -> 12109.44 | H42: =SUM(H39:H41) -> 9657.819
E43: Tarifa administrativa anual | G43: 75 | H43: 75
E44: IVA (12%) | G44: =(G42+G43)*12% -> 1462.1328 | H44: =(H42+H43)*12% -> 1167.93828
E45: TOTAL de primera cuota | G45: =SUM(G42:G44) -> 13646.5728 | H45: =SUM(H42:H44) -> 10900.75728
E46: Costo de segunda cuota | G46: =G42+G44 - G43*12% -> 13562.5728 | H46: =H42+H44 - H43*12% -> 10816.75728
E47: TOTAL ANUAL | G47: =G45+G46 -> 27209.1456 | H47: =H45+H46 -> 21717.51456
E49: Tarifas trimestrales
E50: Prima para Asegurado Titular | G50: =VLOOKUP($I$19,Tablas!$A$1278:$G$1344,3,TRUE) -> 2143.4875 | H50: =VLOOKUP($I$19,Tablas!$A$1278:$G$1344,4,TRUE) -> 1685.57125
E51: Prima para conyuge | G51: =IF($F$19=1,0,(VLOOKUP($I$21,Tablas!$A$1278:$G$1344,3,TRUE))) -> 3557.90875 | H51: =IF($F$19=1,0,(VLOOKUP($I$21,Tablas!$A$1278:$G$1344,4,TRUE))) -> 2869.9825
E52: Prima para hijo (s) | G52: =IF($F$21=0,0,(VLOOKUP($F$21,Tablas!$A$1345:$G$1347,3,TRUE))) -> 581.80375 | H52: =IF($F$21=0,0,(VLOOKUP($F$21,Tablas!$A$1345:$G$1347,4,TRUE))) -> 455.57875
E53: Total de Prima neta | G53: =SUM(G50:G52) -> 6283.2 | H53: =SUM(H50:H52) -> 5011.1325
E54: Tarifa administrativa anual | G54: 75 | H54: 75
E55: IVA (12%) | G55: =(G53+G54)*12% -> 762.984 | H55: =(H53+H54)*12% -> 610.3359
E56: TOTAL de primera cuota | G56: =SUM(G53:G55) -> 7121.184 | H56: =SUM(H53:H55) -> 5696.4684
E57: Costo de tarifa trimestral 2 a 4 | G57: =G53+G55 - G54*12% -> 7037.184 | H57: =H53+H55 - H54*12% -> 5612.4684
E58: TOTAL ANUAL | G58: =G56+(G57*3) -> 28232.736 | H58: =H56+(H57*3) -> 22533.8736
E61: Tarifas en US $ - Efectivas a partir del 1ro de enero de 2022
E62: Este presupuesto solamente tiene carácter informativo y en ningún momento expresa compromiso legal para suministrarle cobertura de seguro. La emisión de una póliza de seguro Bupa está sujeta a todas las evaluaciones de riesgo por parte de Bupa y a la recepción de todos los pagos de prima requeridos.

Sheet Resumen tarifas
A27: Cotizador de Seguro Médico - Bupa Global Health Plans
A29: Nombre del Asegurado Titular | C29: =+'INGRESO DE DATOS'!$D$14 -> NOMBRE COMPLETO
A32: Número de adultos en la póliza | C32: =+'INGRESO DE DATOS'!$D$16 -> 2 | E32: Edad del Asegurado Titular | G32: =+'INGRESO DE DATOS'!$D$18 -> 65
A35: Número de niños en la póliza | C35: =+'INGRESO DE DATOS'!$H$16 -> 3 | E35: Edad del/la cónyuge | G35: =+'INGRESO DE DATOS'!$H$18 -> 71
D38: FECHA DE LA COTIZACIÓN : | E38: =NOW() -> 2021-12-20T11:32:08.260
A40: Global Ultimate Health Plan
A41: Deducibles | C41: PLAN 1 | D41: PLAN 2
A42: En el país de residencia | C42: 0 | D42: 1000
A43: Fuera del país de residencia | C43: 0 | D43: 1000
C44: Tarifas anuales
C45: ='Global Ultimate'!G34 -> 262413.76 | D45: ='Global Ultimate'!H34 -> 169330.56
C46: Tarifas semi anuales
C47: ='Global Ultimate'!G44 -> 139118.7728 | D47: ='Global Ultimate'!H44 -> 89784.6768
C48: ='Global Ultimate'!G45 -> 139034.7728 | D48: ='Global Ultimate'!H45 -> 89700.6768
C49: Tarifas trimestrales
C50: ='Global Ultimate'!G56 -> 72224.684 | D50: ='Global Ultimate'!H56 -> 46626.804
C51: ='Global Ultimate'!G57 -> 72140.684 | D51: ='Global Ultimate'!H57 -> 46542.804
A52: =A66:H66 -> Ahorros en tarifas de prima para niños (pago annual)* | C52: ='Global Ultimate'!G35 -> 16323 | D52: ='Global Ultimate'!H35 -> 10533
A54: Global Elite Health Plan
A55: Deducibles | D55: PLAN 1 | E55: PLAN 2 | F55: PLAN 3 | G55: PLAN 4 | H55: PLAN 5
A56: En el país de residencia | D56: 250 | E56: 2000 | F56: 3500 | G56: 5000 | H56: 10000
A57: Fuera del país de residencia | D57: 5000 | E57: 2000 | F57: 3500 | G57: 5000 | H57: 10000
D58: Tarifas anuales
D59: =+'Global Elite'!G34 -> 87846.976 | E59: =+'Global Elite'!H34 -> 77007.504 | F59: =+'Global Elite'!I34 -> 61412.792 | G59: =+'Global Elite'!J34 -> 53263.672 | H59: =+'Global Elite'!K34 -> 40267.92
D60: Tarifas semi anuales
D61: =+'Global Elite'!G44 -> 46598.37728 | E61: =+'Global Elite'!H44 -> 40853.45712 | F61: =+'Global Elite'!I44 -> 32588.25976 | G61: =+'Global Elite'!J44 -> 28269.22616 | H61: =+'Global Elite'!K44 -> 21381.4776
D62: =+'Global Elite'!G45 -> 46514.37728 | E62: =+'Global Elite'!H45 -> 40769.45712 | F62: =+'Global Elite'!I45 -> 32504.25976 | G62: =+'Global Elite'!J45 -> 28185.22616 | H62: =+'Global Elite'!K45 -> 21297.4776
D63: Tarifas trimestrales
D64: =+'Global Elite'!G56 -> 24218.8184 | E64: =+'Global Elite'!H56 -> 21237.9636 | F64: =+'Global Elite'!I56 -> 16949.4178 | G64: =+'Global Elite'!J56 -> 14708.4098 | H64: =+'Global Elite'!K56 -> 11134.578
D65: =+'Global Elite'!G57 -> 24134.8184 | E65: =+'Global Elite'!H57 -> 21153.9636 | F65: =+'Global Elite'!I57 -> 16865.4178 | G65: =+'Global Elite'!J57 -> 14624.4098 | H65: =+'Global Elite'!K57 -> 11050.578
A66: Ahorros en tarifas de prima para niños (pago annual)* | D66: =+'Global Elite'!G35 -> 5455.3 | E66: =+'Global Elite'!H35 -> 4782.1 | F66: =+'Global Elite'!I35 -> 3947.4 | G66: =+'Global Elite'!J35 -> 3423.8 | H66: =+'Global Elite'!K35 -> 2587.4
A68: Global Premier Health Plan
A69: Deducibles | E69: PLAN 1 | F69: PLAN 2 | G69: PLAN 3 | H69: PLAN 3
A70: En el país de residencia | E70: 250 | F70: 2000 | G70: 5000 | H70: 10000
A71: Fuera del país de residencia | E71: 5000 | F71: 2000 | G71: 5000 | H71: 10000
E72: Tarifas anuales
E73: =+'Global Premier'!G35 -> 46489.8 | F73: =+'Global Premier'!H35 -> 42197.4 | G73: =+'Global Premier'!I35 -> 29813.28 | H73: =+'Global Premier'!J35 -> 21601.44
E74: Tarifas semi anuales
E75: =+'Global Premier'!G44 -> 24679.074 | F75: =+'Global Premier'!H44 -> 22404.102 | G75: =+'Global Premier'!I44 -> 15840.5184 | H75: =+'Global Premier'!J44 -> 11488.2432
E76: =+'Global Premier'!G45 -> 24595.074 | F76: =+'Global Premier'!H45 -> 22320.102 | G76: =+'Global Premier'!I45 -> 15756.5184 | H76: =+'Global Premier'!J45 -> 11404.2432
E77: Tarifas trimestrales
E78: =+'Global Premier'!G55 -> 12845.595 | F78: =+'Global Premier'!H55 -> 11665.185 | G78: =+'Global Premier'!I55 -> 8259.552 | H78: =+'Global Premier'!J55 -> 6001.296
E79: =+'Global Premier'!G56 -> 12761.595 | F79: =+'Global Premier'!H56 -> 11581.185 | G79: =+'Global Premier'!I56 -> 8175.552 | H79: =+'Global Premier'!J56 -> 5917.296
A81: Global Select Health Plan
A82: Deducibles | E82: PLAN 1 | F82: PLAN 2 | G82: PLAN 3 | H82: PLAN 4
A83: En el país de residencia | E83: 250 | F83: 2000 | G83: 5000 | H83: 10000
A84: Fuera del país de residencia | E84: 5000 | F84: 2000 | G84: 5000 | H84: 10000
E85: Tarifas anuales
E86: =+'Global Select'!G37 -> 52377.36 | F86: =+'Global Select'!H37 -> 50262.016 | G86: =+'Global Select'!I37 -> 35840.168 | H86: =+'Global Select'!J37 -> 26000.296
E87: Tarifas semi anuales
E88: =+'Global Select'!G46 -> 27799.4808 | F88: =+'Global Select'!H46 -> 26678.34848 | G88: =+'Global Select'!I46 -> 19034.76904 | H88: =+'Global Select'!J46 -> 13819.63688
E89: =+'Global Select'!G47 -> 27715.4808 | F89: =+'Global Select'!H47 -> 26594.34848 | G89: =+'Global Select'!I47 -> 18950.76904 | H89: =+'Global Select'!J47 -> 13735.63688
E90: Tarifas trimestrales
E91: =+'Global Select'!G57 -> 14464.674 | F91: =+'Global Select'!H57 -> 13882.9544 | G91: =+'Global Select'!I57 -> 9916.9462 | H91: =+'Global Select'!J57 -> 7210.9814
E92: =+'Global Select'!G58 -> 14380.674 | F92: =+'Global Select'!H58 -> 13798.9544 | G92: =+'Global Select'!I58 -> 9832.9462 | H92: =+'Global Select'!J58 -> 7126.9814
A94: Global Major Medical Health Plan
A95: Deducibles | C95: PLAN 1 | D95: PLAN 2
A96: En el país de residencia | C96: 10000 | D96: 20000
A97: Fuera del país de residencia | C97: 10000 | D97: 20000
C98: Tarifas anuales
C99: ='Global Major Medical'!G36 -> 25673.76 | D99: ='Global Major Medical'!H36 -> 20492.976
C100: Tarifas semi anuales
C101: ='Global Major Medical'!G45 -> 13646.5728 | D101: ='Global Major Medical'!H45 -> 10900.75728
C102: ='Global Major Medical'!G46 -> 13562.5728 | D102: ='Global Major Medical'!H46 -> 10816.75728
C103: Tarifas trimestrales
C104: ='Global Major Medical'!G56 -> 7121.184 | D104: ='Global Major Medical'!H56 -> 5696.4684
C105: ='Global Major Medical'!G57 -> 7037.184 | D105: ='Global Major Medical'!H57 -> 5612.4684
A107: Una tarifa administrativa de US$75 se carga automáticamente al primer pago
A108: *Basado en un modo de pago anual
A111: Tarifas en US $ - Efectivas a partir del 1ro de enero de 2022
A112: Este presupuesto solamente tiene carácter informativo y en ningún momento expresa compromiso legal para suministrarle cobertura de seguro. La emisión de una póliza de seguro Bupa está sujeta a todas las evaluaciones de riesgo por parte de Bupa y a la recepción de todos los pagos de prima requeridos.

Sheet Tablas (hidden)
A2: BUPA GLOBAL ELITE | I2: FACTOR MENSUAL: | K2: =1.12/12 -> 0.09333333333
A3: TARIFAS ANUALES | I3: FACTOR TRIMESTRAL: | K3: =1.1/4 -> 0.275
A4: EDAD | I4: FACTOR SEMIANUAL: | K4: =1.06/2 -> 0.53
C5: 1000 | D5: 2000 | E5: 3500 | F5: 5000 | G5: 10000 | M5: 1000 | N5: 2000 | O5: 3500 | P5: 5000 | Q5: 10000 | R5: 1000 | S5: 2000 | T5: 3500 | U5: 5000 | V5: 10000
A6: 18 | B6: OK | C6: =R6 -> 7128.95 | D6: =S6 -> 6247.5 | E6: 5161.2 | F6: 4473.55 | G6: 3382.15 | I6: Descuento (0%): | K6: 0.85 | M6: 8387 | N6: 7350 | O6: 6072 | P6: 5263 | Q6: 3979 | R6: =M6*85% -> 7128.95 | S6: =N6*85% -> 6247.5 | T6: =O6*85% -> 5161.2 | U6: =P6*85% -> 4473.55 | V6: =Q6*85% -> 3382.15
A7: 19 | C7: =R7 -> 7214.8 | D7: =S7 -> 6324 | E7: =T7 -> 5215.6 | F7: =U7 -> 4523.7 | G7: =V7 -> 3418.7 | M7: 8488 | N7: 7440 | O7: 6136 | P7: 5322 | Q7: 4022 | R7: =M7*85% -> 7214.8 | S7: =N7*85% -> 6324 | T7: =O7*85% -> 5215.6 | U7: =P7*85% -> 4523.7 | V7: =Q7*85% -> 3418.7
A8: 20 | C8: 7306.6 | D8: 6402.2 | E8: 5273.4 | F8: 4572.15 | G8: 3455.25 | M8: 8596 | N8: 7532 | O8: 6204 | P8: 5379 | Q8: 4065 | R8: 7306.6 | S8: 6402.2 | T8: 5273.4 | U8: 4572.15 | V8: 3455.25
A9: 21 | C9: 7397.55 | D9: 6484.65 | E9: 5332.05 | F9: 4624 | G9: 3494.35 | M9: 8703 | N9: 7629 | O9: 6273 | P9: 5440 | Q9: 4111 | R9: 7397.55 | S9: 6484.65 | T9: 5332.05 | U9: 4624 | V9: 3494.35
A10: 22 | C10: 7493.6 | D10: 6567.95 | E10: 5394.95 | F10: 4678.4 | G10: 3535.15 | M10: 8816 | N10: 7727 | O10: 6347 | P10: 5504 | Q10: 4159 | R10: 7493.6 | S10: 6567.95 | T10: 5394.95 | U10: 4678.4 | V10: 3535.15
A11: 23 | C11: 7592.2 | D11: 6657.2 | E11: 5459.55 | F11: 4733.65 | G11: 3577.65 | M11: 8932 | N11: 7832 | O11: 6423 | P11: 5569 | Q11: 4209 | R11: 7592.2 | S11: 6657.2 | T11: 5459.55 | U11: 4733.65 | V11: 3577.65
A12: 24 | C12: 7694.2 | D12: 6747.3 | E12: 5525 | F12: 4790.6 | G12: 3621 | M12: 9052 | N12: 7938 | O12: 6500 | P12: 5636 | Q12: 4260 | R12: 7694.2 | S12: 6747.3 | T12: 5525 | U12: 4790.6 | V12: 3621
A13: 25 | C13: 7802.15 | D13: 6838.25 | E13: 5591.3 | F13: 4848.4 | G13: 3665.2 | M13: 9179 | N13: 8045 | O13: 6578 | P13: 5704 | Q13: 4312 | R13: 7802.15 | S13: 6838.25 | T13: 5591.3 | U13: 4848.4 | V13: 3665.2
A14: 26 | C14: 7955.15 | D14: 6971.7 | E14: 5693.3 | F14: 4936.8 | G14: 3730.65 | M14: 9359 | N14: 8202 | O14: 6698 | P14: 5808 | Q14: 4389 | R14: 7955.15 | S14: 6971.7 | T14: 5693.3 | U14: 4936.8 | V14: 3730.65
A15: 27 | C15: 8113.25 | D15: 7112.8 | E15: 5797 | F15: 5027.75 | G15: 3798.65 | M15: 9545 | N15: 8368 | O15: 6820 | P15: 5915 | Q15: 4469 | R15: 8113.25 | S15: 7112.8 | T15: 5797 | U15: 5027.75 | V15: 3798.65
A16: 28 | C16: 8279.85 | D16: 7259 | E16: 5905.8 | F16: 5120.4 | G16: 3870.9 | M16: 9741 | N16: 8540 | O16: 6948 | P16: 6024 | Q16: 4554 | R16: 8279.85 | S16: 7259 | T16: 5905.8 | U16: 5120.4 | V16: 3870.9
A17: 29 | C17: 8453.25 | D17: 7409.45 | E17: 6020.55 | F17: 5219.85 | G17: 3944 | M17: 9945 | N17: 8717 | O17: 7083 | P17: 6141 | Q17: 4640 | R17: 8453.25 | S17: 7409.45 | T17: 6020.55 | U17: 5219.85 | V17: 3944
A18: 30 | C18: 8630.9 | D18: 7565.85 | E18: 6139.55 | F18: 5324.4 | G18: 4023.05 | M18: 10154 | N18: 8901 | O18: 7223 | P18: 6264 | Q18: 4733 | R18: 8630.9 | S18: 7565.85 | T18: 6139.55 | U18: 5324.4 | V18: 4023.05
A19: 31 | C19: 8817.05 | D19: 7730.75 | E19: 6258.55 | F19: 5428.1 | G19: 4101.25 | M19: 10373 | N19: 9095 | O19: 7363 | P19: 6386 | Q19: 4825 | R19: 8817.05 | S19: 7730.75 | T19: 6258.55 | U19: 5428.1 | V19: 4101.25
A20: 32 | C20: 9006.6 | D20: 7894.8 | E20: 6389.45 | F20: 5541.15 | G20: 4186.25 | M20: 10596 | N20: 9288 | O20: 7517 | P20: 6519 | Q20: 4925 | R20: 9006.6 | S20: 7894.8 | T20: 6389.45 | U20: 5541.15 | V20: 4186.25
A21: 33 | C21: 9207.2 | D21: 8070.75 | E21: 6518.65 | F21: 5654.2 | G21: 4272.1 | M21: 10832 | N21: 9495 | O21: 7669 | P21: 6652 | Q21: 5026 | R21: 9207.2 | S21: 8070.75 | T21: 6518.65 | U21: 5654.2 | V21: 4272.1
A22: 34 | C22: 9411.2 | D22: 8246.7 | E22: 6655.5 | F22: 5773.2 | G22: 4360.5 | M22: 11072 | N22: 9702 | O22: 7830 | P22: 6792 | Q22: 5130 | R22: 9411.2 | S22: 8246.7 | T22: 6655.5 | U22: 5773.2 | V22: 4360.5
A23: 35 | C23: 9621.15 | D23: 8432.85 | E23: 6796.6 | F23: 5893.9 | G23: 4454 | M23: 11319 | N23: 9921 | O23: 7996 | P23: 6934 | Q23: 5240 | R23: 9621.15 | S23: 8432.85 | T23: 6796.6 | U23: 5893.9 | V23: 4454
A24: 36 | C24: 9837.05 | D24: 8622.4 | E24: 6940.25 | F24: 6018.85 | G24: 4546.65 | M24: 11573 | N24: 10144 | O24: 8165 | P24: 7081 | Q24: 5349 | R24: 9837.05 | S24: 8622.4 | T24: 6940.25 | U24: 6018.85 | V24: 4546.65
A25: 37 | C25: 10059.75 | D25: 8817.9 | E25: 7093.25 | F25: 6150.6 | G25: 4647.8 | M25: 11835 | N25: 10374 | O25: 8345 | P25: 7236 | Q25: 5468 | R25: 10059.75 | S25: 8817.9 | T25: 7093.25 | U25: 6150.6 | V25: 4647.8
A26: 38 | C26: 10290.1 | D26: 9019.35 | E26: 7247.1 | F26: 6284.9 | G26: 4747.25 | M26: 12106 | N26: 10611 | O26: 8526 | P26: 7394 | Q26: 5585 | R26: 10290.1 | S26: 9019.35 | T26: 7247.1 | U26: 6284.9 | V26: 4747.25
A27: 39 | C27: 10524.7 | D27: 9225.05 | E27: 7406.05 | F27: 6421.75 | G27: 4853.5 | M27: 12382 | N27: 10853 | O27: 8713 | P27: 7555 | Q27: 5710 | R27: 10524.7 | S27: 9225.05 | T27: 7406.05 | U27: 6421.75 | V27: 4853.5
A28: 40 | C28: 10765.25 | D28: 9437.55 | E28: 7567.55 | F28: 6562.85 | G28: 4959.75 | M28: 12665 | N28: 11103 | O28: 8903 | P28: 7721 | Q28: 5835 | R28: 10765.25 | S28: 9437.55 | T28: 7567.55 | U28: 6562.85 | V28: 4959.75
A29: 41 | C29: 11015.15 | D29: 9656 | E29: 7737.55 | F29: 6708.2 | G29: 5070.25 | M29: 12959 | N29: 11360 | O29: 9103 | P29: 7892 | Q29: 5965 | R29: 11015.15 | S29: 9656 | T29: 7737.55 | U29: 6708.2 | V29: 5070.25
A30: 42 | C30: 11271 | D30: 9877 | E30: 7910.95 | F30: 6860.35 | G30: 5183.3 | M30: 13260 | N30: 11620 | O30: 9307 | P30: 8071 | Q30: 6098 | R30: 11271 | S30: 9877 | T30: 7910.95 | U30: 6860.35 | V30: 5183.3
A31: 43 | C31: 11531.1 | D31: 10106.5 | E31: 8086.9 | F31: 7012.5 | G31: 5299.75 | M31: 13566 | N31: 11890 | O31: 9514 | P31: 8250 | Q31: 6235 | R31: 11531.1 | S31: 10106.5 | T31: 8086.9 | U31: 7012.5 | V31: 5299.75
A32: 44 | C32: 11798 | D32: 10341.95 | E32: 8268.8 | F32: 7170.6 | G32: 5418.75 | M32: 13880 | N32: 12167 | O32: 9728 | P32: 8436 | Q32: 6375 | R32: 11798 | S32: 10341.95 | T32: 8268.8 | U32: 7170.6 | V32: 5418.75
A33: 45 | C33: 12071.7 | D33: 10582.5 | E33: 8455.8 | F33: 7332.95 | G33: 5542 | M33: 14202 | N33: 12450 | O33: 9948 | P33: 8627 | Q33: 6520 | R33: 12071.7 | S33: 10582.5 | T33: 8455.8 | U33: 7332.95 | V33: 5542
A34: 46 | C34: 12351.35 | D34: 10825.6 | E34: 8646.2 | F34: 7497.85 | G34: 5666.1 | M34: 14531 | N34: 12736 | O34: 10172 | P34: 8821 | Q34: 6666 | R34: 12351.35 | S34: 10825.6 | T34: 8646.2 | U34: 7497.85 | V34: 5666.1
A35: 47 | C35: 12636.95 | D35: 11078.9 | E35: 8842.55 | F35: 7667 | G35: 5794.45 | M35: 14867 | N35: 13034 | O35: 10403 | P35: 9020 | Q35: 6817 | R35: 12636.95 | S35: 11078.9 | T35: 8842.55 | U35: 7667 | V35: 5794.45
A36: 48 | C36: 12931.9 | D36: 11331.35 | E36: 9042.3 | F36: 7841.25 | G36: 5924.5 | M36: 15214 | N36: 13331 | O36: 10638 | P36: 9225 | Q36: 6970 | R36: 12931.9 | S36: 11331.35 | T36: 9042.3 | U36: 7841.25 | V36: 5924.5
A37: 49 | C37: 13228.55 | D37: 11595.7 | E37: 9245.45 | F37: 8017.2 | G37: 6058.8 | M37: 15563 | N37: 13642 | O37: 10877 | P37: 9432 | Q37: 7128 | R37: 13228.55 | S37: 11595.7 | T37: 9245.45 | U37: 8017.2 | V37: 6058.8
A38: 50 | C38: 13534.55 | D38: 11861.75 | E38: 9456.25 | F38: 8199.1 | G38: 6195.65 | M38: 15923 | N38: 13955 | O38: 11125 | P38: 9646 | Q38: 7289 | R38: 13534.55 | S38: 11861.75 | T38: 9456.25 | U38: 8199.1 | V38: 6195.65
A39: 51 | C39: 13846.5 | D39: 12136.3 | E39: 9671.3 | F39: 8385.25 | G39: 6335.9 | M39: 16290 | N39: 14278 | O39: 11378 | P39: 9865 | Q39: 7454 | R39: 13846.5 | S39: 12136.3 | T39: 9671.3 | U39: 8385.25 | V39: 6335.9
A40: 52 | C40: 14161.85 | D40: 12415.1 | E40: 9886.35 | F40: 8573.1 | G40: 6477.85 | M40: 16661 | N40: 14606 | O40: 11631 | P40: 10086 | Q40: 7621 | R40: 14161.85 | S40: 12415.1 | T40: 9886.35 | U40: 8573.1 | V40: 6477.85
A41: 53 | C41: 14487.4 | D41: 12699 | E41: 10109.9 | F41: 8766.9 | G41: 6624.9 | M41: 17044 | N41: 14940 | O41: 11894 | P41: 10314 | Q41: 7794 | R41: 14487.4 | S41: 12699 | T41: 10109.9 | U41: 8766.9 | V41: 6624.9
A42: 54 | C42: 14818.9 | D42: 12988 | E42: 10338.55 | F42: 8964.95 | G42: 6773.65 | M42: 17434 | N42: 15280 | O42: 12163 | P42: 10547 | Q42: 7969 | R42: 14818.9 | S42: 12988 | T42: 10338.55 | U42: 8964.95 | V42: 6773.65
A43: 55 | C43: 15157.2 | D43: 13283.8 | E43: 10569.75 | F43: 9164.7 | G43: 6926.65 | M43: 17832 | N43: 15628 | O43: 12435 | P43: 10782 | Q43: 8149 | R43: 15157.2 | S43: 13283.8 | T43: 10569.75 | U43: 9164.7 | V43: 6926.65
A44: 56 | C44: 15498.05 | D44: 13583.85 | E44: 10806.9 | F44: 9370.4 | G44: 7079.65 | M44: 18233 | N44: 15981 | O44: 12714 | P44: 11024 | Q44: 8329 | R44: 15498.05 | S44: 13583.85 | T44: 10806.9 | U44: 9370.4 | V44: 7079.65
A45: 57 | C45: 15848.25 | D45: 13891.55 | E45: 11045.75 | F45: 9576.1 | G45: 7237.75 | M45: 18645 | N45: 16343 | O45: 12995 | P45: 11266 | Q45: 8515 | R45: 15848.25 | S45: 13891.55 | T45: 11045.75 | U45: 9576.1 | V45: 7237.75
A46: 58 | C46: 16205.25 | D46: 14205.2 | E46: 11289.7 | F46: 9789.45 | G46: 7398.4 | M46: 19065 | N46: 16712 | O46: 13282 | P46: 11517 | Q46: 8704 | R46: 16205.25 | S46: 14205.2 | T46: 11289.7 | U46: 9789.45 | V46: 7398.4
A47: 59 | C47: 16566.5 | D47: 14519.7 | E47: 11541.3 | F47: 10007.9 | G47: 7561.6 | M47: 19490 | N47: 17082 | O47: 13578 | P47: 11774 | Q47: 8896 | R47: 16566.5 | S47: 14519.7 | T47: 11541.3 | U47: 10007.9 | V47: 7561.6
A48: 60 | C48: 16934.55 | D48: 14844.4 | E48: 11794.6 | F48: 10227.2 | G48: 7728.2 | M48: 19923 | N48: 17464 | O48: 13876 | P48: 12032 | Q48: 9092 | R48: 16934.55 | S48: 14844.4 | T48: 11794.6 | U48: 10227.2 | V48: 7728.2
A49: 61 | C49: 18872.55 | D49: 16542.7 | E49: 13138.45 | F49: 11391.7 | G49: 8608.8 | M49: 22203 | N49: 19462 | O49: 15457 | P49: 13402 | Q49: 10128 | R49: 18872.55 | S49: 16542.7 | T49: 13138.45 | U49: 11391.7 | V49: 8608.8
A50: 62 | C50: 20967.8 | D50: 18378.7 | E50: 14591.95 | F50: 12652.25 | G50: 9560.8 | M50: 24668 | N50: 21622 | O50: 17167 | P50: 14885 | Q50: 11248 | R50: 20967.8 | S50: 18378.7 | T50: 14591.95 | U50: 12652.25 | V50: 9560.8
A51: 63 | C51: 23223.7 | D51: 20355.8 | E51: 16161.05 | F51: 14013.1 | G51: 10589.3 | M51: 27322 | N51: 23948 | O51: 19013 | P51: 16486 | Q51: 12458 | R51: 23223.7 | S51: 20355.8 | T51: 16161.05 | U51: 14013.1 | V51: 10589.3
A52: 64 | C52: 25632.6 | D52: 22467.2 | E52: 17840.65 | F52: 15470 | G52: 11691.75 | M52: 30156 | N52: 26432 | O52: 20989 | P52: 18200 | Q52: 13755 | R52: 25632.6 | S52: 22467.2 | T52: 17840.65 | U52: 15470 | V52: 11691.75
A53: 65 | C53: 28204.7 | D53: 24721.4 | E53: 19636.7 | F53: 17027.2 | G53: 12866.45 | M53: 33182 | N53: 29084 | O53: 23102 | P53: 20032 | Q53: 15137 | R53: 28204.7 | S53: 24721.4 | T53: 19636.7 | U53: 17027.2 | V53: 12866.45
A54: 66 | C54: 30933.2 | D54: 27115 | E54: 21547.5 | F54: 18683 | G54: 14119.35 | M54: 36392 | N54: 31900 | O54: 25350 | P54: 21980 | Q54: 16611 | R54: 30933.2 | S54: 27115 | T54: 21547.5 | U54: 18683 | V54: 14119.35
A55: 67 | C55: 33818.1 | D55: 29643.75 | E55: 23568.8 | F55: 20435.7 | G55: 15443.65 | M55: 39786 | N55: 34875 | O55: 27728 | P55: 24042 | Q55: 18169 | R55: 33818.1 | S55: 29643.75 | T55: 23568.8 | U55: 20435.7 | V55: 15443.65
A56: 68 | C56: 36861.1 | D56: 32308.5 | E56: 25706.55 | F56: 22290.4 | G56: 16844.45 | M56: 43366 | N56: 38010 | O56: 30243 | P56: 26224 | Q56: 19817 | R56: 36861.1 | S56: 32308.5 | T56: 25706.55 | U56: 22290.4 | V56: 16844.45
A57: 69 | C57: 40065.6 | D57: 35117.75 | E57: 27956.5 | F57: 24241.15 | G57: 18317.5 | M57: 47136 | N57: 41315 | O57: 32890 | P57: 28519 | Q57: 21550 | R57: 40065.6 | S57: 35117.75 | T57: 27956.5 | U57: 24241.15 | V57: 18317.5
A58: 70 | C58: 43424.8 | D58: 38063 | E58: 30322.05 | F58: 26292.2 | G58: 19868.75 | M58: 51088 | N58: 44780 | O58: 35673 | P58: 30932 | Q58: 23375 | R58: 43424.8 | S58: 38063 | T58: 30322.05 | U58: 26292.2 | V58: 19868.75
A59: 71 | C59: 46945.5 | D59: 41148.5 | E59: 32798.95 | F59: 28439.3 | G59: 21489.7 | M59: 55230 | N59: 48410 | O59: 38587 | P59: 33458 | Q59: 25282 | R59: 46945.5 | S59: 41148.5 | T59: 32798.95 | U59: 28439.3 | V59: 21489.7
A60: 72 | C60: 50621.75 | D60: 44370 | E60: 35390.6 | F60: 30686.7 | G60: 23189.7 | M60: 59555 | N60: 52200 | O60: 41636 | P60: 36102 | Q60: 27282 | R60: 50621.75 | S60: 44370 | T60: 35390.6 | U60: 30686.7 | V60: 23189.7
A61: 73 | C61: 54456.95 | D61: 47732.6 | E61: 38091.9 | F61: 33031.85 | G61: 24960.25 | M61: 64067 | N61: 56156 | O61: 44814 | P61: 38861 | Q61: 29365 | R61: 54456.95 | S61: 47732.6 | T61: 38091.9 | U61: 33031.85 | V61: 24960.25
A62: 74 | C62: 58450.25 | D62: 51232.9 | E62: 40912.2 | F62: 35475.6 | G62: 26806.45 | M62: 68765 | N62: 60274 | O62: 48132 | P62: 41736 | Q62: 31537 | R62: 58450.25 | S62: 51232.9 | T62: 40912.2 | U62: 35475.6 | V62: 26806.45
A63: 75 | C63: 62602.5 | D63: 54870.9 | E63: 43843.85 | F63: 38017.95 | G63: 28728.3 | M63: 73650 | N63: 64554 | O63: 51581 | P63: 44727 | Q63: 33798 | R63: 62602.5 | S63: 54870.9 | T63: 43843.85 | U63: 38017.95 | V63: 28728.3
A64: 76 | C64: 62602.5 | D64: 54870.9 | E64: 43843.85 | F64: 38017.95 | G64: 28728.3 | M64: 73650 | N64: 64554 | O64: 51581 | P64: 44727 | Q64: 33798 | R64: =M64*85% -> 62602.5 | S64: =N64*85% -> 54870.9 | T64: =O64*85% -> 43843.85 | U64: =P64*85% -> 38017.95 | V64: =Q64*85% -> 28728.3
A65: 77 | C65: 62602.5 | D65: 54870.9 | E65: 43843.85 | F65: 38017.95 | G65: 28728.3 | M65: 73650 | N65: 64554 | O65: 51581 | P65: 44727 | Q65: 33798 | R65: 62602.5 | S65: 54870.9 | T65: 43843.85 | U65: 38017.95 | V65: 28728.3
A66: 78 | C66: 62602.5 | D66: 54870.9 | E66: 43843.85 | F66: 38017.95 | G66: 28728.3 | M66: 73650 | N66: 64554 | O66: 51581 | P66: 44727 | Q66: 33798 | R66: 62602.5 | S66: 54870.9 | T66: 43843.85 | U66: 38017.95 | V66: 28728.3
A67: 79 | C67: 62602.5 | D67: 54870.9 | E67: 43843.85 | F67: 38017.95 | G67: 28728.3 | M67: 73650 | N67: 64554 | O67: 51581 | P67: 44727 | Q67: 33798 | R67: 62602.5 | S67: 54870.9 | T67: 43843.85 | U67: 38017.95 | V67: 28728.3
A68: 80 | C68: 62602.5 | D68: 54870.9 | E68: 43843.85 | F68: 38017.95 | G68: 28728.3 | M68: 73650 | N68: 64554 | O68: 51581 | P68: 44727 | Q68: 33798 | R68: 62602.5 | S68: 54870.9 | T68: 43843.85 | U68: 38017.95 | V68: 28728.3
A69: 81 | C69: 62602.5 | D69: 54870.9 | E69: 43843.85 | F69: 38017.95 | G69: 28728.3 | M69: 73650 | N69: 64554 | O69: 51581 | P69: 44727 | Q69: 33798 | R69: 62602.5 | S69: 54870.9 | T69: 43843.85 | U69: 38017.95 | V69: 28728.3
A70: 82 | C70: 62602.5 | D70: 54870.9 | E70: 43843.85 | F70: 38017.95 | G70: 28728.3 | M70: 73650 | N70: 64554 | O70: 51581 | P70: 44727 | Q70: 33798 | R70: 62602.5 | S70: 54870.9 | T70: 43843.85 | U70: 38017.95 | V70: 28728.3
A71: 83 | C71: =R71 -> 62602.5 | D71: =S71 -> 54870.9 | E71: =T71 -> 43843.85 | F71: =U71 -> 38017.95 | G71: =V71 -> 28728.3 | M71: 73650 | N71: 64554 | O71: 51581 | P71: 44727 | Q71: 33798 | R71: 62602.5 | S71: 54870.9 | T71: 43843.85 | U71: 38017.95 | V71: 28728.3
A72: 84 | B72: o más | C72: 62602.5 | D72: 54870.9 | E72: 43843.85 | F72: 38017.95 | G72: 28728.3 | M72: 73650 | N72: 64554 | O72: 51581 | P72: 44727 | Q72: 33798 | R72: 62602.5 | S72: 54870.9 | T72: 43843.85 | U72: 38017.95 | V72: 28728.3
A73: 1 | B73: Hijo | C73: 3209.6 | D73: 2811.8 | E73: 2322.2 | F73: 2015.35 | G73: 1522.35 | M73: 3776 | N73: 3308 | O73: 2732 | P73: 2371 | Q73: 1791 | R73: =M73*85% -> 3209.6 | S73: =N73*85% -> 2811.8 | T73: =O73*85% -> 2322.2 | U73: =P73*85% -> 2015.35 | V73: =Q73*85% -> 1522.35
A74: 2 | B74: Hijos | C74: 5455.3 | D74: 4782.1 | E74: 3947.4 | F74: 3423.8 | G74: 2587.4 | M74: 6418 | N74: 5626 | O74: 4644 | P74: 4028 | Q74: 3044 | R74: 5455.3 | S74: 4782.1 | T74: 3947.4 | U74: 3423.8 | V74: 2587.4
A75: 3 | B75: Hijos o más | C75: 7699.3 | D75: 6750.7 | E75: 5573.45 | F75: 4833.95 | G75: 3652.45 | M75: 9058 | N75: 7942 | O75: 6557 | P75: 5687 | Q75: 4297 | R75: 7699.3 | S75: 6750.7 | T75: 5573.45 | U75: 4833.95 | V75: 3652.45
A77: BUPA GLOBAL ELITE - MENSUALES | H77: ?
A78: EDAD
C79: 1000 | D79: 2000 | E79: 3500
A80: 18 | C80: =+C6*$K$2 -> 665.3686667 | D80: =+D6*$K$2 -> 583.1 | E80: 481.712 | F80: 417.5313333 | G80: 315.6673333
A81: 19 | C81: =+C7*$K$2 -> 673.3813333 | D81: 590.24 | E81: 486.7893333 | F81: 422.212 | G81: 319.0786667
A82: 20 | C82: =+C8*$K$2 -> 681.9493333 | D82: 597.5386667 | E82: 492.184 | F82: 426.734 | G82: 322.49
A83: 21 | C83: =+C9*$K$2 -> 690.438 | D83: 605.234 | E83: 497.658 | F83: 431.5733333 | G83: 326.1393333
A84: 22 | C84: =+C10*$K$2 -> 699.4026667 | D84: 613.0086667 | E84: 503.5286667 | F84: 436.6506667 | G84: 329.9473333
A85: 23 | C85: =+C11*$K$2 -> 708.6053333 | D85: 621.3386667 | E85: 509.558 | F85: 441.8073333 | G85: 333.914
A86: 24 | C86: =+C12*$K$2 -> 718.1253333 | D86: 629.748 | E86: 515.6666667 | F86: 447.1226667 | G86: 337.96
A87: 25 | C87: =+C13*$K$2 -> 728.2006667 | D87: 638.2366667 | E87: 521.8546667 | F87: 452.5173333 | G87: 342.0853333
A88: 26 | C88: =+C14*$K$2 -> 742.4806667 | D88: 650.692 | E88: 531.3746667 | F88: 460.768 | G88: 348.194
A89: 27 | C89: =+C15*$K$2 -> 757.2366667 | D89: 663.8613333 | E89: 541.0533333 | F89: 469.2566667 | G89: 354.5406667
A90: 28 | C90: =+C16*$K$2 -> 772.786 | D90: 677.5066667 | E90: 551.208 | F90: 477.904 | G90: 361.284
A91: 29 | C91: =+C17*$K$2 -> 788.97 | D91: 691.5486667 | E91: 561.918 | F91: 487.186 | G91: 368.1066667
A92: 30 | C92: =+C18*$K$2 -> 805.5506667 | D92: 706.146 | E92: 573.0246667 | F92: 496.944 | G92: 375.4846667
A93: 31 | C93: =+C19*$K$2 -> 822.9246667 | D93: 721.5366667 | E93: 584.1313333 | F93: 506.6226667 | G93: 382.7833333
A94: 32 | C94: =+C20*$K$2 -> 840.616 | D94: 736.848 | E94: 596.3486667 | F94: 517.174 | G94: 390.7166667
A95: 33 | C95: =+C21*$K$2 -> 859.3386667 | D95: 753.27 | E95: 608.4073333 | F95: 527.7253333 | G95: 398.7293333
A96: 34 | C96: =+C22*$K$2 -> 878.3786667 | D96: 769.692 | E96: 621.18 | F96: 538.832 | G96: 406.98
A97: 35 | C97: =+C23*$K$2 -> 897.974 | D97: 787.066 | E97: 634.3493333 | F97: 550.0973333 | G97: 415.7066667
A98: 36 | C98: =+C24*$K$2 -> 918.1246667 | D98: 804.7573333 | E98: 647.7566667 | F98: 561.7593333 | G98: 424.354
A99: 37 | C99: =+C25*$K$2 -> 938.91 | D99: 823.004 | E99: 662.0366667 | F99: 574.056 | G99: 433.7946667
A100: 38 | C100: =+C26*$K$2 -> 960.4093333 | D100: 841.806 | E100: 676.396 | F100: 586.5906667 | G100: 443.0766667
A101: 39 | C101: =+C27*$K$2 -> 982.3053333 | D101: 861.0046667 | E101: 691.2313333 | F101: 599.3633333 | G101: 452.9933333
A102: 40 | C102: =+C28*$K$2 -> 1004.756667 | D102: 880.838 | E102: 706.3046667 | F102: 612.5326667 | G102: 462.91
A103: 41 | C103: =+C29*$K$2 -> 1028.080667 | D103: 901.2266667 | E103: 722.1713333 | F103: 626.0986667 | G103: 473.2233333
A104: 42 | C104: =+C30*$K$2 -> 1051.96 | D104: 921.8533333 | E104: 738.3553333 | F104: 640.2993333 | G104: 483.7746667
A105: 43 | C105: =+C31*$K$2 -> 1076.236 | D105: 943.2733333 | E105: 754.7773333 | F105: 654.5 | G105: 494.6433333
A106: 44 | C106: =+C32*$K$2 -> 1101.146667 | D106: 965.2486667 | E106: 771.7546667 | F106: 669.256 | G106: 505.75
A107: 45 | C107: =+C33*$K$2 -> 1126.692 | D107: 987.7 | E107: 789.208 | F107: 684.4086667 | G107: 517.2533333
A108: 46 | C108: =+C34*$K$2 -> 1152.792667 | D108: 1010.389333 | E108: 806.9786667 | F108: 699.7993333 | G108: 528.836
A109: 47 | C109: =+C35*$K$2 -> 1179.448667 | D109: 1034.030667 | E109: 825.3046667 | F109: 715.5866667 | G109: 540.8153333
A110: 48 | C110: =+C36*$K$2 -> 1206.977333 | D110: 1057.592667 | E110: 843.948 | F110: 731.85 | G110: 552.9533333
A111: 49 | C111: =+C37*$K$2 -> 1234.664667 | D111: 1082.265333 | E111: 862.9086667 | F111: 748.272 | G111: 565.488
A112: 50 | C112: =+C38*$K$2 -> 1263.224667 | D112: 1107.096667 | E112: 882.5833333 | F112: 765.2493333 | G112: 578.2606667
A113: 51 | C113: =+C39*$K$2 -> 1292.34 | D113: 1132.721333 | E113: 902.6546667 | F113: 782.6233333 | G113: 591.3506667
A114: 52 | C114: =+C40*$K$2 -> 1321.772667 | D114: 1158.742667 | E114: 922.726 | F114: 800.156 | G114: 604.5993333
A115: 53 | C115: =+C41*$K$2 -> 1352.157333 | D115: 1185.24 | E115: 943.5906667 | F115: 818.244 | G115: 618.324
A116: 54 | C116: =+C42*$K$2 -> 1383.097333 | D116: 1212.213333 | E116: 964.9313333 | F116: 836.7286667 | G116: 632.2073333
A117: 55 | C117: =+C43*$K$2 -> 1414.672 | D117: 1239.821333 | E117: 986.51 | F117: 855.372 | G117: 646.4873333
A118: 56 | C118: =+C44*$K$2 -> 1446.484667 | D118: 1267.826 | E118: 1008.644 | F118: 874.5706667 | G118: 660.7673333
A119: 57 | C119: =+C45*$K$2 -> 1479.17 | D119: 1296.544667 | E119: 1030.936667 | F119: 893.7693333 | G119: 675.5233333
A120: 58 | C120: =+C46*$K$2 -> 1512.49 | D120: 1325.818667 | E120: 1053.705333 | F120: 913.682 | G120: 690.5173333
A121: 59 | C121: =+C47*$K$2 -> 1546.206667 | D121: 1355.172 | E121: 1077.188 | F121: 934.0706667 | G121: 705.7493333
A122: 60 | C122: =+C48*$K$2 -> 1580.558 | D122: 1385.477333 | E122: 1100.829333 | F122: 954.5386667 | G122: 721.2986667
A123: 61 | C123: =+C49*$K$2 -> 1761.438 | D123: 1543.985333 | E123: 1226.255333 | F123: 1063.225333 | G123: 803.488
A124: 62 | C124: =+C50*$K$2 -> 1956.994667 | D124: 1715.345333 | E124: 1361.915333 | F124: 1180.876667 | G124: 892.3413333
A125: 63 | C125: =+C51*$K$2 -> 2167.545333 | D125: 1899.874667 | E125: 1508.364667 | F125: 1307.889333 | G125: 988.3346667
A126: 64 | C126: =+C52*$K$2 -> 2392.376 | D126: 2096.938667 | E126: 1665.127333 | F126: 1443.866667 | G126: 1091.23
A127: 65 | C127: =+C53*$K$2 -> 2632.438667 | D127: 2307.330667 | E127: 1832.758667 | F127: 1589.205333 | G127: 1200.868667
A128: 66 | C128: =+C54*$K$2 -> 2887.098667 | D128: 2530.733333 | E128: 2011.1 | F128: 1743.746667 | G128: 1317.806
A129: 67 | C129: =+C55*$K$2 -> 3156.356 | D129: 2766.75 | E129: 2199.754667 | F129: 1907.332 | G129: 1441.407333
A130: 68 | C130: =+C56*$K$2 -> 3440.369333 | D130: 3015.46 | E130: 2399.278 | F130: 2080.437333 | G130: 1572.148667
A131: 69 | C131: =+C57*$K$2 -> 3739.456 | D131: 3277.656667 | E131: 2609.273333 | F131: 2262.507333 | G131: 1709.633333
A132: 70 | C132: =+C58*$K$2 -> 4052.981333 | D132: 3552.546667 | E132: 2830.058 | F132: 2453.938667 | G132: 1854.416667
A133: 71 | C133: =+C59*$K$2 -> 4381.58 | D133: 3840.526667 | E133: 3061.235333 | F133: 2654.334667 | G133: 2005.705333
A134: 72 | C134: =+C60*$K$2 -> 4724.696667 | D134: 4141.2 | E134: 3303.122667 | F134: 2864.092 | G134: 2164.372
A135: 73 | C135: =+C61*$K$2 -> 5082.648667 | D135: 4455.042667 | E135: 3555.244 | F135: 3082.972667 | G135: 2329.623333
A136: 74 | C136: =+C62*$K$2 -> 5455.356667 | D136: 4781.737333 | E136: 3818.472 | F136: 3311.056 | G136: 2501.935333
A137: 75 | C137: =+C63*$K$2 -> 5842.9 | D137: 5121.284 | E137: 4092.092667 | F137: 3548.342 | G137: 2681.308
A138: 76 | C138: =+C64*$K$2 -> 5842.9 | D138: 5121.284 | E138: 4092.092667 | F138: 3548.342 | G138: 2681.308
A139: 77 | C139: =+C65*$K$2 -> 5842.9 | D139: 5121.284 | E139: 4092.092667 | F139: 3548.342 | G139: 2681.308
A140: 78 | C140: =+C66*$K$2 -> 5842.9 | D140: 5121.284 | E140: 4092.092667 | F140: 3548.342 | G140: 2681.308
A141: 79 | C141: =+C67*$K$2 -> 5842.9 | D141: 5121.284 | E141: 4092.092667 | F141: 3548.342 | G141: 2681.308
A142: 80 | C142: =+C68*$K$2 -> 5842.9 | D142: 5121.284 | E142: 4092.092667
A143: 81 | C143: =+C69*$K$2 -> 5842.9 | D143: 5121.284 | E143: 4092.092667
A144: 82 | C144: =+C70*$K$2 -> 5842.9 | D144: 5121.284 | E144: 4092.092667
A145: 83 | C145: =+C71*$K$2 -> 5842.9 | D145: 5121.284 | E145: 4092.092667
A146: 84 | B146: o más | C146: =+C72*$K$2 -> 5842.9 | D146: 5121.284 | E146: 4092.092667 | F146: 3548.342 | G146: 2681.308
A147: 1 | B147: Hijo | C147: =+C73*$K$2 -> 299.5626667 | D147: 262.4346667 | E147: 216.7386667 | F147: 188.0993333 | G147: 142.086
A148: 2 | B148: Hijos | C148: =+C74*$K$2 -> 509.1613333 | D148: 446.3293333 | E148: 368.424 | F148: 319.5546667 | G148: 241.4906667
A149: 3 | B149: Hijos o más | C149: =+C75*$K$2 -> 718.6013333 | D149: 630.0653333 | E149: 520.1886667 | F149: 451.1686667 | G149: 340.8953333
A151: BUPA GLOBAL PREMIER
A152: TARIFAS ANUALES
A153: EDAD
C154: 2000 | D154: 3500 | E154: 5000 | F154: 10000 | M154: 2000 | N154: 3500 | O154: 5000 | P154: 10000
A155: 18 | C155: =R155 -> 3564.75 | D155: =S155 -> 3236.25 | E155: 2421 | F155: 1751.25 | G155: =Q155*$K$6 -> 0 | M155: 4753 | N155: 4315 | O155: 3228 | P155: 2335 | R155: =M155*0.75 -> 3564.75 | S155: =N155*0.75 -> 3236.25 | T155: 2421 | U155: 1751.25
A156: 19 | C156: =R156 -> 3609.75 | D156: =S156 -> 3276 | E156: =T156 -> 2442.75 | F156: =U156 -> 1767.75 | G156: =Q156*$K$6 -> 0 | M156: 4813 | N156: 4368 | O156: 3257 | P156: 2357 | R156: =M156*0.75 -> 3609.75 | S156: =N156*0.75 -> 3276 | T156: =O156*0.75 -> 2442.75 | U156: =P156*0.75 -> 1767.75
A157: 20 | C157: 3654 | D157: 3315.75 | E157: 2468.25 | F157: 1786.5 | G157: 0 | M157: 4872 | N157: 4421 | O157: 3291 | P157: 2382 | R157: 3654 | S157: 3315.75 | T157: 2468.25 | U157: 1786.5
A158: 21 | C158: 3700.5 | D158: 3357 | E158: 2493.75 | F158: 1805.25 | G158: 0 | M158: 4934 | N158: 4476 | O158: 3325 | P158: 2407 | R158: 3700.5 | S158: 3357 | T158: 2493.75 | U158: 1805.25
A159: 22 | C159: 3747 | D159: 3402.75 | E159: 2519.25 | F159: 1824.75 | G159: 0 | M159: 4996 | N159: 4537 | O159: 3359 | P159: 2433 | R159: 3747 | S159: 3402.75 | T159: 2519.25 | U159: 1824.75
A160: 23 | C160: 3797.25 | D160: 3447 | E160: 2546.25 | F160: 1843.5 | G160: 0 | M160: 5063 | N160: 4596 | O160: 3395 | P160: 2458 | R160: 3797.25 | S160: 3447 | T160: 2546.25 | U160: 1843.5
A161: 24 | C161: 3849.75 | D161: 3493.5 | E161: 2574.75 | F161: 1863.75 | G161: 0 | M161: 5133 | N161: 4658 | O161: 3433 | P161: 2485 | R161: 3849.75 | S161: 3493.5 | T161: 2574.75 | U161: 1863.75
A162: 25 | C162: 3902.25 | D162: 3540.75 | E162: 2603.25 | F162: 1884 | G162: 0 | M162: 5203 | N162: 4721 | O162: 3471 | P162: 2512 | R162: 3902.25 | S162: 3540.75 | T162: 2603.25 | U162: 1884
A163: 26 | C163: 3978.75 | D163: 3612 | E163: 2648.25 | F163: 1916.25 | G163: 0 | M163: 5305 | N163: 4816 | O163: 3531 | P163: 2555 | R163: 3978.75 | S163: 3612 | T163: 2648.25 | U163: 1916.25
A164: 27 | C164: 4057.5 | D164: 3684 | E164: 2692.5 | F164: 1949.25 | G164: 0 | M164: 5410 | N164: 4912 | O164: 3590 | P164: 2599 | R164: 4057.5 | S164: 3684 | T164: 2692.5 | U164: 1949.25
A165: 28 | C165: 4140.75 | D165: 3758.25 | E165: 2739 | F165: 1983 | G165: 0 | M165: 5521 | N165: 5011 | O165: 3652 | P165: 2644 | R165: 4140.75 | S165: 3758.25 | T165: 2739 | U165: 1983
A166: 29 | C166: 4227.75 | D166: 3836.25 | E166: 2788.5 | F166: 2019 | G166: 0 | M166: 5637 | N166: 5115 | O166: 3718 | P166: 2692 | R166: 4227.75 | S166: 3836.25 | T166: 2788.5 | U166: 2019
A167: 30 | C167: 4317 | D167: 3919.5 | E167: 2841 | F167: 2057.25 | G167: 0 | M167: 5756 | N167: 5226 | O167: 3788 | P167: 2743 | R167: 4317 | S167: 3919.5 | T167: 2841 | U167: 2057.25
A168: 31 | C168: 4408.5 | D168: 4002 | E168: 2895 | F168: 2095.5 | G168: 0 | M168: 5878 | N168: 5336 | O168: 3860 | P168: 2794 | R168: 4408.5 | S168: 4002 | T168: 2895 | U168: 2095.5
A169: 32 | C169: 4505.25 | D169: 4089 | E169: 2949.75 | F169: 2135.25 | G169: 0 | M169: 6007 | N169: 5452 | O169: 3933 | P169: 2847 | R169: 4505.25 | S169: 4089 | T169: 2949.75 | U169: 2135.25
A170: 33 | C170: 4603.5 | D170: 4179 | E170: 3009 | F170: 2177.25 | G170: 0 | M170: 6138 | N170: 5572 | O170: 4012 | P170: 2903 | R170: 4603.5 | S170: 4179 | T170: 3009 | U170: 2177.25
A171: 34 | C171: 4706.25 | D171: 4270.5 | E171: 3067.5 | F171: 2220.75 | G171: 0 | M171: 6275 | N171: 5694 | O171: 4090 | P171: 2961 | R171: 4706.25 | S171: 4270.5 | T171: 3067.5 | U171: 2220.75
A172: 35 | C172: 4810.5 | D172: 4367.25 | E172: 3132 | F172: 2267.25 | G172: 0 | M172: 6414 | N172: 5823 | O172: 4176 | P172: 3023 | R172: 4810.5 | S172: 4367.25 | T172: 3132 | U172: 2267.25
A173: 36 | C173: 4920 | D173: 4465.5 | E173: 3197.25 | F173: 2313.75 | G173: 0 | M173: 6560 | N173: 5954 | O173: 4263 | P173: 3085 | R173: 4920 | S173: 4465.5 | T173: 3197.25 | U173: 2313.75
A174: 37 | C174: 5031.75 | D174: 4566 | E174: 3263.25 | F174: 2361.75 | G174: 0 | M174: 6709 | N174: 6088 | O174: 4351 | P174: 3149 | R174: 5031.75 | S174: 4566 | T174: 3263.25 | U174: 2361.75
A175: 38 | C175: 5145.75 | D175: 4671.75 | E175: 3332.25 | F175: 2411.25 | G175: 0 | M175: 6861 | N175: 6229 | O175: 4443 | P175: 3215 | R175: 5145.75 | S175: 4671.75 | T175: 3332.25 | U175: 2411.25
A176: 39 | C176: 5265 | D176: 4779 | E176: 3402 | F176: 2463 | G176: 0 | M176: 7020 | N176: 6372 | O176: 4536 | P176: 3284 | R176: 5265 | S176: 4779 | T176: 3402 | U176: 2463
A177: 40 | C177: 5385 | D177: 4888.5 | E177: 3474 | F177: 2514 | G177: 0 | M177: 7180 | N177: 6518 | O177: 4632 | P177: 3352 | R177: 5385 | S177: 4888.5 | T177: 3474 | U177: 2514
A178: 41 | C178: 5510.25 | D178: 5000.25 | E178: 3548.25 | F178: 2568 | G178: 0 | M178: 7347 | N178: 6667 | O178: 4731 | P178: 3424 | R178: 5510.25 | S178: 5000.25 | T178: 3548.25 | U178: 2568
A179: 42 | C179: 5635.5 | D179: 5115 | E179: 3626.25 | F179: 2624.25 | G179: 0 | M179: 7514 | N179: 6820 | O179: 4835 | P179: 3499 | R179: 5635.5 | S179: 5115 | T179: 3626.25 | U179: 2624.25
A180: 43 | C180: 5768.25 | D180: 5233.5 | E180: 3705.75 | F180: 2683.5 | G180: 0 | M180: 7691 | N180: 6978 | O180: 4941 | P180: 3578 | R180: 5768.25 | S180: 5233.5 | T180: 3705.75 | U180: 2683.5
A181: 44 | C181: 5899.5 | D181: 5355 | E181: 3787.5 | F181: 2742 | G181: 0 | M181: 7866 | N181: 7140 | O181: 5050 | P181: 3656 | R181: 5899.5 | S181: 5355 | T181: 3787.5 | U181: 2742
A182: 45 | C182: 6037.5 | D182: 5481 | E182: 3871.5 | F182: 2802.75 | G182: 0 | M182: 8050 | N182: 7308 | O182: 5162 | P182: 3737 | R182: 6037.5 | S182: 5481 | T182: 3871.5 | U182: 2802.75
A183: 46 | C183: 6178.5 | D183: 5607 | E183: 3957 | F183: 2863.5 | G183: 0 | M183: 8238 | N183: 7476 | O183: 5276 | P183: 3818 | R183: 6178.5 | S183: 5607 | T183: 3957 | U183: 2863.5
A184: 47 | C184: 6321.75 | D184: 5736 | E184: 4045.5 | F184: 2928.75 | G184: 0 | M184: 8429 | N184: 7648 | O184: 5394 | P184: 3905 | R184: 6321.75 | S184: 5736 | T184: 4045.5 | U184: 2928.75
A185: 48 | C185: 6467.25 | D185: 5868.75 | E185: 4134.75 | F185: 2992.5 | G185: 0 | M185: 8623 | N185: 7825 | O185: 5513 | P185: 3990 | R185: 6467.25 | S185: 5868.75 | T185: 4134.75 | U185: 2992.5
A186: 49 | C186: 6617.25 | D186: 6004.5 | E186: 4226.25 | F186: 3058.5 | G186: 0 | M186: 8823 | N186: 8006 | O186: 5635 | P186: 4078 | R186: 6617.25 | S186: 6004.5 | T186: 4226.25 | U186: 3058.5
A187: 50 | C187: 6768 | D187: 6143.25 | E187: 4320.75 | F187: 3126.75 | G187: 0 | M187: 9024 | N187: 8191 | O187: 5761 | P187: 4169 | R187: 6768 | S187: 6143.25 | T187: 4320.75 | U187: 3126.75
A188: 51 | C188: 6924.75 | D188: 6284.25 | E188: 4415.25 | F188: 3196.5 | G188: 0 | M188: 9233 | N188: 8379 | O188: 5887 | P188: 4262 | R188: 6924.75 | S188: 6284.25 | T188: 4415.25 | U188: 3196.5
A189: 52 | C189: 7084.5 | D189: 6428.25 | E189: 4514.25 | F189: 3267.75 | G189: 0 | M189: 9446 | N189: 8571 | O189: 6019 | P189: 4357 | R189: 7084.5 | S189: 6428.25 | T189: 4514.25 | U189: 3267.75
A190: 53 | C190: 7245.75 | D190: 6576 | E190: 4615.5 | F190: 3341.25 | G190: 0 | M190: 9661 | N190: 8768 | O190: 6154 | P190: 4455 | R190: 7245.75 | S190: 6576 | T190: 4615.5 | U190: 3341.25
A191: 54 | C191: 7410.75 | D191: 6724.5 | E191: 4716.75 | F191: 3414 | G191: 0 | M191: 9881 | N191: 8966 | O191: 6289 | P191: 4552 | R191: 7410.75 | S191: 6724.5 | T191: 4716.75 | U191: 3414
A192: 55 | C192: 7581.75 | D192: 6879.75 | E192: 4821 | F192: 3490.5 | G192: 0 | M192: 10109 | N192: 9173 | O192: 6428 | P192: 4654 | R192: 7581.75 | S192: 6879.75 | T192: 4821 | U192: 3490.5
A193: 56 | C193: 7750.5 | D193: 7035 | E193: 4928.25 | F193: 3567 | G193: 0 | M193: 10334 | N193: 9380 | O193: 6571 | P193: 4756 | R193: 7750.5 | S193: 7035 | T193: 4928.25 | U193: 3567
A194: 57 | C194: 7926.75 | D194: 7193.25 | E194: 5037.75 | F194: 3647.25 | G194: 0 | M194: 10569 | N194: 9591 | O194: 6717 | P194: 4863 | R194: 7926.75 | S194: 7193.25 | T194: 5037.75 | U194: 3647.25
A195: 58 | C195: 8105.25 | D195: 7354.5 | E195: 5148.75 | F195: 3727.5 | G195: 0 | M195: 10807 | N195: 9806 | O195: 6865 | P195: 4970 | R195: 8105.25 | S195: 7354.5 | T195: 5148.75 | U195: 3727.5
A196: 59 | C196: 8285.25 | D196: 7519.5 | E196: 5262 | F196: 3807.75 | G196: 0 | M196: 11047 | N196: 10026 | O196: 7016 | P196: 5077 | R196: 8285.25 | S196: 7519.5 | T196: 5262 | U196: 3807.75
A197: 60 | C197: 8471.25 | D197: 7687.5 | E197: 5377.5 | F197: 3892.5 | G197: 0 | M197: 11295 | N197: 10250 | O197: 7170 | P197: 5190 | R197: 8471.25 | S197: 7687.5 | T197: 5377.5 | U197: 3892.5
A198: 61 | C198: 9438.75 | D198: 8566.5 | E198: 5984.25 | F198: 4332 | G198: 0 | M198: 12585 | N198: 11422 | O198: 7979 | P198: 5776 | R198: 9438.75 | S198: 8566.5 | T198: 5984.25 | U198: 4332
A199: 62 | C199: 10485.75 | D199: 9516 | E199: 6646.5 | F199: 4810.5 | G199: 0 | M199: 13981 | N199: 12688 | O199: 8862 | P199: 6414 | R199: 10485.75 | S199: 9516 | T199: 6646.5 | U199: 4810.5
A200: 63 | C200: 11613.75 | D200: 10539 | E200: 7359.75 | F200: 5328 | G200: 0 | M200: 15485 | N200: 14052 | O200: 9813 | P200: 7104 | R200: 11613.75 | S200: 10539 | T200: 7359.75 | U200: 5328
A201: 64 | C201: 12819 | D201: 11634.75 | E201: 8127.75 | F201: 5882.25 | G201: 0 | M201: 17092 | N201: 15513 | O201: 10837 | P201: 7843 | R201: 12819 | S201: 11634.75 | T201: 8127.75 | U201: 5882.25
A202: 65 | C202: 14105.25 | D202: 12799.5 | E202: 8946.75 | F202: 6474.75 | G202: 0 | M202: 18807 | N202: 17066 | O202: 11929 | P202: 8633 | R202: 14105.25 | S202: 12799.5 | T202: 8946.75 | U202: 6474.75
A203: 66 | C203: 15470.25 | D203: 14037.75 | E203: 9820.5 | F203: 7107.75 | G203: 0 | M203: 20627 | N203: 18717 | O203: 13094 | P203: 9477 | R203: 15470.25 | S203: 14037.75 | T203: 9820.5 | U203: 7107.75
... 1275 more rows
